Workbook

Sheet прил 1 (2013 доходы)
A6: Прогнозируемые доходы бюджета Черемховского районного муниципального образования на 2013 год
E8: (тыс. рублей)
A9: Наименование | B9: Код бюджетной классификации | D9: Прогноз на 2013 год (перв) | E9: Прогноз на 2013 год | F9: ОТК
B10: главного администратора доходов | C10: доходов районного бюджета
A11: НАЛОГОВЫЕ И НЕНАЛОГОВЫЕ ДОХОДЫ | B11: 000 | C11: 1 00 00000 00 0000 000 | D11: =D12+D17+D27+D31+D35+D40+D46+D53+D58+D81 -> 81236.93 | E11: =E12+E17+E27+E31+E35+E40+E46+E53+E58+E81 -> 87014.13 | F11: =E11-D11 -> 5777.2
A12: НАЛОГИ НА ПРИБЫЛЬ, ДОХОДЫ | B12: 182 | C12: 1 01 00000 00 0000 000 | D12: =D13+D14+D15+D16 -> 50023.7 | E12: 53100 | F12: =E12-D12 -> 3076.3
A13: Налог на доходы физических лиц с доходов, источником которых является налоговый агент, за исключением доходов, в отношении которых исчисление и уплата налога осуществляются в соответствии со статьями 227,227¹ и 228 Налогового кодекса Российской Федерации | B13: 182 | C13: 1 01 02010 01 0000 110 | D13: 49835.4 | E13: =49835.4+3000 -> 52835.4 | F13: 3000
A14: Налог на доходы физических лиц с доходов, полученных от осуществления деятельности физическими лицами,зарегистрированными в качестве индивидуальных предпринимателей,нотариусов,занимающихся частной практикой,адвокатов,учредивших адвокатские кабинеты и других лиц, занимающихся частной практикой | B14: 182 | C14: 1 01 02020 01 0000 110 | D14: 53.1 | E14: 129.4 | F14: 76.3
A15: Налог на доходы физических лиц с доходов, полученных физическими лицами, не являющимися налоговыми резидентами | B15: 182 | C15: 1 01 02030 01 0000 110 | D15: 131.7 | E15: 131.7 | F15: 0
A16: Налог на доходы физических лиц в виде фиксированных авансовых платежей с доходов, полученных физическими лицами, являющимися иностранными гражданами, осуществляющими трудовую деятельность по найму у физических лиц на основании патента | B16: 182 | C16: 1 01 02040 01 0000 110 | D16: 3.5 | E16: 3.5 | F16: 0
A17: НАЛОГИ НА СОВОКУПНЫЙ ДОХОД | B17: 182 | C17: 1 05 00000 00 0000 000 | D17: =D18+D24+D25+D26 -> 9179.3 | E17: =E18+E24+E25+E26 -> 9300.4 | F17: 121.1
A18: Налог, взимаемый в связи с применением упрощенной системы налогообложения | B18: 182 | C18: 1 05 01000 00 0000 110 | D18: =D19+D20+D21+D22 -> 3770.4 | E18: =E19+E20+E21+E22 -> 3770.4 | F18: 0
A19: Налог, взимаемый с налогоплательщиков, выбравших в качестве объекта налогообложения доходы | B19: 182 | C19: 1 05 01010 01 0000 110 | D19: 1487 | E19: 1487 | F19: 0
A20: Налог, взимаемый с налогоплательщиков, выбравших в качестве объекта налогообложения доходы, уменьшенные на величину расходов | B20: 182 | C20: 1 05 01020 01 0000 110 | D20: 1540 | E20: 1540 | F20: 0
A21: Налог, взимаемый с налогоплательщиков, выбравших в качестве объекта налогообложения доходы, уменьшенные на величину расходов (за налоговые периоды, истекшие до 1 января 2011 года) | B21: 182 | C21: 1 05 01022 01 0000 110 | D21: 106.2 | E21: 106.2 | F21: 0
A22: Минимальный налог, зачисляемый в бюджеты субьектов РФ | B22: 182 | C22: 1 05 01050 01 0000 110 | D22: 637.2 | E22: 637.2 | F22: 0
A23: Налог, взимаемый в связи с применением патентной системы налогообложения | B23: 182 | D23: 0 | E23: 0 | F23: 0
A24: Единый налог на вмененный доход для отдельных видов деятельности | B24: 182 | C24: 1 05 02000 02 0000 110 | D24: 5310 | E24: 5310 | F24: 0
A25: Единый сельскохозяйственный налог | B25: 182 | C25: 1 05 03000 01 0000 110 | D25: 98.9 | E25: 210 | F25: 111.1
A26: Налог, взимаемый в связи с применением патентной системы налогообложения | B26: 182 | C26: 1 05 04000 01 0000 110 | D26: 0 | E26: 10 | F26: 10
A27: ГОСУДАРСТВЕННАЯ ПОШЛИНА | B27: 000 | C27: 1 08 00000 00 0000 000 | D27: =D28+D29+D30 -> 988 | E27: 1028 | F27: 40
A28: Государственная пошлина по делам, рассматриваемым в судах общей юрисдикции, мировыми судьями (за исключением Верховного Суда Российской Федерации) | B28: 182 | C28: 1 08 03010 01 0000 110 | D28: 308 | E28: 308 | F28: 0
A29: Государственная пошлина за совершение действий, связанных с лицензированием, с проведением аттестации в случаях, если такая аттестация предусмотрена законодательством Российской Федерации, зачисляемая в бюджеты муниципальных районов | B29: 917 | C29: 1 08 07084 01 1000 110 | D29: 680 | E29: 720 | F29: 40
A30: Государственная пошлина за государственную регистрацию транспортных средств и иные юридически значимые действия, связанные с изменениями и выдачей документов на транспортные средства, выдачей регистрационных знаков, приемом квалификационных экзаменов на получение права на управление транспортными средствами | B30: 000 | C30: 1 08 07141 01 0000 110 | F30: 0
A31: ЗАДОЛЖЕННОСТЬ И ПЕРЕРАСЧЕТЫ ПО ОТМЕНЕННЫМ НАЛОГАМ, СБОРАМ И ИНЫМ ОБЯЗАТЕЛЬНЫМ ПЛАТЕЖАМ | B31: 182 | C31: 1 09 00000 00 0000 000 | D31: =D33+D34+D32 -> 1 | E31: =E33+E34+E32 -> 2 | F31: 1
A32: Налог на прибыль организаций, зачислявшийся до 1 января 2005 года в местные бюджеты | B32: 182 | C32: 1 09 01030 05 0000 110 | D32: 0 | E32: 0.05 | F32: 0.05
A33: Налог на имущество предприятий | B33: 182 | C33: 1 09 04010 02 0000 110 | D33: 0.5 | E33: 0.45 | F33: -0.05
A34: Налог с продаж | B34: 182 | C34: 1 09 06010 02 0000 110 | D34: 0.5 | E34: 1.5 | F34: 1
A35: ДОХОДЫ ОТ ИСПОЛЬЗОВАНИЯ ИМУЩЕСТВА, НАХОДЯЩЕГОСЯ В ГОСУДАРСТВЕННОЙ И МУНИЦИПАЛЬНОЙ СОБСТВЕННОСТИ | B35: 000 | C35: 1 11 00000 00 0000 000 | D35: =D36+D39 -> 9990 | E35: 9990 | F35: 0
A36: Доходы, получаемые в виде арендной платы за земельные участки,государственная собственность на которые не разграничена и которые расположеныв границах поселений, а также средства от продажи права на заключение договоров аренды указанных земельных участков | B36: 000 | C36: 1 11 05013 10 0000 120 | D36: =D37+D38 -> 5090 | E36: 5090 | F36: 0
A37: Доходы, получаемые в виде арендной платы за земельные участки, государственная собственность на которые не разграничена и которые расположены в границах поселений, а также средства от продажи права на заключение договоров аренды указанных земельных участков | B37: 913 | C37: 1 11 05013 10 0000 120 | D37: 4340 | E37: 4340 | F37: 0
A38: Доходы, получаемые в виде арендной платы за земельные участки,государственная собственность на которые не разграничена и которые расположеныв границах поселений, а также средства от продажи права на заключение договоров аренды указанных земельных участков | B38: 950 | C38: 1 11 05013 10 0000 120 | D38: 750 | E38: 750 | F38: 0
A39: Доходы от сдачи в аренду имущества, находящегося в оперативном управлении органов управления муниципальных районов и созданных ими учреждений (за исключением имущества муниципальных автономных учреждений) | B39: 913 | C39: 1 11 05035 05 0000 120 | D39: 4900 | E39: 4900 | F39: 0
A40: ПЛАТЕЖИ ПРИ ПОЛЬЗОВАНИИ ПРИРОДНЫМИ РЕСУРСАМИ | B40: 048 | C40: 1 12 00000 00 0000 000 | D40: =D41 -> 179.13 | E40: 179.13 | F40: 0
A41: Плата за негативное воздействие на окружающую среду | B41: 048 | C41: 1 12 01000 01 0000 120 | D41: =D42+D43+D45+D44 -> 179.13 | E41: =E42+E43+E45+E44 -> 179.13 | F41: 0
A42: Плата за выбросы загрязняющих веществ в атмосферный воздух стационарными объектами | B42: 048 | C42: 1 12 01010 01 0000 120 | D42: 94.9 | E42: 72.9 | F42: -22
A43: Плата за выбросы загрязняющих веществ в атмосферный воздух передвижными объектами | B43: 048 | C43: 1 12 01020 01 0000 120 | D43: 17.93 | E43: 60 | F43: 42.07
A44: Плата за сбросы загрязняющих веществ в водные объекты | B44: 048 | C44: 1 12 01030 01 0000 120 | D44: 0 | E44: 2.47 | F44: 2.47
A45: Плата за размещение отходов производства и потребления | B45: 048 | C45: 1 12 01040 01 0000 120 | D45: 66.3 | E45: 43.76 | F45: -22.54
A46: ДОХОДЫ ОТ ОКАЗАНИЯ ПЛАТНЫХ УСЛУГ И КОМПЕНСАЦИИ ЗАТРАТ ГОСУДАРСТВА | B46: 000 | C46: 1 13 00000 00 0000 000 | D46: =D47+D48 -> 7394 | E46: 7394 | F46: 0
A47: Прочие доходы от оказания платных услуг (работ) получателями средств бюджетов муниципальных районов | B47: 907 | C47: 113 01995 05 0000 130 | D47: 7070 | E47: 7070 | F47: 0
A48: Прочие доходы от оказания платных услуг (работ) получателями средств бюджетов муниципальных районов | B48: 904 | C48: 113 01995 05 0000 130 | D48: =D49+D50+D51+D52 -> 324 | E48: 324 | F48: 0
A49: Прочие доходы от оказания платных услуг (работ) получателями средств бюджетов муниципальных районов (МКУК МКЦ АЧРМО) | B49: 000 | C49: 113 01995 05 0000 130 | D49: 55 | E49: 55 | F49: 0
A50: Прочие доходы от оказания платных услуг (работ) получателями средств бюджетов муниципальных районов (МКУК РИК МУЗЕЙ) | B50: 000 | C50: 113 01995 05 0000 130 | D50: 21 | E50: 21 | F50: 0
A51: Прочие доходы от оказания платных услуг (работ) получателями средств бюджетов муниципальных районов (МКУК МБЧР) | B51: 000 | C51: 113 01995 05 0000 130 | D51: 26 | E51: 26 | F51: 0
A52: Прочие доходы от оказания платных услуг (работ) получателями средств бюджетов муниципальных районов (МКОУ ДОД ДШИ) | B52: 000 | C52: 113 01995 05 0000 130 | D52: 222 | E52: 222 | F52: 0
A53: ДОХОДЫ ОТ ПРОДАЖИ МАТЕРИАЛЬНЫХ И НЕМАТЕРИАЛЬНЫХ АКТИВОВ | B53: 913 | C53: 1 14 00000 00 0000 000 | D53: =D54+D56 -> 2669.3 | E53: 4900 | F53: 2230.7
A54: Доходы от реализации имущества, находящегося в государственной и муниципальной собственности (за исключением имущества автономных учреждений, а также имущества государственных и муниципальных унитарных предприятий, в том числе казенных) | B54: 913 | C54: 1 14 02000 00 0000 000 | D54: =D55 -> 2600 | E54: 2600 | F54: 0
A55: Доходы от реализации иного имущества, находящегося в собственности муниципальных районов (за исключением имущества муниципальных автономных учреждений, а также имущества муниципальных унитарных предприятий, в том числе казенных), в части реализации основных средств по указанному имуществу | B55: 913 | C55: 1 14 02053 05 0000 410 | D55: 2600 | E55: 2600 | F55: 0
A56: Доходы от продажи земельных участков, находящихся в государственной и муниципальной собственности (за исключением земельных участков автономных учреждений) | B56: 913 | C56: 1 14 06000 00 0000 430 | D56: =D57 -> 69.3 | E56: 2300 | F56: 2230.7
A57: Доходы от продажи земельных участков, государственная собственность на которые не разграничена и которые расположены в границах поселений | B57: 913 | C57: 1 14 06013 10 0000 430 | D57: 69.3 | E57: 2300 | F57: 2230.7
A58: ШТРАФЫ, САНКЦИИ, ВОЗМЕЩЕНИЕ УЩЕРБА | B58: 000 | C58: 1 16 00000 00 0000 000 | D58: =D59+D61+D62+D67+D71+D70+D60+D66 -> 512.5 | E58: =E59+E61+E62+E67+E71+E70+E60+E66 -> 514.2 | F58: 1.7
A59: Денежные взыскания (штрафы) за нарушение законодательства о налогах и сборах | B59: 182 | C59: 1 16 03000 01 0000 140 | D59: 39 | E59: 39 | F59: 0
A60: Денежные взыскания (штрафы) за нарушение законодательства о применении контрольно-кассовой техники при осуществлении наличных денежных расчетов и (или) расчетов с использованием платежных карт | B60: 182 | C60: 1 16 06000 01 0000 140 | D60: 0 | E60: 1.2 | F60: 1.2
A61: Денежные взыскания (штрафы) за административные правонарушения в области государственного регулирования производства и оборота этилового спирта, алкогольной и спиртосодержащей продукции | B61: 000 | C61: 1 16 08000 01 0000 140 | D61: 3.2 | E61: 3.2 | F61: 0
A62: Денежные взыскания (штрафы) за нарушение законодательства о недрах, об особо охраняемых природных территориях, об охране и использовании животного мира, об экологической экспертизе, в области охраны окружающей среды, земельного законодательства | B62: 000 | C62: 1 16 25000 01 0000 140 | D62: =D64+D65+D63 -> 37 | E62: 37 | F62: 0
A63: Денежные взыскания (штрафы) за нарушение законодательства о недрах | B63: 000 | C63: 1 16 25010 01 6000 140 | D63: 1 | E63: 1 | F63: 0
A64: Денежные взыскания (штрафы) за нарушение законодательства об охране и использовании животного мира | B64: 815 | C64: 1 16 25030 01 6000 140 | D64: 35 | E64: 35 | F64: 0
A65: Денежные взыскания (штрафы) за нарушение земельного законодательства | B65: 081 | C65: 1 16 25060 01 6000 140 | D65: 1 | E65: 1 | F65: 0
A66: Денежные взыскания (штрафы) за нарушение законодательства в области обеспечения санитарно-эпидемиологического благополучия человека и законодательства в сфере защиты прав потребителей | B66: 141 | C66: 1 16 28000 01 6000 140 | D66: 0 | E66: 0.5 | F66: 0.5
A67: Денежные взыскания (штрафы) за правонарушения в области дорожного движения | B67: 000 | C67: 1 16 30000 01 0000 140 | D67: =D68+D69 -> 31.7 | E67: 31.7 | F67: 0
A68: Денежные взыскания (штрафы) за административные правонарушения в области дорожного движения | B68: 188 | C68: 1 16 30014 01 0000 140 | D68: 2.7 | E68: 2.7 | F68: 0
A69: Прочие денежные взыскания (штрафы) за административные правонарушения в области дорожного движения | B69: 188 | C69: 1 16 30030 01 0000 140 | D69: 29 | E69: 29 | F69: 0
A70: Денежные взыскания (штрафы) за нарушение законодательства РФ об административных правонарушениях, предусмотренные статьей 20.25 Кодекса РФ об административных правонарушений | B70: 188 | C70: 1 16 43000 01 0000 140 | D70: 2.2 | E70: 2.2 | F70: 0
A71: Прочие поступления от денежных взысканий (штрафов) и иных сумм в возмещение ущерба, зачисляемые в бюджеты муниципальных районов | B71: 000 | C71: 1 16 90050 05 0000 140 | D71: =D72+D73+D74+D75+D76+D77+D79+D80+D78 -> 399.4 | E71: =E72+E73+E74+E75+E76+E77+E79+E80+E78 -> 399.4 | F71: 0
A72: Прочие поступления от денежных взысканий (штрафов) и иных сумм в возмещение ущерба, зачисляемые в бюджеты муниципальных районов | B72: 081 | C72: 1 16 90050 05 0000 140 | D72: 15 | E72: 15 | F72: 0
A73: Прочие поступления от денежных взысканий (штрафов) и иных сумм в возмещение ущерба, зачисляемые в бюджеты муниципальных районов | B73: 177 | C73: 1 16 90050 05 0000 140 | D73: 38 | E73: 38 | F73: 0
A74: Прочие поступления от денежных взысканий (штрафов) и иных сумм в возмещение ущерба, зачисляемые в бюджеты муниципальных районов | B74: 188 | C74: 1 16 90050 05 0000 140 | D74: 59 | E74: 59 | F74: 0
A75: Прочие поступления от денежных взысканий (штрафов) и иных сумм в возмещение ущерба, зачисляемые в бюджеты муниципальных районов | B75: 192 | C75: 1 16 90050 05 0000 140 | D75: 170 | E75: 100.4 | F75: -69.6
A76: Прочие поступления от денежных взысканий (штрафов) и иных сумм в возмещение ущерба, зачисляемые в бюджеты муниципальных районов | B76: 415 | C76: 1 16 90050 05 0000 140 | D76: 60 | E76: 60 | F76: 0
A77: Прочие поступления от денежных взысканий (штрафов) и иных сумм в возмещение ущерба, зачисляемые в бюджеты муниципальных районов | B77: 809 | C77: 1 16 90050 05 0000 140 | D77: 50 | E77: 60 | F77: 10
A78: Прочие поступления от денежных взысканий (штрафов) и иных сумм в возмещение ущерба, зачисляемые в бюджеты муниципальных районов | B78: 815 | C78: 1 16 90050 05 0000 140 | D78: 0 | E78: 20 | F78: 20
A79: Прочие поступления от денежных взысканий (штрафов) и иных сумм в возмещение ущерба, зачисляемые в бюджеты муниципальных районов | B79: 917 | C79: 1 16 90050 05 0000 140 | D79: 7.4 | E79: 12 | F79: 4.6
A80: Прочие поступления от денежных взысканий (штрафов) и иных сумм в возмещение ущерба, зачисляемые в бюджеты муниципальных районов | B80: 918 | C80: 1 16 90050 05 0000 140 | D80: 0 | E80: 35 | F80: 35
A81: ПРОЧИЕ НЕНАЛОГОВЫЕ ДОХОДЫ | B81: 000 | C81: 1 17 00000 00 0000 000 | D81: =D82+D83 -> 300 | E81: 606.4 | F81: 306.4
A82: Невыясненные поступления | B82: 000 | C82: 1 17 01000 00 0000 180 | D82: 0 | E82: 0 | F82: 0
A83: Прочие неналоговые доходы | B83: 000 | C83: 1 17 05000 00 0000 180 | D83: =D84+D85+D86 -> 300 | E83: =E84+E85+E86 -> 606.4 | F83: =E83-D83 -> 306.4
A84: Прочие неналоговые доходы | B84: 907 | C84: 1 17 05000 00 0000 180 | D84: 0 | E84: 3 | F84: 3
A85: Прочие неналоговые доходы | B85: 917 | C85: 1 17 05000 00 0000 180 | D85: 300 | E85: 600 | F85: 300
A86: Прочие неналоговые доходы | B86: 904 | C86: 1 17 05000 00 0000 180 | D86: 0 | E86: 3.4 | F86: 3.4
A87: БЕЗВОЗМЕЗДНЫЕ ПОСТУПЛЕНИЯ | B87: 000 | C87: 2 00 00000 00 0000 000 | D87: =D88+D136+D140+D138 -> 398931.9011 | E87: =E88+E136+E140+E138 -> 510007.5012 | F87: 111075.6
A88: БЕЗВОЗМЕЗДНЫЕ ПОСТУПЛЕНИЯ ИЗ ДРУГИХ БЮДЖЕТОВ БЮДЖЕТНОЙ СИСТЕМЫ РФ | B88: 000 | C88: 2 02 00000 00 0000 151 | D88: =D89+D92+D107+D123 -> 399119.8251 | E88: =E89+E92+E107+E123 -> 509195.4251 | F88: 110075.6
A89: ДОТАЦИИ БЮДЖЕТАМ МУНИЦИПАЛЬНЫХ ОБРАЗОВАНИЙ | B89: 000 | C89: 2 02 01000 00 0000 151 | D89: =D90+D91 -> 124989 | E89: 125656 | F89: 667
A90: Дотации муниципальным районам на выравнивание уровня бюджетной обеспеченности | B90: 910 | C90: 2 02 01001 05 0000 151 | D90: 124989 | E90: 124989 | F90: 0
A91: Дотации муниципальным районам на поддержку мер по обеспечению сбалансированности бюджетов | B91: 910 | C91: 2 02 01003 05 0000 151 | D91: 0 | E91: 667 | F91: 667
A92: СУБСИДИИ БЮДЖЕТАМ МУНИЦИПАЛЬНЫХ ОБРАЗОВАНИЙ | B92: 000 | C92: 2 02 02000 00 0000 151 | D92: =D93+D95+D96+D97+D94 -> 15206.1 | E92: =E93+E95+E96+E97+E94 -> 72438.7 | F92: 57232.6
A93: Федеральная программа "Молодым семьям - доступное жилье на 2005-2019 годы" | B93: 917 | C93: 2 02 02051 05 0000 151 | D93: 0 | E93: 0 | F93: 0
A94: Субсидии бюджетам муниципальных районов на модернизацию региональных систем общего образования. Модернизация региональных систем общего образования в части развития школьной инфраструктуры (текущий ремонт с целью обеспечения выполнения требований к санитарно-бытовым условиям и охране здоровья обучающихся, а также с целью подготовки помещений для установки оборудования) и (или) проведение капитального ремонта зданий общеобразовательных учреждений в Иркутской области | B94: 907 | C94: 2 02 02145 05 0000 151 | D94: 0 | E94: 1600 | F94: 1600
A95: Долгосрочная целевая программа "Энергосбережение и повышение энергетической эффективности на территории Иркутской области на 2011-2015 годы и на период до 2020 года | B95: 910 | C95: 2 02 02150 05 0000 151 | D95: 0 | E95: 761 | F95: 761
A96: Областная государственная социальная программа "Молодым семьям- доступное жилье" на 2005-2019 годы" | B96: 917 | C96: 2 02 02008 05 0000 151 | D96: 0 | E96: 230.4 | F96: 230.4
A97: Прочие субсидии | B97: 000 | C97: 2 02 02999 05 0000 151 | D97: =D98+D99+D102+D103+D105+D104+D100+D101+D106 -> 15206.1 | E97: =E98+E99+E102+E103+E105+E104+E100+E101+E106 -> 69847.3 | F97: =F98+F99+F102+F103+F105+F104+F100+F101+F106 -> 54641.2
A98: Субсидии на выплату заработной платы с начислениями на нее педагогическим работникам муниципальных дошкольных образовательных учреждений | B98: 907 | C98: 2 02 02999 05 0000 151 | D98: 2005.1 | E98: 32175.3 | F98: 30170.2
A99: Субсидия за счет средств долгосрочной целевой программы Иркутской области "Повышение эффективности бюджетных расходов Иркутской области на 2011-2013 годы" | B99: 910 | C99: 2 02 02999 05 0000 151 | D99: 9372 | E99: 16827 | F99: 7455
A100: ДЦП "Развитие автомобильных дорог общего пользования регионального или межмуниципального значения и местного значения в Иркутской области на 2011-2015 годы " | B100: 917 | C100: 2 02 02999 05 0000 151 | D100: 3829 | E100: 3829 | F100: 0
A101: Реализация мероприятий перечня проектов народных инициатив | B101: 910 | C101: 2 02 02999 05 0000 151 | D101: 0 | E101: 6963.9 | F101: 6963.9
A102: Долгосрочная целевая программа Иркутской области «Организация и обеспечение отдыха и оздоровления детей в Иркутской области на 2012-2014 годы» | B102: 907 | C102: 2 02 02999 05 0000 151 | D102: 0 | E102: 2352.1 | F102: 2352.1
A103: Подпрограмма "Подготовка объектов коммунальной инфраструктуры Иркутской области к отопительному сезону в 2011-2013 годах" | B103: 907 | C103: 2 02 02999 05 0000 151 | D103: 0 | E103: 1700 | F103: 1700
A104: Долгосрочная целевая программа «Поддержка и развитие малого и среднего предпринимательства в Иркутской области» на 2011-2012 годы (за счет федерального бюджета) | B104: 917 | C104: 2 02 02999 05 0000 151 | D104: 0 | E104: 0 | F104: 0
A105: Долгосрочная целевая программа «Защита окружающией среды в Иркутской области на 2011-2015 годы" | B105: 918 | C105: 2 02 02999 05 0000 151 | D105: 0 | E105: 5000 | F105: 5000
A106: Долгосрочная целевая программа Иркутской области "100 модельных домов культуры Приангарью" на 2011-2014 годы | B106: 904 | C106: 2 02 02999 05 0000 151 | D106: 0 | E106: 1000 | F106: 1000
A107: СУБВЕНЦИИ БЮДЖЕТАМ МУНИЦИПАЛЬНЫХ ОБРАЗОВАНИЙ | B107: 000 | C107: 2 02 03000 00 0000 151 | D107: =D109+D110+D111+D113+D114+D115+D116+D117+D118+D119+D120+D121 -> 256144.5 | E107: =E109+E110+E111+E113+E114+E115+E116+E117+E118+E119+E120+E121 -> 304096.5 | F107: 47952
A108: Субвенции бюджетам муниципальных районов на осуществление полномочий по подготовке проведения статистических переписей | B108: 917 | C108: 2 02 03002 05 0000 151 | D108: 0 | E108: 0 | F108: 0
A109: Субвенции бюджетам муниципальных районов на составление списков кандидатов в присяжные заседатели федеральных судов общей юрисдикции в Российской Федерации | B109: 917 | C109: 2 02 03007 05 0000 151 | D109: 0 | E109: 0 | F109: 0
A110: Субвенции бюджетам на ежемесячное денежное вознаграждение за классное руководство | B110: 907 | C110: 2 02 03021 05 0000 151 | D110: 0 | E110: 5000.1 | F110: 5000.1
A111: Субвенции бюджетам муниципальных образований на предоставление гражданам субсидий на оплату жилого помещения и коммунальных услуг | B111: 918 | C111: 2 02 03022 05 0000 151 | D111: 7534.2 | E111: 7589.7 | F111: 55.5
A112: Субвенции местным бюджетам на выполнение переданных полномочий субъектов РФ | B112: 000 | C112: 2 02 03024 05 0000 151 | D112: =D113+D114+D115+D116+D117+D118 -> 10028.8 | E112: =E113+E114+E115+E116+E117+E118 -> 10302.6 | F112: 273.8
A113: Хранение, комплектование, учет и использование архивных документов, относящихся к областной государственной собственности | B113: 917 | C113: 2 02 03024 05 0000 151 | D113: 1086 | E113: 1174 | F113: 88
A114: Государственные полномочия в области охраны труда | B114: 917 | C114: 2 02 03024 05 0000 151 | D114: 563.6 | E114: 604.1 | F114: 40.5
A115: Определение персонального состава и обеспечение деятельности районных (городских), районных в городах комиссий по делам несовершеннолетних и защите их прав | B115: 917 | C115: 2 02 03024 05 0000 151 | D115: 1078.1 | E115: 1155.8 | F115: 77.7
A116: Лицензирование розничной продажи алкогольной продукции | B116: 917 | C116: 2 02 03024 05 0000 151 | D116: 375.7 | E116: 402.8 | F116: 27.1
A117: Определение персонального состава и обеспечение деятельности административных комиссий | B117: 917 | C117: 2 02 03024 05 0000 151 | D117: 563.6 | E117: 604.1 | F117: 40.5
A118: Предоставление мер социальной поддержки многодетным и малоимущим семьям | B118: 907 | C118: 2 02 03024 05 0000 151 | D118: 6361.8 | E118: 6361.8 | F118: 0
A119: Субвенции бюджетам муниципальных районов на обеспечение жилыми помещениями детей-сирот, детей, оставшихся без попечения родителей, а также детей, находящихся под опекой (попечительством), не имеющих закрепленного жилого помещения | B119: 913 | C119: 2 02 03026 05 0000 151 | D119: 0 | E119: 0 | F119: 0
A120: Субвенции бюджетам муниципальных районов на обеспечение жилыми помещениями детей-сирот, детей, оставшихся без попечения родителей, а также детей, находящихся под опекой (попечительством), не имеющих закрепленного жилого помещения (федер.) | B120: 913 | C120: 2 02 03026 05 0000 151 | D120: 0 | E120: 0 | F120: 0
A121: Прочие субвенции | B121: 000 | C121: 2 02 03999 05 0000 151 | D121: =D122 -> 238581.5 | E121: 281204.1 | F121: 42622.6
A122: Субвенция на обеспечение государственных гарантий прав граждан на получение общедоступного и бесплатного дошкольного, начального общего, основного общего, среднего (полного) общего образования, а также дополнительного образования в общеобразовательных учреждениях | B122: 907 | C122: 2 02 03999 05 0000 151 | D122: 238581.5 | E122: 281204.1 | F122: 42622.6
A123: ИНЫЕ МЕЖБЮДЖЕТНЫЕ ТРАНСФЕРТЫ | B123: 000 | C123: 2 02 04000 00 0000 151 | D123: =D124+D129+D130+D134 -> 2780.22507 | E123: =E124+E129+E130+E134 -> 7004.22507 | F123: 4224
A124: Межбюджетные трансферты, передаваемые бюджетам муниципальных районов из бюджетов поселений на осуществление части полномочий по решению вопросов местного значения в соответствии с заключенными соглашениями | B124: 000 | C124: 2 02 04014 05 0000 151 | D124: =D125+D126+D127+D128 -> 1785.92507 | E124: 1785.92507 | F124: 0
A125: Межбюджетные трансферты, передаваемые бюджетам муниципальных районов из бюджетов поселений на осуществление части полномочий по решению вопросов местного значения в соответствии с заключенными соглашениями (ФУ) | B125: 910 | C125: 2 02 04014 05 0000 151 | D125: 921.19104 | E125: 921.19104 | F125: 0
A126: Межбюджетные трансферты, передаваемые бюджетам муниципальных районов из бюджетов поселений на осуществление части полномочий по решению вопросов местного значения в соответствии с заключенными соглашениями (ГО и ЧС) | B126: 917 | C126: 2 02 04014 05 0000 151 | D126: 460.59552 | E126: 460.59552 | F126: 0
A127: Межбюджетные трансферты, передаваемые бюджетам муниципальных районов из бюджетов поселений на осуществление части полномочий по решению вопросов местного значения в соответствии с заключенными соглашениями (генплан) | B127: 918 | C127: 2 02 04014 05 0000 151 | D127: 30.2 | E127: 30.2 | F127: 0
A128: Межбюджетные трансферты, передаваемые бюджетам муниципальных районов из бюджетов поселений на осуществление части полномочий по решению вопросов местного значения в соответствии с заключенными соглашениями (КСП ) | B128: 923 | C128: 2 02 04014 05 0000 151 | D128: 373.93851 | E128: 373.93851 | F128: 0
A129: Межбюджетные трансферты, передаваемые бюджетам муниципальных районов на комплектование книжных фондов библиотек муниципальных образований (областной бюджет) | B129: 904 | C129: 2 02 04025 05 0000 151 | D129: 162.7 | E129: 162.7 | F129: 0
A130: Межбюджетные трансферты, передаваемые бюджетам муниципальных районов на комплектование книжных фондов библиотек муниципальных образований (федеральный бюджет) | B130: 904 | C130: 2 02 04025 05 0000 151 | D130: 303.6 | E130: 303.6 | F130: 0
A131: Прочие межбюджетные трансферты, передаваемые бюджетам муниципальных районов | B131: 000 | C131: 2 02 04999 05 0000 151 | F131: 0
A132: Дотации на возмещ.расходов местных бюджетов в связи с предоставлением льгот по оплате жилого помещения и коммунальных услуг педагогическим работникам, проживающим в сельской местности, рабочих поселках (пгт) и работающим в муниц.образоват.учреждениях | B132: 907 | C132: 2 02 04999 05 0000 151 | F132: 0
A133: Межбюджетные трансферты в целях финансовой поддержки муниципальных образований Иркутской области, осуществляющих эффективное управление бюджетными средствами | B133: 910 | C133: 2 02 04999 05 0000 151 | F133: 0
A134: ПРОЧИЕ МЕЖБЮДЖЕТНЫЕ ТРАНСФЕРТЫ | B134: 000 | C134: 2 02 04999 00 0000 151 | D134: =D135 -> 528 | E134: 4752 | F134: 4224
A135: Исполнение судебных актов, вступивших в силу до 1 января 2013 года, по обеспечению жилыми помещениями детей-сирот и детей, оставшихся без попечения родителей, лиц из числа детей-сирот и детей, оставшихся без попечения родителей, не имеющих закрепленного жилого помещения | B135: 913 | C135: 2 02 04999 05 0000 151 | D135: 528 | E135: 4752 | F135: 4224
A136: ПРОЧИЕ БЕЗВОЗМЕЗДНЫЕ ПОСТУПЛЕНИЯ | B136: 000 | C136: 2 07 00000 00 0000 180 | D136: =D137 -> 14 | E136: 1014 | F136: 1000
A137: Прочие безвозмездные поступления в бюджеты муниципальных районов | B137: 000 | C137: 2 07 05030 05 0000 180 | D137: 14 | E137: =14+1000 -> 1014 | F137: 1000
A138: ДОХОДЫ БЮДЖЕТОВ БЮДЖЕТНОЙ СИСТЕМЫ РОССИЙСКОЙ ФЕДЕРАЦИИ ОТ ВОЗВРАТА БЮДЖЕТАМИ БЮДЖЕТНОЙ СИСТЕМЫ РОССИЙСКОЙ ФЕДЕРАЦИИ И ОРГАНИЗАЦИЯМИ ОСТАТКОВ СУБСИДИЙ, СУБВЕНЦИЙ И ИНЫХ МЕЖБЮДЖЕТНЫХ ТРАНСФЕРТОВ, ИМЕЮЩИХ ЦЕЛЕВОЕ НАЗНАЧЕНИЕ, ПРОШЛЫХ ЛЕТ | B138: 000 | C138: 2 18 00000 00 0000 000 | D138: =D139 -> 0 | E138: =E139 -> 3.64 | F138: -3.64
A139: Доходы бюджетов муниципальных районов от возврата бюджетными учреждениями остатков субсидий прошлых лет | B139: 917 | C139: 2 18 05010 05 0000 180 | D139: 0 | E139: 3.64 | F139: -3.64
A140: ВОЗВРАТ ОСТАТКОВ СУБСИДИЙ, СУБВЕНЦИЙ И ИНЫХ МЕЖБЮДЖЕТНЫХ ТРАНСФЕРТОВ, ИМЕЮЩИХ ЦЕЛЕВОЕ НАЗНАЧЕНИЕ, ПРОШЛЫХ ЛЕТ | B140: 000 | C140: 2 19 00000 00 0000 000 | D140: =D141 -> -201.92392 | E140: -205.56392 | F140: -3.64
A141: Возврат остатков субсидий и субвенций из бюджетов муниципальных районов | B141: 910 | C141: 2 19 05000 05 0000 180 | D141: -201.92392 | E141: =-201.92392-3.64 -> -205.56392 | F141: -3.64
A142: ИТОГО ДОХОДОВ | B142: 000 | C142: 8 50 00000 00 0000 000 | D142: =D87+D11 -> 480168.8311 | E142: =E87+E11 -> 597021.6312 | F142: 116852.8
A144: Начальник финансового управления | E144: Ю.Н. Гайдук

Sheet прил 2 (2014-2015)
A16: Прогнозируемые доходы бюджета Черемховского районного муниципального образования на плановый период 2014 и 2015 годов
E17: (тыс. рублей)
A18: Наименование | B18: Код бюджетной классификации | D18: Сумма
B19: главного администратора доходов | C19: доходов районного бюджета | D19: 2014 год | E19: 2015 год
A20: НАЛОГОВЫЕ И НЕНАЛОГОВЫЕ ДОХОДЫ | B20: 000 | C20: 1 00 00000 00 0000 000 | D20: =D21+D26+D36+D40+D43+D48+D53+D60+D65+D84 -> 83091.985 | E20: 86325.15
A21: НАЛОГИ НА ПРИБЫЛЬ, ДОХОДЫ | B21: 182 | C21: 1 01 00000 00 0000 000 | D21: =D22+D23+D24+D25 -> 52624.9 | E21: 55203.5
A22: Налог на доходы физических лиц с доходов, источником которых является налоговый агент, за исключением доходов, в отношении которых исчисление и уплата налога осуществляются в соответствии со статьями 227,227¹ и 228 Налогового кодекса Российской Федерации | B22: 182 | C22: 1 01 02010 01 0000 110 | D22: 52426.8 | E22: 54995.7
A23: Налог на доходы физических лиц с доходов, полученных от осуществления деятельности физическими лицами,зарегистрированными в качестве индивидуальных предпринимателей,нотариусов,занимающихся частной практикой,адвокатов,учредивших адвокатские кабинеты и других лиц, занимающихся частной практикой | B23: 182 | C23: 1 01 02020 01 0000 110 | D23: 55.9 | E23: 58.6
A24: Налог на доходы физических лиц с доходов, полученных физическими лицами, не являющимися налоговыми резидентами | B24: 182 | C24: 1 01 02030 01 0000 110 | D24: 138.5 | E24: 145.3
A25: Налог на доходы физических лиц в виде фиксированных авансовых платежей с доходов, полученных физическими лицами, являющимися иностранными гражданами, осуществляющими трудовую деятельность по найму у физических лиц на основании патента | B25: 182 | C25: 1 01 02040 01 0000 110 | D25: 3.7 | E25: 3.9
A26: НАЛОГИ НА СОВОКУПНЫЙ ДОХОД | B26: 182 | C26: 1 05 00000 00 0000 000 | D26: =D27+D34+D35 -> 9656 | E26: 10130
A27: Налог, взимаемый в связи с применением упрощенной системы налогообложения | B27: 182 | C27: 1 05 01000 00 0000 110 | D27: =D28+D29+D30+D31+D32 -> 3966 | E27: 4161
A28: Налог, взимаемый с налогоплательщиков, выбравших в качестве объекта налогообложения доходы | B28: 182 | C28: 1 05 01010 01 0000 110 | D28: 1564.3 | E28: 1641
A29: Налог, взимаемый с налогоплательщиков, выбравших в качестве объекта налогообложения доходы, уменьшенные на величину расходов | B29: 182 | C29: 1 05 01020 01 0000 110 | D29: 1620 | E29: 1700
A30: Налог, взимаемый с налогоплательщиков, выбравших в качестве объекта налогообложения доходы, уменьшенные на величину расходов (за налоговые периоды, истекшие до 1 января 2011 года) | B30: 182 | C30: 1 05 01022 01 0000 110 | D30: 111.7 | E30: 117
A31: Налог, взимаемый в виде стоимости патента в связи с применением упрощенной системы налогооблажения | B31: 182 | C31: 1 05 01041 02 0000 110 | D31: 0 | E31: 0
A32: Минимальный налог, зачисляемый в бюджеты субьектов РФ | B32: 182 | C32: 1 05 01050 01 0000 110 | D32: 670 | E32: 703
A33: Налог, взимаемый в связи с применением патентной системы налогообложения | B33: 182
A34: Единый налог на вмененный доход для отдельных видов деятельности | B34: 182 | C34: 1 05 02000 02 0000 110 | D34: 5586 | E34: 5860
A35: Единый сельскохозяйственный налог | B35: 182 | C35: 1 05 03000 01 0000 110 | D35: 104 | E35: 109
A36: ГОСУДАРСТВЕННАЯ ПОШЛИНА | B36: 000 | C36: 1 08 00000 00 0000 000 | D36: =D37+D38+D39 -> 1044 | E36: 1080
A37: Государственная пошлина по делам, рассматриваемым в судах общей юрисдикции, мировыми судьями (за исключением Верховного Суда Российской Федерации) | B37: 182 | C37: 1 08 03010 01 0000 110 | D37: 324 | E37: 340
A38: Государственная пошлина за совершение действий, связанных с лицензированием, с проведением аттестации в случаях, если такая аттестация предусмотрена законодательством Российской Федерации, зачисляемая в бюджеты муниципальных районов | B38: 917 | C38: 1 08 07084 01 1000 110 | D38: 720 | E38: 740
A39: Государственная пошлина за государственную регистрацию транспортных средств и иные юридически значимые действия, связанные с изменениями и выдачей документов на транспортные средства, выдачей регистрационных знаков, приемом квалификационных экзаменов на получение права на управление транспортными средствами | B39: 000 | C39: 1 08 07141 01 0000 110
A40: ЗАДОЛЖЕННОСТЬ И ПЕРЕРАСЧЕТЫ ПО ОТМЕНЕННЫМ НАЛОГАМ, СБОРАМ И ИНЫМ ОБЯЗАТЕЛЬНЫМ ПЛАТЕЖАМ | B40: 182 | C40: 1 09 00000 00 0000 000 | D40: =D41+D42 -> 1 | E40: 1
A41: Налог на имущество предприятий | B41: 182 | C41: 1 09 04010 02 0000 110 | D41: 0.5 | E41: 0.5
A42: Налог с продаж | B42: 182 | C42: 1 09 06010 02 0000 110 | D42: 0.5 | E42: 0.5
A43: ДОХОДЫ ОТ ИСПОЛЬЗОВАНИЯ ИМУЩЕСТВА, НАХОДЯЩЕГОСЯ В ГОСУДАРСТВЕННОЙ И МУНИЦИПАЛЬНОЙ СОБСТВЕННОСТИ | B43: 000 | C43: 1 11 00000 00 0000 000 | D43: =D44+D47 -> 10464.5 | E43: 10451.5
A44: Доходы, получаемые в виде арендной платы за земельные участки,государственная собственность на которые не разграничена и которые расположеныв границах поселений, а также средства от продажи права на заключение договоров аренды указанных земельных участков | B44: 000 | C44: 1 11 05013 10 0000 120 | D44: =D45+D46 -> 5464.5 | E44: 5351.5
A45: Доходы, получаемые в виде арендной платы за земельные участки, государственная собственность на которые не разграничена и которые расположены в границах поселений, а также средства от продажи права на заключение договоров аренды указанных земельных участков | B45: 913 | C45: 1 11 05013 10 0000 120 | D45: 4714.5 | E45: 4601.5
A46: Доходы, получаемые в виде арендной платы за земельные участки,государственная собственность на которые не разграничена и которые расположеныв границах поселений, а также средства от продажи права на заключение договоров аренды указанных земельных участков | B46: 950 | C46: 1 11 05013 10 0000 120 | D46: 750 | E46: 750
A47: Доходы от сдачи в аренду имущества, находящегося в оперативном управлении органов управления муниципальных районов и созданных ими учреждений (за исключением имущества муниципальных автономных учреждений) | B47: 913 | C47: 1 11 05035 05 0000 120 | D47: 5000 | E47: 5100
A48: ПЛАТЕЖИ ПРИ ПОЛЬЗОВАНИИ ПРИРОДНЫМИ РЕСУРСАМИ | B48: 048 | C48: 1 12 00000 00 0000 000 | D48: =D49 -> 186.285 | E48: 193.75
A49: Плата за негативное воздействие на окружающую среду | B49: 048 | C49: 1 12 01000 01 0000 120 | D49: =D50+D51+D52 -> 186.285 | E49: 193.75
A50: Плата за выбросы загрязняющих веществ в атмосферный воздух стационарными объектами | B50: 048 | C50: 1 12 01010 01 0000 120 | D50: 98.69 | E50: 102.645
A51: Плата за выбросы загрязняющих веществ в атмосферный воздух передвижными объектами | B51: 048 | C51: 1 12 01020 01 0000 120 | D51: 18.645 | E51: 19.395
A52: Плата за размещение отходов производства и потребления | B52: 048 | C52: 1 12 01040 01 0000 120 | D52: 68.95 | E52: 71.71
A53: ДОХОДЫ ОТ ОКАЗАНИЯ ПЛАТНЫХ УСЛУГ И КОМПЕНСАЦИИ ЗАТРАТ ГОСУДАРСТВА | B53: 000 | C53: 1 13 00000 00 0000 000 | D53: =D54+D55 -> 7680 | E53: 7808
A54: Прочие доходы от оказания платных услуг (работ) получателями средств бюджетов муниципальных районов | B54: 907 | C54: 113 01995 05 0000 130 | D54: 7345 | E54: 7450
A55: Прочие доходы от оказания платных услуг (работ) получателями средств бюджетов муниципальных районов | B55: 904 | C55: 113 01995 05 0000 130 | D55: =D56+D57+D58+D59 -> 335 | E55: 358
A56: Прочие доходы от оказания платных услуг (работ) получателями средств бюджетов муниципальных районов (МКУК МКЦ АЧРМО) | B56: 000 | C56: 113 01995 05 0000 130 | D56: 60 | E56: 65
A57: Прочие доходы от оказания платных услуг (работ) получателями средств бюджетов муниципальных районов (МКУК РИК МУЗЕЙ) | B57: 000 | C57: 113 01995 05 0000 130 | D57: 22 | E57: 23
A58: Прочие доходы от оказания платных услуг (работ) получателями средств бюджетов муниципальных районов (МКУК МБЧР) | B58: 000 | C58: 113 01995 05 0000 130 | D58: 28 | E58: 43
A59: Прочие доходы от оказания платных услуг (работ) получателями средств бюджетов муниципальных районов (МКОУ ДОД ДШИ) | B59: 000 | C59: 113 01995 05 0000 130 | D59: 225 | E59: 227
A60: ДОХОДЫ ОТ ПРОДАЖИ МАТЕРИАЛЬНЫХ И НЕМАТЕРИАЛЬНЫХ АКТИВОВ | B60: 913 | C60: 1 14 00000 00 0000 000 | D60: =D61+D63 -> 601 | E60: 601.5
A61: Доходы от реализации имущества, находящегося в государственной и муниципальной собственности (за исключением имущества автономных учреждений, а также имущества государственных и муниципальных унитарных предприятий, в том числе казенных) | B61: 913 | C61: 1 14 02000 00 0000 000 | D61: =D62 -> 500 | E61: 500
A62: Доходы от реализации иного имущества, находящегося в собственности муниципальных районов (за исключением имущества муниципальных автономных учреждений, а также имущества муниципальных унитарных предприятий, в том числе казенных), в части реализации основных средств по указанному имуществу | B62: 913 | C62: 1 14 02053 05 0000 410 | D62: 500 | E62: 500
A63: Доходы от продажи земельных участков, находящихся в государственной и муниципальной собственности (за исключением земельных участков автономных учреждений) | B63: 913 | C63: 1 14 06000 00 0000 430 | D63: =D64 -> 101 | E63: 101.5
A64: Доходы от продажи земельных участков, государственная собственность на которые не разграничена и которые расположены в границах поселений | B64: 913 | C64: 1 14 06013 10 0000 430 | D64: 101 | E64: 101.5
A65: ШТРАФЫ, САНКЦИИ, ВОЗМЕЩЕНИЕ УЩЕРБА | B65: 000 | C65: 1 16 00000 00 0000 000 | D65: =D66+D67+D68+D72+D76+D75 -> 534.3 | E65: 555.9
A66: Денежные взыскания (штрафы) за нарушение законодательства о налогах и сборах | B66: 182 | C66: 1 16 03000 01 0000 140 | D66: 41 | E66: 43
A67: Денежные взыскания (штрафы) за административные правонарушения в области государственного регулирования производства и оборота этилового спирта, алкогольной и спиртосодержащей продукции | B67: 182 | C67: 1 16 08000 01 0000 140 | D67: 3.4 | E67: 3.6
A68: Денежные взыскания (штрафы) за нарушение законодательства о недрах, об особо охраняемых природных территориях, об охране и использовании животного мира, об экологической экспертизе, в области охраны окружающей среды, земельного законодательства | B68: 000 | C68: 1 16 25000 01 0000 140 | D68: =D70+D71+D69 -> 38 | E68: 38
A69: Денежные взыскания (штрафы) за нарушение законодательства о недрах | B69: 000 | C69: 1 16 25010 01 6000 140 | D69: 1 | E69: 1
A70: Денежные взыскания (штрафы) за нарушение законодательства об охране и использовании животного мира | B70: 815 | C70: 1 16 25030 01 6000 140 | D70: 35 | E70: 35
A71: Денежные взыскания (штрафы) за нарушение земельного законодательства | B71: 081 | C71: 1 16 25060 01 6000 140 | D71: 2 | E71: 2
A72: Денежные взыскания (штрафы) за правонарушения в области дорожного движения | B72: 188 | C72: 1 16 30000 01 0000 140 | D72: =D73+D74 -> 33.8 | E72: 35.9
A73: Денежные взыскания (штрафы) за административные правонарушения в области дорожного движения | B73: 188 | C73: 1 16 30014 01 0000 140 | D73: 2.8 | E73: 2.9
A74: Прочие денежные взыскания (штрафы) за административные правонарушения в области дорожного движения | B74: 188 | C74: 1 16 30030 01 0000 140 | D74: 31 | E74: 33
A75: Денежные взыскания (штрафы) за нарушение законодательства РФ об административных правонарушениях, предусмотренные статьей 20.25 Кодекса РФ об административных правонарушений | B75: 188 | C75: 1 16 43000 01 0000 140 | D75: 2.3 | E75: 2.4
A76: Прочие поступления от денежных взысканий (штрафов) и иных сумм в возмещение ущерба, зачисляемые в бюджеты муниципальных районов | B76: 000 | C76: 1 16 90050 05 0000 140 | D76: =D77+D78+D79+D80+D81+D82+D83 -> 415.8 | E76: 433
A77: Прочие поступления от денежных взысканий (штрафов) и иных сумм в возмещение ущерба, зачисляемые в бюджеты муниципальных районов | B77: 081 | C77: 1 16 90050 05 0000 140 | D77: 15 | E77: 15
A78: Прочие поступления от денежных взысканий (штрафов) и иных сумм в возмещение ущерба, зачисляемые в бюджеты муниципальных районов | B78: 177 | C78: 1 16 90050 05 0000 140 | D78: 40 | E78: 42
A79: Прочие поступления от денежных взысканий (штрафов) и иных сумм в возмещение ущерба, зачисляемые в бюджеты муниципальных районов | B79: 188 | C79: 1 16 90050 05 0000 140 | D79: 62 | E79: 65
A80: Прочие поступления от денежных взысканий (штрафов) и иных сумм в возмещение ущерба, зачисляемые в бюджеты муниципальных районов | B80: 192 | C80: 1 16 90050 05 0000 140 | D80: 178 | E80: 187
A81: Прочие поступления от денежных взысканий (штрафов) и иных сумм в возмещение ущерба, зачисляемые в бюджеты муниципальных районов | B81: 415 | C81: 1 16 90050 05 0000 140 | D81: 63 | E81: 66
A82: Прочие поступления от денежных взысканий (штрафов) и иных сумм в возмещение ущерба, зачисляемые в бюджеты муниципальных районов | B82: 809 | C82: 1 16 90050 05 0000 140 | D82: 50 | E82: 50
A83: Прочие поступления от денежных взысканий (штрафов) и иных сумм в возмещение ущерба, зачисляемые в бюджеты муниципальных районов | B83: 917 | C83: 1 16 90050 05 0000 140 | D83: 7.8 | E83: 8
A84: ПРОЧИЕ НЕНАЛОГОВЫЕ ДОХОДЫ | B84: 000 | C84: 1 17 00000 00 0000 000 | D84: =D85+D86 -> 300 | E84: 300
A85: Невыясненные поступления | B85: 000 | C85: 1 17 01000 00 0000 180 | D85: 0 | E85: 0
A86: Прочие неналоговые доходы | B86: 000 | C86: 1 17 05000 00 0000 180 | D86: 300 | E86: 300
A87: БЕЗВОЗМЕЗДНЫЕ ПОСТУПЛЕНИЯ | B87: 000 | C87: 2 00 00000 00 0000 000 | D87: =D88+D137+D139 -> 376679.1 | E87: =E88+E137+E139 -> 380999.6
A88: БЕЗВОЗМЕЗДНЫЕ ПОСТУПЛЕНИЯ ИЗ ДРУГИХ БЮДЖЕТОВ БЮДЖЕТНОЙ СИСТЕМЫ РФ | B88: 000 | C88: 2 02 00000 00 0000 151 | D88: =D89+D92+D108+D124 -> 376679.1 | E88: =E89+E92+E108+E124 -> 380999.6
A89: ДОТАЦИИ БЮДЖЕТАМ МУНИЦИПАЛЬНЫХ ОБРАЗОВАНИЙ | B89: 000 | C89: 2 02 01000 00 0000 151 | D89: =D90+D91 -> 116683 | E89: 121629
A90: Дотации муниципальным районам на выравнивание уровня бюджетной обеспеченности | B90: 910 | C90: 2 02 01001 05 0000 151 | D90: 116683 | E90: 121629
A91: Дотации муниципальным районам на поддержку мер по обеспечению сбалансированности бюджетов | B91: 910 | C91: 2 02 01003 05 0000 151 | D91: 0 | E91: 0
A92: СУБСИДИИ БЮДЖЕТАМ МУНИЦИПАЛЬНЫХ ОБРАЗОВАНИЙ | B92: 000 | C92: 2 02 02000 00 0000 151 | D92: =D93+D94+D95+D96 -> 3005.1 | E92: 2005.1
A93: Федеральная программа "Молодым семьям - доступное жилье на 2005-2019 годы" | B93: 917 | C93: 2 02 02051 05 0000 151 | D93: 0 | E93: 0
A94: Долгосрочная целевая программа "Энергосбережение и повышение энергетической эффективности на территории Иркутской области на 2011-2015 годы и на период до 2020 года | B94: 910 | C94: 2 02 02150 05 0000 151 | D94: 0 | E94: 0
A95: Областная государственная социальная программа "Молодым семьям- доступное жилье" на 2005-2019 годы" | B95: 917 | C95: 2 02 02008 05 0000 151 | D95: 0 | E95: 0
A96: Прочие субсидии | B96: 000 | C96: 2 02 02999 05 0000 151 | D96: =D97+D98+D99+D100+D101+D102+D104+D105+D107+D106 -> 3005.1 | E96: =E97+E98+E99+E100+E101+E102+E104+E105+E107+E106 -> 2005.1
A97: Субсидии на выплату заработной платы с начислениями на нее педагогическим работникам муниципальных дошкольных образовательных учреждений | B97: 907 | C97: 2 02 02999 05 0000 151 | D97: 2005.1 | E97: 2005.1
A98: Субсидия за счет средств долгосрочной целевой программы Иркутской области "Повышение эффективности бюджетных расходов Иркутской области на 2011-2013 годы" | B98: 910 | C98: 2 02 02999 05 0000 151 | D98: 0 | E98: 0
A99: Погашение кредиторской задолженности учреждений, находящихся в ведении органов местного самоуправления муниципальных образований Иркутской области, по страховым взносам на обязательное пенсионное страхование, сложившейся за период с 1 января 2002 года до 31 декабря 2009 года, и по страховым взносам на обязательное пенсионное страхование, обязательное медицинское страхование и обязательное социальное страхование на случай временной нетрудоспособности и в связи с материнством за период 2010-2011 годы, а также пеней и штрафов, начисленных на задолженность 2010-2011 годов | B99: 910 | C99: 2 02 02999 05 0000 151 | D99: 0 | E99: 0
A100: Погашение реструктуризированной кредиторской задолженности учреждений, находящихся в ведении органов местного самоуправления муниципальных образований Иркутской области, по страховым взносам на обязательное пенсионное страхование, сложившейся за период с 1 января 2002 года до 31 декабря 2009 года, и по страховым взносам на обязательное пенсионное страхование, обязательное медицинское страхование и обязательное социальное страхование на случай временной нетрудоспособности и в связи с материнством за период 2010-2011 годы, а также пеней и штрафов, начисленных на задолженность 2010-2011 годов | B100: 910 | C100: 2 02 02999 05 0000 151 | D100: 0 | E100: 0
A101: Долгосрочная целевая программа "Социальное развитие села Иркутской области на 2011-2014 годы" | B101: 907 | C101: 2 02 02999 05 0000 151
A102: Долгосрочная целевая программа Иркутской области "100 модельных домов культуры Приангарью" на 2011-2014 годы | B102: 904 | C102: 2 02 02999 05 0000 151 | D102: 1000 | E102: 0
A104: Долгосрочная целевая программа Иркутской области «Организация и обеспечение отдыха и оздоровления детей в Иркутской области на 2012-2014 годы» | B104: 907 | C104: 2 02 02999 05 0000 151 | D104: 0 | E104: 0
A105: Долгосрочная целевая программа поддержки и развития учреждений дошкольного образования в Иркутской области на 2009-2014 годы» | B105: 907 | C105: 2 02 02999 05 0000 151 | D105: 0 | E105: 0
A106: Долгосрочная целевая программа «Поддержка и развитие малого и среднего предпринимательства в Иркутской области» на 2011-2012 годы (за счет федерального бюджета) | B106: 917 | C106: 2 02 02999 05 0000 151 | D106: 0 | E106: 0
A107: Долгосрочная целевая программа «Поддержка и развитие малого и среднего предпринимательства в Иркутской области» на 2011-2012 годы (за счет областного бюджета) | B107: 917 | C107: 2 02 02999 05 0000 151 | D107: 0 | E107: 0
A108: СУБВЕНЦИИ БЮДЖЕТАМ МУНИЦИПАЛЬНЫХ ОБРАЗОВАНИЙ | B108: 000 | C108: 2 02 03000 00 0000 151 | D108: =D110+D111+D112+D114+D115+D116+D117+D118+D119+D120+D121+D122 -> 256524.7 | E108: =E110+E111+E112+E114+E115+E116+E117+E118+E119+E120+E121+E122 -> 256899.2
A109: Субвенции бюджетам муниципальных районов на осуществление полномочий по подготовке проведения статистических переписей | B109: 917 | C109: 2 02 03002 05 0000 151
A110: Субвенции бюджетам муниципальных районов на составление списков кандидатов в присяжные заседатели федеральных судов общей юрисдикции в Российской Федерации | B110: 917 | C110: 2 02 03007 05 0000 151 | D110: 0 | E110: 0
A111: Субвенции бюджетам на ежемесячное денежное вознаграждение за классное руководство | B111: 907 | C111: 2 02 03021 05 0000 151 | D111: 0 | E111: 0
A112: Субвенции бюджетам муниципальных образований на предоставление гражданам субсидий на оплату жилого помещения и коммунальных услуг | B112: 918 | C112: 2 02 03022 05 0000 151 | D112: 7885.8 | E112: 8234.4
A113: Субвенции местным бюджетам на выполнение переданных полномочий субъектов РФ | B113: 000 | C113: 2 02 03024 05 0000 151 | D113: =D114+D115+D116+D117+D118+D119 -> 10057.4 | E113: =E114+E115+E116+E117+E118+E119 -> 10083.3
A114: Хранение, комплектование, учет и использование архивных документов, относящихся к областной государственной собственности | B114: 917 | C114: 2 02 03024 05 0000 151 | D114: 1086 | E114: 1086
A115: Государственные полномочия в области охраны труда | B115: 917 | C115: 2 02 03024 05 0000 151 | D115: 563.6 | E115: 563.6
A116: Определение персонального состава и обеспечение деятельности районных (городских), районных в городах комиссий по делам несовершеннолетних и защите их прав | B116: 917 | C116: 2 02 03024 05 0000 151 | D116: 1078.1 | E116: 1078.1
A117: Лицензирование розничной продажи алкогольной продукции | B117: 917 | C117: 2 02 03024 05 0000 151 | D117: 404.3 | E117: 430.2
A118: Определение персонального состава и обеспечение деятельности административных комиссий | B118: 917 | C118: 2 02 03024 05 0000 151 | D118: 563.6 | E118: 563.6
A119: Предоставление мер социальной поддержки многодетным и малоимущим семьям | B119: 907 | C119: 2 02 03024 05 0000 151 | D119: 6361.8 | E119: 6361.8
A120: Субвенции бюджетам муниципальных районов на обеспечение жилыми помещениями детей-сирот, детей, оставшихся без попечения родителей, а также детей, находящихся под опекой (попечительством), не имеющих закрепленного жилого помещения | B120: 913 | C120: 2 02 03026 05 0000 151 | D120: 0 | E120: 0
A121: Субвенции бюджетам муниципальных районов на обеспечение жилыми помещениями детей-сирот, детей, оставшихся без попечения родителей, а также детей, находящихся под опекой (попечительством), не имеющих закрепленного жилого помещения (федер.) | B121: 913 | C121: 2 02 03026 05 0000 151 | D121: 0 | E121: 0
A122: Прочие субвенции | B122: 000 | C122: 2 02 03999 05 0000 151 | D122: =D123 -> 238581.5 | E122: 238581.5
A123: Субвенция на обеспечение государственных гарантий прав граждан на получение общедоступного и бесплатного дошкольного, начального общего, основного общего, среднего (полного) общего образования, а также дополнительного образования в общеобразовательных учреждениях | B123: 907 | C123: 2 02 03999 05 0000 151 | D123: 238581.5 | E123: 238581.5
A124: ИНЫЕ МЕЖБЮДЖЕТНЫЕ ТРАНСФЕРТЫ | B124: 000 | C124: 2 02 04000 00 0000 151 | D124: =D125+D130+D131+D135 -> 466.3 | E124: =E125+E130+E131+E135 -> 466.3
A125: Межбюджетные трансферты, передаваемые бюджетам муниципальных районов из бюджетов поселений на осуществление части полномочий по решению вопросов местного значения в соответствии с заключенными соглашениями | B125: 000 | C125: 2 02 04014 05 0000 151 | D125: =D126+D127+D128+D129 -> 0 | E125: 0
A126: Межбюджетные трансферты, передаваемые бюджетам муниципальных районов из бюджетов поселений на осуществление части полномочий по решению вопросов местного значения в соответствии с заключенными соглашениями | B126: 910 | C126: 2 02 04014 05 0000 151 | D126: 0 | E126: 0
A127: Межбюджетные трансферты, передаваемые бюджетам муниципальных районов из бюджетов поселений на осуществление части полномочий по решению вопросов местного значения в соответствии с заключенными соглашениями (правила землепользования) | B127: 918 | C127: 2 02 04014 05 0000 151 | D127: 0 | E127: 0
A128: Межбюджетные трансферты, передаваемые бюджетам муниципальных районов из бюджетов поселений на осуществление части полномочий по решению вопросов местного значения в соответствии с заключенными соглашениями (генплан 5%) | B128: 918 | C128: 2 02 04014 05 0000 151 | D128: 0 | E128: 0
A129: Межбюджетные трансферты, передаваемые бюджетам муниципальных районов из бюджетов поселений на осуществление части полномочий по решению вопросов местного значения в соответствии с заключенными соглашениями (генплан ) | B129: 918 | C129: 2 02 04014 05 0000 151 | D129: 0 | E129: 0
A130: Межбюджетные трансферты, передаваемые бюджетам муниципальных районов на комплектование книжных фондов библиотек муниципальных образований (областной бюджет) | B130: 910 | C130: 2 02 04025 05 0000 151 | D130: 162.7 | E130: 162.7
A131: Межбюджетные трансферты, передаваемые бюджетам муниципальных районов на комплектование книжных фондов библиотек муниципальных образований (федеральный бюджет) | B131: 910 | C131: 2 02 04025 05 0000 151 | D131: 303.6 | E131: 303.6
A132: Прочие межбюджетные трансферты, передаваемые бюджетам муниципальных районов | B132: 000 | C132: 2 02 04999 05 0000 151
A133: Дотации на возмещ.расходов местных бюджетов в связи с предоставлением льгот по оплате жилого помещения и коммунальных услуг педагогическим работникам, проживающим в сельской местности, рабочих поселках (пгт) и работающим в муниц.образоват.учреждениях | B133: 907 | C133: 2 02 04999 05 0000 151
A134: Межбюджетные трансферты в целях финансовой поддержки муниципальных образований Иркутской области, осуществляющих эффективное управление бюджетными средствами | B134: 910 | C134: 2 02 04999 05 0000 151
A135: ПРОЧИЕ МЕЖБЮДЖЕТНЫЕ ТРАНСФЕРТЫ | B135: 000 | C135: 2 02 04999 00 0000 151 | D135: =D136 -> 0 | E135: 0
A136: Резервные фонды исполнительных органов государственной власти субъектов Российской Федерации | B136: 917 | C136: 2 02 04999 05 0000 151 | D136: 0 | E136: 0
A137: ПРОЧИЕ БЕЗВОЗМЕЗДНЫЕ ПОСТУПЛЕНИЯ | B137: 000 | C137: 2 07 00000 00 0000 180 | D137: =D138 -> 0 | E137: 0
A138: Прочие безвозмездные поступления в бюджеты муниципальных районов | B138: 000 | C138: 2 07 05000 05 0000 180 | D138: 0 | E138: 0
A139: ВОЗВРАТ ОТСТАКОВ СУБСИДИЙ И СУБВЕНЦИЙ | B139: 000 | C139: 2 19 00000 00 0000 000 | D139: =D140 -> 0 | E139: 0
A140: Возврат остатков субсидий и субвенций из бюджетов муниципальных районов | B140: 910 | C140: 2 19 05000 05 0000 180 | D140: 0 | E140: 0
A141: ИТОГО ДОХОДОВ | B141: 000 | C141: 8 50 00000 00 0000 000 | D141: =D87+D20 -> 459771.085 | E141: 467324.75
A143: Начальник финансового управления | D143: Ю.Н. Гайдук

Sheet прил3 (админ)
A8: Перечень главных администраторов доходов бюджета Черемховского районного муниципального образования - органов местного самоуправления Черемховского районного муниципального образования
A10: Код бюджетной классификации РФ | C10: Наименование главного администратора доходов районного бюджета
A11: главного администратора доходов | B11: доходов районного бюджета
A12: 904 | C12: Отдел по культуре и библиотечному обслуживанию администрации Черемховского районного муниципального образования
A13: 904 | B13: 1 13 01995 05 0000 130 | C13: Прочие доходы от оказания платных услуг получателями средств бюджетов муниципальных районов и компенсации затрат бюджетов муниципальных районов
A14: 904 | B14: 1 17 01050 05 0000 180 | C14: Невыясненные поступления, зачисляемые в бюджеты муниципальных районов
A15: 904 | B15: 1 17 05050 05 0000 180 | C15: Прочие неналоговые доходы бюджетов муниципальных районов
A16: 904 | B16: 2 02 01999 05 0000 151 | C16: Прочие дотации бюджетам муниципальных районов
A17: 904 | B17: 2 02 02999 05 0000 151 | C17: Прочие субсидии бюджетам муниципальных районов
A18: 904 | B18: 2 02 03999 05 0000 151 | C18: Прочие субвенции бюджетам муниципальных районов
A19: 904 | B19: 2 02 04025 05 0000 151 | C19: Межбюджетные трансферты, передаваемые бюджетам муниципальных районов на комплектование книжных фондов библиотек муниципальных образований
A20: 904 | B20: 2 02 04999 05 0000 151 | C20: Прочие межбюджетные трансферты, передаваемые бюджетам муниципальных районов
A21: 904 | B21: 2 07 05030 05 0000 180 | C21: Прочие безвозмездные поступления в бюджеты муниципальных районов
A22: 907 | C22: Отдел образования администрации Черемховского районного муниципального образования
A23: 907 | B23: 1 13 01995 05 0000 130 | C23: Прочие доходы от оказания платных услуг получателями средств бюджетов муниципальных районов и компенсации затрат бюджетов муниципальных районов
A24: 907 | B24: 1 17 01050 05 0000 180 | C24: Невыясненные поступления, зачисляемые в бюджеты муниципальных районов
A25: 907 | B25: 1 17 05050 05 0000 180 | C25: Прочие неналоговые доходы бюджетов муниципальных районов
A26: 907 | B26: 2 02 01999 05 0000 151 | C26: Прочие дотации бюджетам муниципальных районов
A27: 907 | B27: 2 02 02022 05 0000 151 | C27: Субсидии бюджетам муниципальных образований на внедрение инновационных образовательных программ
A28: 907 | B28: 2 02 02145 05 0000 151 | C28: Субсидии бюджетам муниципальных районов на модернизацию региональных систем общего образования
A29: 907 | B29: 2 02 02999 05 0000 151 | C29: Прочие субсидии бюджетам муниципальных районов
A30: 907 | B30: 2 02 03021 05 0000 151 | C30: Субвенции бюджетам муниципальных районов на ежемесячное денежное вознаграждение за классное руководство
A31: 907 | B31: 2 02 03024 05 0000 151 | C31: Субвенции бюджетам муниципальных районов на выполнение передаваемых полномочий субъектов РФ
A32: 907 | B32: 2 02 03999 05 0000 151 | C32: Прочие субвенции бюджетам муниципальных районов
A33: 907 | B33: 2 02 04999 05 0000 151 | C33: Прочие межбюджетные трансферты, передаваемые бюджетам муниципальных районов
A34: 907 | B34: 2 07 05030 05 0000 180 | C34: Прочие безвозмездные поступления в бюджеты муниципальных районов
A35: 910 | C35: Финансовое управление Администрации Черемховского районного муниципального образования
A36: 910 | B36: 1 17 01050 05 0000 180 | C36: Невыясненные поступления, зачисляемые в бюджеты муниципальных районов
A37: 910 | B37: 1 17 05050 05 0000 180 | C37: Прочие неналоговые доходы бюджетов муниципальных районов
A38: 910 | B38: 2 02 01001 05 0000 151 | C38: Дотации бюджетам муниципальных районов на выравнивание уровня бюджетной обеспеченности
A39: 910 | B39: 2 02 01003 05 0000 151 | C39: Дотации бюджетам муниципальных районов на поддержку мер по обеспечению сбалансированности бюджетов
A40: 910 | B40: 2 02 01999 05 0000 151 | C40: Прочие дотации бюджетам муниципальных районов
A41: 910 | B41: 2 02 02008 05 0000 151 | C41: Субсидии бюджетам муниципальных районов на обеспечение жильем молодых семей
A42: 910 | B42: 2 02 02999 05 0000 151 | C42: Прочие субсидии бюджетам муниципальных районов
A43: 910 | B43: 2 02 03999 05 0000 151 | C43: Прочие субвенции бюджетам муниципальных районов
A44: 910 | B44: 2 02 04014 05 0000 151 | C44: Межбюджетные трансферты, передаваемые бюджетам муниципальных районов из бюджетов поселений на осуществление части полномочий по решению вопросов местного значения в соответствии с заключенными соглашениями
A45: 910 | B45: 2 02 04999 05 0000 151 | C45: Прочие межбюджетные трансферты, передаваемые бюджетам муниципальных районов
A46: 910 | B46: 2 07 05030 05 0000 180 | C46: Прочие безвозмездные поступления в бюджеты муниципальных районов
A47: 910 | B47: 2 08 05000 05 0000 180 | C47: Перечисления из бюджетов муниципальных районов (в бюджеты муниципальных районов) для осуществления возврата (зачета) излишне уплаченных или излишне взысканных сумм налогов, сборов и иных платежей, а также сумм процентов за несвоевременное осуществление такого возврата и процентов, начисленных на излишне взысканные суммы
A48: 910 | B48: 2 19 05000 05 0000 151 | C48: Возврат остатков субсидий и субвенций из бюджетов муниципальных районов
A49: 913 | C49: Комитет по управлению муниципальным имуществом администрации Черемховского районного муниципального образования
A50: 913 | B50: 1 11 05013 10 0000 120 | C50: Доходы, получаемые в виде арендной платы за земельные участки, государственная собственность на которые не разграничена и которые расположены в границах поселений, а также средства от продажи права на заключение договоров аренды указанных земельных участков
A51: 913 | B51: 1 11 05035 05 0000 120 | C51: Доходы от сдачи в аренду имущества, находящегося в оперативном управлении органов управления муниципальных районов и созданных ими учреждений (за исключением имущества муниципальных автономных учреждений)
A52: 913 | B52: 1 14 02052 05 0000 410 | C52: Доходы от реализации имущества, находящегося в оперативном управлении учреждений, находящихся в ведении органов управления муниципальных районов (за исключением имущества муниципальных автономных учреждений), в части реализации основных средств по указанному имуществу
A53: 913 | B53: 1 14 02052 05 0000 440 | C53: Доходы от реализации имущества, находящегося в оперативном управлении учреждений, находящихся в ведении органов управления муниципальных районов (за исключением имущества муниципальных автономных учреждений), в части реализации материальных запасов по указанному имуществу
A54: 913 | B54: 1 14 02053 05 0000 410 | C54: Доходы от реализации иного имущества, находящегося в собственности муниципальных районов (за исключением имущества муниципальных автономных учреждений, а также имущества муниципальных унитарных предприятий, в том числе казенных), в части реализации основных средств по указанному имуществу
A55: 913 | B55: 1 14 02053 05 0000 440 | C55: Доходы от реализации иного имущества, находящегося в собственности муниципальных районов (за исключением имущества муниципальных автономных учреждений, а также имущества муниципальных унитарных предприятий, в том числе казенных), в части реализации материальных запасов по указанному имуществу
A56: 913 | B56: 1 14 06013 10 0000 430 | C56: Доходы от продажи земельных участков, государственная собственность на которые не разграничена и которые расположены в границах поселений
A57: 913 | B57: 1 14 06025 05 0000 430 | C57: Доходы от продажи земельных участков, находящихся в собственности муниципальных районов (за исключением земельных участков муниципальных автономных учреждений)
A58: 913 | B58: 1 17 01050 05 0000 180 | C58: Невыясненные поступления, зачисляемые в бюджеты муниципальных районов
A59: 913 | B59: 1 17 05050 05 0000 180 | C59: Прочие неналоговые доходы бюджетов муниципальных районов
A60: 913 | B60: 2 02 03026 05 0000 151 | C60: Субвенции бюджетам муниципальных районов на обеспечение жилыми помещениями детей-сирот, детей, оставшихся без попечения родителей, а также детей, находящихся под опекой (попечительством), не имеющих закрепленного жилого помещения
A61: 913 | B61: 2 02 04999 05 0000 151 | C61: Прочие межбюджетные трансферты, передаваемые бюджетам муниципальных районов
A62: 917 | C62: Администрация Черемховского районного муниципального образования
A63: 917 | B63: 1 08 07084 01 1000 110 | C63: Государственная пошлина за совершение действий, связанных с лицензированием, с проведением аттестации в случаях, если такая аттестация предусмотрена законодательством Российской Федерации, зачисляемая в бюджеты муниципальных районов
A64: 917 | B64: 1 16 90050 05 0000 140 | C64: Прочие поступления от денежных взысканий (штрафов) и иных сумм в возмещение ущерба, зачисляемые в бюджеты муниципальных районов
A65: 917 | B65: 1 17 01050 05 0000 180 | C65: Невыясненные поступления, зачисляемые в бюджеты муниципальных районов
A66: 917 | B66: 1 17 05050 05 0000 180 | C66: Прочие неналоговые доходы бюджетов муниципальных районов
A67: 917 | B67: 2 02 01999 05 0000 151 | C67: Прочие дотации бюджетам муниципальных районов
A68: 917 | B68: 2 02 02008 05 0000 151 | C68: Субсидии бюджетам муниципальных районов на обеспечение жильем молодых семей
A69: 917 | B69: 2 02 02105 05 0000 151 | C69: Субсидии бюджетам муниципальных районов на проведение противоаварийных мероприятий в зданиях государственных и муниципальных общеобразовательных учреждений
A70: 917 | B70: 2 02 02999 05 0000 151 | C70: Прочие субсидии бюджетам муниципальных районов
A71: 917 | B71: 2 02 03002 05 0000 151 | C71: Субвенции бюджетам муниципальных районов на осуществление полномочий по подготовке проведения статистических переписей
A72: 917 | B72: 2 02 03007 05 0000 151 | C72: Субвенции бюджетам муниципальных районов на составление списков кандидатов в присяжные заседатели федеральных судов общей юрисдикции в Российской Федерации
A73: 917 | B73: 2 02 03024 05 0000 151 | C73: Субвенции бюджетам муниципальных районов на выполнение передаваемых полномочий субъектов РФ
A74: 917 | B74: 2 02 03999 05 0000 151 | C74: Прочие субвенции бюджетам муниципальных районов
A75: 917 | B75: 2 02 04014 05 0000 151 | C75: Межбюджетные трансферты, передаваемые бюджетам муниципальных районов из бюджетов поселений на осуществление части полномочий по решению вопросов местного значения в соответствии с заключенными соглашениями
A76: 917 | B76: 2 02 04999 05 0000 151 | C76: Прочие межбюджетные трансферты, передаваемые бюджетам муниципальных районов
A77: 917 | B77: 2 07 05030 05 0000 180 | C77: Прочие безвозмездные поступления в бюджеты муниципальных районов
A78: 917 | B78: 2 18 05010 05 0000 180 | C78: Доходы бюджетов муниципальных районов от возврата бюджетными учреждениями остатков субсидий прошлых лет
A79: 918 | C79: Управление жилищно-коммунального хозяйства, строительства, транспорта, связи и экологии администрации Черемховского районного муниципального образования
A80: 918 | B80: 1 16 90050 05 0000 140 | C80: Прочие поступления от денежных взысканий (штрафов) и иных сумм в возмещение ущерба, зачисляемые в бюджеты муниципальных районов
A81: 918 | B81: 1 17 01050 05 0000 180 | C81: Невыясненные поступления, зачисляемые в бюджеты муниципальных районов
A82: 918 | B82: 1 17 05050 05 0000 180 | C82: Прочие неналоговые доходы бюджетов муниципальных районов
A83: 918 | B83: 2 02 02999 05 0000 151 | C83: Прочие субсидии бюджетам муниципальных районов
A84: 918 | B84: 2 02 03022 05 0000 151 | C84: Субвенции бюджетам муниципальных образований на предоставление гражданам субсидий на оплату жилого помещения и коммунальных услуг
A85: 918 | B85: 2 02 04014 05 0000 151 | C85: Межбюджетные трансферты, передаваемые бюджетам муниципальных районов из бюджетов поселений на осуществление части полномочий по решению вопросов местного значения в соответствии с заключенными соглашениями
A86: 918 | B86: 2 07 05030 05 0000 180 | C86: Прочие безвозмездные поступления в бюджеты муниципальных районов
A87: 923 | C87: Контрольно-счетная палата Черемховского районного муниципального образования
A88: 923 | B88: 1 17 01050 05 0000 180 | C88: Невыясненные поступления, зачисляемые в бюджеты муниципальных районов
A89: 923 | B89: 1 17 05050 05 0000 180 | C89: Прочие неналоговые доходы бюджетов муниципальных районов
A90: 923 | B90: 2 02 04014 05 0000 151 | C90: Межбюджетные трансферты, передаваемые бюджетам муниципальных районов из бюджетов поселений на осуществление части полномочий по решению вопросов местного значения в соответствии с заключенными соглашениями
A92: Начальник финансового управления | D92: Ю.Н. Гайдук

Sheet прил4
A16: Распределение бюджетных ассигнований по разделам, подразделам, целевым статьям и видам расходов классификации расходов бюджетов на 2013 год
A19: Наименование показателя | B19: Код | F19: Сумма , тыс. руб.
B20: раздела | C20: подраздела | D20: целевой статьи | E20: вида расходов
A21: 1 | B21: 2 | C21: 3 | D21: 4 | E21: 5 | F21: 6
A22: ОБЩЕГОСУДАРСТВЕННЫЕ ВОПРОСЫ | B22: 1 | C22: 0 | D22: 0 | E22: 0 | F22: 72193.1
A23: Функционирование высшего должностного лица субъекта Российской Федерации и муниципального образования | B23: 1 | C23: 2 | D23: 0 | E23: 0 | F23: 2412
A24: Руководство и управление в сфере установленных функций органов государственной власти субъектов Российской Федерации и органов местного самоуправления | B24: 1 | C24: 2 | D24: 20000 | E24: 0 | F24: 2412
A25: Глава муниципального образования | B25: 1 | C25: 2 | D25: 20300 | E25: 0 | F25: 2412
A26: Выполнение функций органами местного самоуправления | B26: 1 | C26: 2 | D26: 20300 | E26: 500 | F26: 2412
A27: Функционирование законодательных (представительных) органов государственной власти и представительных органов муниципальных образований | B27: 1 | C27: 3 | D27: 0 | E27: 0 | F27: 1321.1
A28: Руководство и управление в сфере установленных функций органов государственной власти субъектов Российской Федерации и органов местного самоуправления | B28: 1 | C28: 3 | D28: 20000 | E28: 0 | F28: 1321.1
A29: Центральный аппарат | B29: 1 | C29: 3 | D29: 20400 | E29: 0 | F29: 401.1
A30: Выполнение функций органами местного самоуправления | B30: 1 | C30: 3 | D30: 20400 | E30: 500 | F30: 401.1
A31: Председатель представительного органа муниципального образования | B31: 1 | C31: 3 | D31: 21100 | E31: 0 | F31: 920
A32: Выполнение функций органами местного самоуправления | B32: 1 | C32: 3 | D32: 21100 | E32: 500 | F32: 920
A33: Функционирование Правительства Российской Федерации, высших исполнительных органов государственной власти субъектов Российской Федерации, местных администраций | B33: 1 | C33: 4 | D33: 0 | E33: 0 | F33: 26024.3
A34: Руководство и управление в сфере установленных функций органов государственной власти субъектов Российской Федерации и органов местного самоуправления | B34: 1 | C34: 4 | D34: 20000 | E34: 0 | F34: 25963.4
A35: Центральный аппарат | B35: 1 | C35: 4 | D35: 20400 | E35: 0 | F35: 25963.4
A36: Выполнение функций органами местного самоуправления | B36: 1 | C36: 4 | D36: 20400 | E36: 500 | F36: 25963.4
A37: Региональные целевые программы | B37: 1 | C37: 4 | D37: 5220000 | E37: 0 | F37: 42.6
A38: Долгосрочная целевая программа «Энергосбережение и повышение энергетической эффективности на территории Иркутской области на 2011-2015 годы и на период до 2020 года» | B38: 1 | C38: 4 | D38: 5225400 | E38: 0 | F38: 42.6
A39: Выполнение функций органами местного самоуправления | B39: 1 | C39: 4 | D39: 5225400 | E39: 500 | F39: 42.6
A40: Целевые программы муниципальных образований | B40: 1 | C40: 4 | D40: 7950000 | E40: 0 | F40: 18.3
A41: Долгосрочная целевая программа энергосбережения и повышения энергетической эффективности Черемховского районного муниципального образования на 2010-2015 годы | B41: 1 | C41: 4 | D41: 7951100 | E41: 0 | F41: 18.3
A42: Мероприятия по повышению энергетической эффективности | B42: 1 | C42: 4 | D42: 7951100 | E42: 451 | F42: 18.3
A43: Обеспечение деятельности финансовых, налоговых и таможенных органов и органов финансового (финансово-бюджетного) надзора | B43: 1 | C43: 6 | D43: 0 | E43: 0 | F43: 11159.1
A44: Руководство и управление в сфере установленных функций органов государственной власти субъектов Российской Федерации и органов местного самоуправления | B44: 1 | C44: 6 | D44: 20000 | E44: 0 | F44: 10959.1
A45: Центральный аппарат | B45: 1 | C45: 6 | D45: 20400 | E45: 0 | F45: 9843.8
A46: Выполнение функций органами местного самоуправления | B46: 1 | C46: 6 | D46: 20400 | E46: 500 | F46: 9843.8
A47: Руководитель контрольно-счетной палаты муниципального образования и его заместители | B47: 1 | C47: 6 | D47: 22500 | E47: 0 | F47: 1115.3
A48: Выполнение функций органами местного самоуправления | B48: 1 | C48: 6 | D48: 22500 | E48: 500 | F48: 1115.3
A49: Целевые программы муниципальных образований | B49: 1 | C49: 6 | D49: 7950000 | E49: 0 | F49: 200
A50: Долгосрочная целевая программа Черемховского районного муниципального образования "Повышение эффективности бюджетных расходов Черемховского районного муниципального образования на 2012-2013 годы" | B50: 1 | C50: 6 | D50: 7950200 | E50: 0 | F50: 200
A51: Выполнение функций органами местного самоуправления | B51: 1 | C51: 6 | D51: 7950200 | E51: 500 | F51: 200
A52: Обеспечение проведения выборов и референдумов | B52: 1 | C52: 7 | D52: 0 | E52: 0 | F52: 0
A53: Проведение выборов и референдумов | B53: 1 | C53: 7 | D53: 200000 | E53: 0 | F53: 0
A54: Проведение выборов и референдумов | B54: 1 | C54: 7 | D54: 200000 | E54: 0 | F54: 0
A55: Проведение выборов в представительные органы муниципального образования | B55: 1 | C55: 7 | D55: 200002 | E55: 0 | F55: 0
A56: Выполнение функций органами местного самоуправления | B56: 1 | C56: 7 | D56: 200002 | E56: 500 | F56: 0
A57: Резервные фонды | B57: 1 | C57: 11 | D57: 0 | E57: 0 | F57: 300
A58: Резервные фонды | B58: 1 | C58: 11 | D58: 700000 | E58: 0 | F58: 300
A59: Резервные фонды местных администраций | B59: 1 | C59: 11 | D59: 700500 | E59: 0 | F59: 300
A60: Выполнение функций органами местного самоуправления | B60: 1 | C60: 11 | D60: 700500 | E60: 500 | F60: 300
A61: Другие общегосударственные вопросы | B61: 1 | C61: 13 | D61: 0 | E61: 0 | F61: 30976.6
A62: Руководство и управление в сфере установленных функций органов государственной власти субъектов Российской Федерации и органов местного самоуправления | B62: 1 | C62: 13 | D62: 20000 | E62: 0 | F62: 22096.6
A63: Центральный аппарат | B63: 1 | C63: 13 | D63: 20400 | E63: 0 | F63: 3107.1
A64: Выполнение функций органами местного самоуправления | B64: 1 | C64: 13 | D64: 20400 | E64: 500 | F64: 3107.1
A65: Осуществление областных государственных полномочий по хранению, комплектованию, учету и использованию архивных документов, относящихся к государственной собственности Иркутской области | B65: 1 | C65: 13 | D65: 24000 | E65: 0 | F65: 1174
A66: Выполнение функций органами местного самоуправления | B66: 1 | C66: 13 | D66: 24000 | E66: 500 | F66: 1174
A67: Осуществление областных государственных полномочий по определению персонального состава и обеспечению деятельности административных комиссий | B67: 1 | C67: 13 | D67: 24300 | E67: 0 | F67: 604.1
A68: Выполнение функций органами местного самоуправления | B68: 1 | C68: 13 | D68: 24300 | E68: 500 | F68: 604.1
A69: Осуществление отдельных государственных полномочий в области производства и оборота этилового спирта, алкогольной и спиртосодержащей продукции | B69: 1 | C69: 13 | D69: 24400 | E69: 0 | F69: 402.8
A70: Выполнение функций органами местного самоуправления | B70: 1 | C70: 13 | D70: 24400 | E70: 500 | F70: 402.8
A71: Осуществление отдельных областных государственных полномочий в области охраны труда | B71: 1 | C71: 13 | D71: 24500 | E71: 0 | F71: 604.1
A72: Выполнение функций органами местного самоуправления | B72: 1 | C72: 13 | D72: 24500 | E72: 500 | F72: 604.1
A73: Обеспечение деятельности подведомственных учреждений | B73: 1 | C73: 13 | D73: 29900 | E73: 0 | F73: 16204.5
A74: Выполнение функций казенными учреждениями | B74: 1 | C74: 13 | D74: 29900 | E74: 001 | F74: 15304.5
A75: Субсидии бюджетным учреждениям на финансовое обеспечение муниципального задания на оказание муниципальных услуг (выполнение работ) | B75: 1 | C75: 13 | D75: 29900 | E75: 611 | F75: 900
A76: Реализация государственных функций, связанных с общегосударственным управлением | B76: 1 | C76: 13 | D76: 920000 | E76: 0 | F76: 1576.4
A77: Выполнение других обязательств государства | B77: 1 | C77: 13 | D77: 920300 | E77: 0 | F77: 1576.4
A78: Выполнение функций органами местного самоуправления | B78: 1 | C78: 13 | D78: 920300 | E78: 500 | F78: 1576.4
A79: Учреждения по обеспечению хозяйственного обслуживания | B79: 1 | C79: 13 | D79: 930000 | E79: 0 | F79: 6500
A80: Субсидии бюджетным учреждениям на финансовое обеспечение муниципального задания на оказание муниципальных услуг (выполнение работ) | B80: 1 | C80: 13 | D80: 930000 | E80: 611 | F80: 6500
A81: Целевые программы муниципальных образований | B81: 1 | C81: 13 | D81: 7950000 | E81: 0 | F81: 803.6
A82: Долгосрочная целевая программа "Улучшение условий и охраны труда в Черемховском районе на 2011-2013гг." | B82: 1 | C82: 13 | D82: 7951400 | E82: 0 | F82: 15
A83: Выполнение функций органами местного самоуправления | B83: 1 | C83: 13 | D83: 7951400 | E83: 500 | F83: 15
A84: Долгосрочная целевая программа "Инвентаризация муниципальных объектов недвижимости Черемховского районного муниципального образования на 2012-2014 годы" | B84: 1 | C84: 13 | D84: 7951900 | E84: 0 | F84: 648.6
A85: Выполнение функций органами местного самоуправления | B85: 1 | C85: 13 | D85: 7951900 | E85: 500 | F85: 648.6
A86: Комплексная программа "Профилактика правонарушений в Черемховском районном муниципальном образовании на 2013-2016 годы" | B86: 1 | C86: 13 | D86: 7952600 | E86: 0 | F86: 40
A87: Выполнение функций органами местного самоуправления | B87: 1 | C87: 13 | D87: 7952600 | E87: 500 | F87: 40
A88: Долгосрочная целевая программа "Поддержка молодых педагогов на территории Черемховского районного муниципального образования" на 2012-2013 годы | B88: 1 | C88: 13 | D88: 7952700 | E88: 0 | F88: 100
A89: Выполнение функций органами местного самоуправления | B89: 1 | C89: 13 | D89: 7952700 | E89: 500 | F89: 100
A90: НАЦИОНАЛЬНАЯ ЭКОНОМИКА | B90: 4 | C90: 0 | D90: 0 | E90: 0 | F90: 5981.7
A91: Дорожное хозяйство(дорожные фонды) | B91: 4 | C91: 9 | D91: 0 | E91: 0 | F91: 5351.5
A92: Региональные целевые программы | B92: 4 | C92: 9 | D92: 5220000 | E92: 0 | F92: 3829
A93: Долгосрочная целевая программа "Развитие автомобильных дорог общего пользования регионального или межмуниципального значения и местного значения в Иркутской области на 2011 - 2014 годы" | B93: 4 | C93: 9 | D93: 5224700 | E93: 0 | F93: 3829
A94: Выполнение функций органами местного самоуправления | B94: 4 | C94: 9 | D94: 5224700 | E94: 500 | F94: 3829
A95: Целевые программы муниципальных образований | B95: 4 | C95: 9 | D95: 7950000 | E95: 0 | F95: 1522.5
A96: Долгосрочная целевая программа "Инвентаризация муниципальных объектов недвижимости Черемховского районного муниципального образования на 2012-2014 годы" | B96: 4 | C96: 9 | D96: 7951900 | E96: 0 | F96: 1320
A97: Выполнение функций органами местного самоуправления | B97: 4 | C97: 9 | D97: 7951900 | E97: 500 | F97: 1320
A98: Долгосрочная целевая программа "Развитие автомобильных дорог Черемховского районного муниципального образования на 2013-2015 годы" | B98: 4 | C98: 9 | D98: 7952300 | E98: 0 | F98: 202.5
A99: Выполнение функций органами местного самоуправления | B99: 4 | C99: 9 | D99: 7952300 | E99: 500 | F99: 202.5
A100: Другие вопросы в области национальной экономики | B100: 4 | C100: 12 | D100: 0 | E100: 0 | F100: 630.2
A101: Мероприятия в области строительства, архитектуры и градостроительства | B101: 4 | C101: 12 | D101: 3380000 | E101: 0 | F101: 30.2
A102: Подготовка проектов правил землепользования и застройки муниципальных образований Черемховского районного муниципального образования | B102: 4 | C102: 12 | D102: 3380200 | E102: 0 | F102: 30.2
A103: Выполнение функций органами местного самоуправления | B103: 4 | C103: 12 | D103: 3380200 | E103: 500 | F103: 30.2
A104: Целевые программы муниципальных образований | B104: 4 | C104: 12 | D104: 7950000 | E104: 0 | F104: 600
A105: Долгосрочная целевая программа "Инвентаризация муниципальных объектов недвижимости Черемховского районного муниципального образования на 2012-2014 годы" | B105: 4 | C105: 12 | D105: 7951900 | E105: 0 | F105: 500
A106: Выполнение функций органами местного самоуправления | B106: 4 | C106: 12 | D106: 7951900 | E106: 500 | F106: 500
A107: Долгосрочная целевая программа "Поддержка и развитие малого и среднего предпринимательства в Черемховском районе" на 2013-2014 годы | B107: 4 | C107: 12 | D107: 7952200 | E107: 0 | F107: 100
A108: Выполнение функций органами местного самоуправления | B108: 4 | C108: 12 | D108: 7952200 | E108: 500 | F108: 100
A109: ЖИЛИЩНО-КОММУНАЛЬНОЕ ХОЗЯЙСТВО | B109: 5 | C109: 0 | D109: 0 | E109: 0 | F109: 6719.8
A110: Жилищное хозяйство | B110: 5 | C110: 1 | D110: 0 | E110: 0 | F110: 1353.8
A111: Поддержка жилищного хозяйства | B111: 5 | C111: 1 | D111: 3500000 | E111: 0 | F111: 1353.8
A112: Мероприятия в области жилищного хозяйства | B112: 5 | C112: 1 | D112: 3500300 | E112: 0 | F112: 1353.8
A113: Выполнение функций органами местного самоуправления | B113: 5 | C113: 1 | D113: 3500300 | E113: 500 | F113: 1353.8
A114: Коммунальное хозяйство | B114: 5 | C114: 2 | D114: 0 | E114: 0 | F114: 70
A115: Региональные целевые программы | B115: 5 | C115: 2 | D115: 5220000 | E115: 0 | F115: 70
A116: Долгосрочная целевая программа «Энергосбережение и повышение энергетической эффективности на территории Иркутской области на 2011-2015 годы и на период до 2020 года» | B116: 5 | C116: 2 | D116: 5225400 | E116: 0 | F116: 70
A117: Иные межбюджетные трансферты | B117: 5 | C117: 2 | D117: 5225400 | E117: 017 | F117: 70
A118: Другие вопросы в области жилищно-коммунального хозяйства | B118: 5 | C118: 5 | D118: 0 | E118: 0 | F118: 5296
A119: Руководство и управление в сфере установленных функций органов государственной власти субъектов Российской Федерации и органов местного самоуправления | B119: 5 | C119: 5 | D119: 20000 | E119: 0 | F119: 5296
A120: Центральный аппарат | B120: 5 | C120: 5 | D120: 20400 | E120: 0 | F120: 5296
A121: Выполнение функций органами местного самоуправления | B121: 5 | C121: 5 | D121: 20400 | E121: 500 | F121: 5296
A122: ОХРАНА ОКРУЖАЮЩЕЙ СРЕДЫ | B122: 6 | C122: 0 | D122: 0 | E122: 0 | F122: 5150
A123: Другие вопросы в области охраны окружающей среды | B123: 6 | C123: 5 | D123: 0 | E123: 0 | F123: 5150
A124: Состояние окружающей среды и природопользования | B124: 6 | C124: 5 | D124: 4100000 | E124: 0 | F124: 150
A125: Природоохранные мероприятия | B125: 6 | C125: 5 | D125: 4100100 | E125: 0 | F125: 150
A126: Выполнение функций органами местного самоуправления | B126: 6 | C126: 5 | D126: 4100100 | E126: 500 | F126: 150
A127: Региональные целевые программы | B127: 6 | C127: 5 | D127: 5220000 | E127: 0 | F127: 5000
A128: Долгосрочная целевая программа Иркутской области «Защита окружающей среды в Иркутской области на 2011-2015 годы» | B128: 6 | C128: 5 | D128: 5222500 | E128: 0 | F128: 5000
A129: Подпрограмма «Отходы производства и потребления в Иркутской области на 2011-2015 годы» | B129: 6 | C129: 5 | D129: 5222502 | E129: 0 | F129: 5000
A130: Выполнение функций органами местного самоуправления | B130: 6 | C130: 5 | D130: 5222502 | E130: 500 | F130: 5000
A131: ОБРАЗОВАНИЕ | B131: 7 | C131: 0 | D131: 0 | E131: 0 | F131: 471874.6
A132: Дошкольное образование | B132: 7 | C132: 1 | D132: 0 | E132: 0 | F132: 105029.8
A133: Детские дошкольные учреждения | B133: 7 | C133: 1 | D133: 4200000 | E133: 0 | F133: 65397.3
A134: Обеспечение деятельности подведомственных учреждений | B134: 7 | C134: 1 | D134: 4209900 | E134: 0 | F134: 65397.3
A135: Выполнение функций казенными учреждениями | B135: 7 | C135: 1 | D135: 4209900 | E135: 001 | F135: 65397.3
A136: Региональные целевые программы | B136: 7 | C136: 1 | D136: 5220000 | E136: 0 | F136: 3335.8
A137: Областная государственная целевая программа поддержки и развития учреждений дошкольного образования в Иркутской области на 2009-2014 годы | B137: 7 | C137: 1 | D137: 5223700 | E137: 0 | F137: 3027.5
A138: Выполнение функций казенными учреждениями | B138: 7 | C138: 1 | D138: 5223700 | E138: 001 | F138: 3027.5
A139: Долгосрочная целевая программа «Энергосбережение и повышение энергетической эффективности на территории Иркутской области на 2011-2015 годы и на период до 2020 года» | B139: 7 | C139: 1 | D139: 5225400 | E139: 0 | F139: 308.3
A140: Выполнение функций казенными учреждениями | B140: 7 | C140: 1 | D140: 5225400 | E140: 001 | F140: 308.3
A141: Выплата заработной платы с начислениями на нее педагогическим работникам муниципальных дошкольных образовательных учреждений и муниципальных учреждений дополнительного образования | B141: 7 | C141: 1 | D141: 5890000 | E141: 0 | F141: 30529.7
A142: Выполнение функций казенными учреждениями | B142: 7 | C142: 1 | D142: 5890000 | E142: 001 | F142: 30529.7
A143: Целевые программы муниципальных образований | B143: 7 | C143: 1 | D143: 7950000 | E143: 0 | F143: 5767
A144: Долгосрочная целевая программа Черемховского районного муниципального образования "Повышение эффективности бюджетных расходов Черемховского районного муниципального образования на 2012-2013 годы" | B144: 7 | C144: 1 | D144: 7950200 | E144: 0 | F144: 3611
A145: Выполнение функций казенными учреждениями | B145: 7 | C145: 1 | D145: 7950200 | E145: 001 | F145: 3611
A146: Долгосрочная целевая программа "Безопасность образовательных учреждений на 2010-2014 гг." | B146: 7 | C146: 1 | D146: 7951000 | E146: 0 | F146: 572
A147: Мероприятия по обеспечению пожарной безопасности | B147: 7 | C147: 1 | D147: 7951000 | E147: 450 | F147: 572
A148: Долгосрочная целевая программа энергосбережения и повышения энергетической эффективности Черемховского районного муниципального образования на 2010-2015 годы | B148: 7 | C148: 1 | D148: 7951100 | E148: 0 | F148: 132
A149: Мероприятия по повышению энергетической эффективности | B149: 7 | C149: 1 | D149: 7951100 | E149: 451 | F149: 132
A150: Долгосрочная целевая программа "Развитие дошкольного образования на 2011-2014 гг." | B150: 7 | C150: 1 | D150: 7951700 | E150: 0 | F150: 1102
A151: Мероприятия в сфере образования | B151: 7 | C151: 1 | D151: 7951700 | E151: 022 | F151: 1102
A152: Долгосрочная целевая программа "Совершенствование дошкольного образования Черемховского района на 2011-2014 гг." | B152: 7 | C152: 1 | D152: 7951800 | E152: 0 | F152: 350
A153: Мероприятия в сфере образования | B153: 7 | C153: 1 | D153: 7951800 | E153: 022 | F153: 350
A154: Общее образование | B154: 7 | C154: 2 | D154: 0 | E154: 0 | F154: 355560.1
A155: Руководство и управление в сфере установленных функций органов государственной власти субъектов Российской Федерации и органов местного самоуправления | B155: 7 | C155: 2 | D155: 20000 | E155: 0 | F155: 281204.5
A156: Обеспечение государственных гарантий прав граждан на получение общедоступного и бесплатного дошкольного, начального общего, основного общего, среднего (полного) общего образования, а также дополнительного образования в общеобразовательных учреждениях | B156: 7 | C156: 2 | D156: 25000 | E156: 0 | F156: 281204.5
A157: Выполнение функций казенными учреждениями | B157: 7 | C157: 2 | D157: 25000 | E157: 001 | F157: 281204.5
A158: Школы - детские сады, школы начальные, неполные средние и средние | B158: 7 | C158: 2 | D158: 4210000 | E158: 0 | F158: 22043.4
A159: Обеспечение деятельности подведомственных учреждений | B159: 7 | C159: 2 | D159: 4219900 | E159: 0 | F159: 22043.4
A160: Выполнение функций казенными учреждениями | B160: 7 | C160: 2 | D160: 4219900 | E160: 001 | F160: 22043.4
A161: Учреждения по внешкольной работе с детьми | B161: 7 | C161: 2 | D161: 4230000 | E161: 0 | F161: 28842.8
A162: Обеспечение деятельности подведомственных учреждений | B162: 7 | C162: 2 | D162: 4239900 | E162: 0 | F162: 28842.8
A163: Выполнение функций казенными учреждениями | B163: 7 | C163: 2 | D163: 4239900 | E163: 001 | F163: 28842.8
A164: Мероприятия в области образования | B164: 7 | C164: 2 | D164: 4360000 | E164: 0 | F164: 1600
A165: Модернизация региональных систем образования | B165: 7 | C165: 2 | D165: 4362100 | E165: 0 | F165: 1600
A166: Модернизация региональных систем образования за счет средств федерального бюджета | B166: 7 | C166: 2 | D166: 4362101 | E166: 0 | F166: 1600
A167: Выполнение функций казенными учреждениями | B167: 7 | C167: 2 | D167: 4362101 | E167: 001 | F167: 1600
A168: Иные безвозмездные и безвозвратные перечисления | B168: 7 | C168: 2 | D168: 5200000 | E168: 0 | F168: 5000.1
A169: Ежемесячное денежное вознаграждение за классное руководство | B169: 7 | C169: 2 | D169: 5200900 | E169: 0 | F169: 5000.1
A170: Выполнение функций казенными учреждениями | B170: 7 | C170: 2 | D170: 5200900 | E170: 001 | F170: 5000.1
A171: Региональные целевые программы | B171: 7 | C171: 2 | D171: 5220000 | E171: 0 | F171: 2040.1
A172: Долгосрочная целевая программа «Модернизация объектов коммунальной инфраструктуры Иркутской области на 2011-2013 годы» | B172: 7 | C172: 2 | D172: 5222000 | E172: 0 | F172: 1700
A173: Подпрограмма «Подготовка объектов коммунальной инфраструктуры Иркутской области к отопительному сезону в 2011-2013 годах» | B173: 7 | C173: 2 | D173: 5222001 | E173: 0 | F173: 1700
A174: Выполнение функций казенными учреждениями | B174: 7 | C174: 2 | D174: 5222001 | E174: 001 | F174: 1700
A175: Долгосрочная целевая программа «Энергосбережение и повышение энергетической эффективности на территории Иркутской области на 2011-2015 годы и на период до 2020 года» | B175: 7 | C175: 2 | D175: 5225400 | E175: 0 | F175: 340.1
A176: Выполнение функций казенными учреждениями | B176: 7 | C176: 2 | D176: 5225400 | E176: 001 | F176: 340.1
A177: Выплата заработной платы с начислениями на нее педагогическим работникам муниципальных дошкольных образовательных учреждений и муниципальных учреждений дополнительного образования | B177: 7 | C177: 2 | D177: 5890000 | E177: 0 | F177: 1645.5
A178: Выполнение функций казенными учреждениями | B178: 7 | C178: 2 | D178: 5890000 | E178: 001 | F178: 1645.5
A179: Целевые программы муниципальных образований | B179: 7 | C179: 2 | D179: 7950000 | E179: 0 | F179: 13183.7
A180: Долгосрочная целевая программа Черемховского районного муниципального образования "Повышение эффективности бюджетных расходов Черемховского районного муниципального образования на 2012-2013 годы" | B180: 7 | C180: 2 | D180: 7950200 | E180: 0 | F180: 9594.9
A181: Выполнение функций казенными учреждениями | B181: 7 | C181: 2 | D181: 7950200 | E181: 001 | F181: 9594.9
A182: Долгосрочная целевая программа "Безопасность образовательных учреждений на 2010-2014 гг." | B182: 7 | C182: 2 | D182: 7951000 | E182: 0 | F182: 1128
A183: Мероприятия по обеспечению пожарной безопасности | B183: 7 | C183: 2 | D183: 7951000 | E183: 450 | F183: 1128
A184: Долгосрочная целевая программа энергосбережения и повышения энергетической эффективности Черемховского районного муниципального образования на 2010-2015 годы | B184: 7 | C184: 2 | D184: 7951100 | E184: 0 | F184: 468
A185: Мероприятия по повышению энергетической эффективности | B185: 7 | C185: 2 | D185: 7951100 | E185: 451 | F185: 468
A186: Долгосрочная целевая программа "Ветхие школы Черемховского района" на 2011-2013 гг. | B186: 7 | C186: 2 | D186: 7951500 | E186: 0 | F186: 900
A187: Мероприятия в сфере образования | B187: 7 | C187: 2 | D187: 7951500 | E187: 022 | F187: 900
A188: Долгосрочная целевая программа "Совершенствование организации питания в образовательных учреждениях Черемховского района на 2011-2013гг." | B188: 7 | C188: 2 | D188: 7951600 | E188: 0 | F188: 1000
A189: Мероприятия в сфере образования | B189: 7 | C189: 2 | D189: 7951600 | E189: 022 | F189: 1000
A190: Долгосрочная целевая программа "Развитие культуры в Черемховском районном муниципальном образовании на период 2012-2016 гг." | B190: 7 | C190: 2 | D190: 7952000 | E190: 0 | F190: 92.8
A191: Мероприятия по поддержке и развитию культуры, искусства, кинематографии | B191: 7 | C191: 2 | D191: 7952000 | E191: 023 | F191: 92.8
A192: Профессиональная подготовка, переподготовка и повышение квалификации | B192: 7 | C192: 5 | D192: 0 | E192: 0 | F192: 215.5
A193: Мероприятия по переподготовке и повышению квалификации | B193: 7 | C193: 5 | D193: 4340000 | E193: 0 | F193: 215.5
A194: Выполнение функций казенными учреждениями | B194: 7 | C194: 5 | D194: 4340000 | E194: 001 | F194: 108.1
A195: Выполнение функций органами местного самоуправления | B195: 7 | C195: 5 | D195: 4340000 | E195: 500 | F195: 107.4
A196: Молодежная политика и оздоровление детей | B196: 7 | C196: 7 | D196: 0 | E196: 0 | F196: 2571.9
A197: Организационно-воспитательная работа с молодежью | B197: 7 | C197: 7 | D197: 4310000 | E197: 0 | F197: 46
A198: Проведение мероприятий для детей и молодежи | B198: 7 | C198: 7 | D198: 4310100 | E198: 0 | F198: 46
A199: Проведение мероприятия для детей и молодежи | B199: 7 | C199: 7 | D199: 4310100 | E199: 447 | F199: 46
A200: Мероприятия по проведению оздоровительной кампании детей | B200: 7 | C200: 7 | D200: 4320000 | E200: 0 | F200: 123.8
A201: Оплата стоимости набора продуктов питания для детей в организованных органами местного самоуправления оздоровительных лагерях с дневным пребыванием детей за счет средств областного бюджета | B201: 7 | C201: 7 | D201: 4320300 | E201: 0 | F201: 123.8
A202: Оплата стоимости набора продуктов питания для детей в организованных органами местного самоуправления оздоровительных лагерях с дневным пребыванием детей за счет средств местного бюджета | B202: 7 | C202: 7 | D202: 4320302 | E202: 0 | F202: 123.8
A203: Выполнение функций казенными учреждениями | B203: 7 | C203: 7 | D203: 4320302 | E203: 001 | F203: 123.8
A204: Региональные целевые программы | B204: 7 | C204: 7 | D204: 5220000 | E204: 0 | F204: 2352.1
A205: Долгосрочная целевая программа Иркутской области "Организация и обеспечение отдыха и оздоровления детей в Иркутской области на 2012-2014гг." | B205: 7 | C205: 7 | D205: 5226200 | E205: 0 | F205: 2352.1
A206: Выполнение функций казенными учреждениями | B206: 7 | C206: 7 | D206: 5226200 | E206: 001 | F206: 2352.1
A207: Целевые программы муниципальных образований | B207: 7 | C207: 7 | D207: 7950000 | E207: 0 | F207: 50
A208: Долгосрочная целевая программа "Комплексные меры профилактики злоупотребления наркотическими средствами и психотропными веществами в Черемховском районном муниципальном образовании на 2011-2013 гг." | B208: 7 | C208: 7 | D208: 7951300 | E208: 0 | F208: 10
A209: Выполнение функций органами местного самоуправления | B209: 7 | C209: 7 | D209: 7951300 | E209: 500 | F209: 10
A210: Долгосрочная целевая программа "Молодежная политика в Черемховском районном муниципальном образовании" на 2013-2015 гг. | B210: 7 | C210: 7 | D210: 7952500 | E210: 0 | F210: 40
A211: Проведение мероприятия для детей и молодежи | B211: 7 | C211: 7 | D211: 7952500 | E211: 447 | F211: 40
A212: Другие вопросы в области образования | B212: 7 | C212: 9 | D212: 0 | E212: 0 | F212: 8497.3
A213: Руководство и управление в сфере установленных функций органов государственной власти субъектов Российской Федерации и органов местного самоуправления | B213: 7 | C213: 9 | D213: 20000 | E213: 0 | F213: 2997.3
A214: Центральный аппарат | B214: 7 | C214: 9 | D214: 20400 | E214: 0 | F214: 2997.3
A215: Выполнение функций органами местного самоуправления | B215: 7 | C215: 9 | D215: 20400 | E215: 500 | F215: 2997.3
A216: Учебно-методические кабинеты, централизованные бухгалтерии, группы хозяйственного обслуживания, учебные фильмотеки, межшкольные учебно-производственные комбинаты, логопедические пункты | B216: 7 | C216: 9 | D216: 4520000 | E216: 0 | F216: 5500
A217: Субсидии бюджетным учреждениям на финансовое обеспечение муниципального задания на оказание муниципальных услуг (выполнение работ) | B217: 7 | C217: 9 | D217: 4520000 | E217: 611 | F217: 5500
... 98 more rows

Sheet прил5
A15: Распределение бюджетных ассигнований по разделам, подразделам, целевым статьям и видам расходов классификации расходов бюджетов на плановый период 2014 и 2015 годов
A17: Наименование показателя | B17: Код | F17: Сумма, тыс.руб.
B18: раздела | C18: подраздела | D18: целевой статьи | E18: вида расходов | F18: 2014 | G18: 2015
A19: 1 | B19: 2 | C19: 3 | D19: 4 | E19: 5 | F19: 6 | G19: 7
A20: ОБЩЕГОСУДАРСТВЕННЫЕ ВОПРОСЫ | B20: 1 | C20: 0 | D20: 0 | E20: 0 | F20: 57173.4 | G20: 56134.3
A21: Функционирование высшего должностного лица субъекта Российской Федерации и муниципального образования | B21: 1 | C21: 2 | D21: 0 | E21: 0 | F21: 1403 | G21: 1472.1
A22: Руководство и управление в сфере установленных функций органов государственной власти субъектов Российской Федерации и органов местного самоуправления | B22: 1 | C22: 2 | D22: 20000 | E22: 0 | F22: 1403 | G22: 1472.1
A23: Глава муниципального образования | B23: 1 | C23: 2 | D23: 20300 | E23: 0 | F23: 1403 | G23: 1472.1
A24: Выполнение функций органами местного самоуправления | B24: 1 | C24: 2 | D24: 20300 | E24: 500 | F24: 1403 | G24: 1472.1
A25: Функционирование законодательных (представительных) органов государственной власти и представительных органов муниципальных образований | B25: 1 | C25: 3 | D25: 0 | E25: 0 | F25: 940.5 | G25: 986.3
A26: Руководство и управление в сфере установленных функций органов государственной власти субъектов Российской Федерации и органов местного самоуправления | B26: 1 | C26: 3 | D26: 20000 | E26: 0 | F26: 940.5 | G26: 986.3
A27: Центральный аппарат | B27: 1 | C27: 3 | D27: 20400 | E27: 0 | F27: 289 | G27: 302
A28: Выполнение функций органами местного самоуправления | B28: 1 | C28: 3 | D28: 20400 | E28: 500 | F28: 289 | G28: 302
A29: Председатель представительного органа муниципального образования | B29: 1 | C29: 3 | D29: 21100 | E29: 0 | F29: 651.5 | G29: 684.3
A30: Выполнение функций органами местного самоуправления | B30: 1 | C30: 3 | D30: 21100 | E30: 500 | F30: 651.5 | G30: 684.3
A31: Функционирование Правительства Российской Федерации, высших исполнительных органов государственной власти субъектов Российской Федерации, местных администраций | B31: 1 | C31: 4 | D31: 0 | E31: 0 | F31: 20490.6 | G31: 21389.4
A32: Руководство и управление в сфере установленных функций органов государственной власти субъектов Российской Федерации и органов местного самоуправления | B32: 1 | C32: 4 | D32: 20000 | E32: 0 | F32: 20490.6 | G32: 21389.4
A33: Центральный аппарат | B33: 1 | C33: 4 | D33: 20400 | E33: 0 | F33: 20490.6 | G33: 21389.4
A34: Выполнение функций органами местного самоуправления | B34: 1 | C34: 4 | D34: 20400 | E34: 500 | F34: 20490.6 | G34: 21389.4
A35: Региональные целевые программы | B35: 1 | C35: 4 | D35: 5220000 | E35: 0 | F35: 0 | G35: 0
A36: Долгосрочная целевая программа «Энергосбережение и повышение энергетической эффективности на территории Иркутской области на 2011-2015 годы и на период до 2020 года» | B36: 1 | C36: 4 | D36: 5225400 | E36: 0 | F36: 0 | G36: 0
A37: Выполнение функций органами местного самоуправления | B37: 1 | C37: 4 | D37: 5225400 | E37: 500 | F37: 0 | G37: 0
A38: Целевые программы муниципальных образований | B38: 1 | C38: 4 | D38: 7950000 | E38: 0 | F38: 0 | G38: 0
A39: Долгосрочная целевая программа энергосбережения и повышения энергетической эффективности Черемховского районного муниципального образования на 2010-2015 годы | B39: 1 | C39: 4 | D39: 7951100 | E39: 0 | F39: 0 | G39: 0
A40: Мероприятия по повышению энергетической эффективности | B40: 1 | C40: 4 | D40: 7951100 | E40: 451 | F40: 0 | G40: 0
A41: Обеспечение деятельности финансовых, налоговых и таможенных органов и органов финансового (финансово-бюджетного) надзора | B41: 1 | C41: 6 | D41: 0 | E41: 0 | F41: 7459.3 | G41: 7789.5
A42: Руководство и управление в сфере установленных функций органов государственной власти субъектов Российской Федерации и органов местного самоуправления | B42: 1 | C42: 6 | D42: 20000 | E42: 0 | F42: 7459.3 | G42: 7789.5
A43: Центральный аппарат | B43: 1 | C43: 6 | D43: 20400 | E43: 0 | F43: 6674.1 | G43: 6964.3
A44: Выполнение функций органами местного самоуправления | B44: 1 | C44: 6 | D44: 20400 | E44: 500 | F44: 6674.1 | G44: 6964.3
A45: Руководитель контрольно-счетной палаты муниципального образования и его заместители | B45: 1 | C45: 6 | D45: 22500 | E45: 0 | F45: 785.2 | G45: 825.2
A46: Выполнение функций органами местного самоуправления | B46: 1 | C46: 6 | D46: 22500 | E46: 500 | F46: 785.2 | G46: 825.2
A47: Целевые программы муниципальных образований | B47: 1 | C47: 6 | D47: 7950000 | E47: 0 | F47: 0 | G47: 0
A48: Долгосрочная целевая программа Черемховского районного муниципального образования "Повышение эффективности бюджетных расходов Черемховского районного муниципального образования на 2012-2013 годы" | B48: 1 | C48: 6 | D48: 7950200 | E48: 0 | F48: 0 | G48: 0
A49: Выполнение функций органами местного самоуправления | B49: 1 | C49: 6 | D49: 7950200 | E49: 500 | F49: 0 | G49: 0
A50: Обеспечение проведения выборов и референдумов | B50: 1 | C50: 7 | D50: 0 | E50: 0 | F50: 2500 | G50: 0
A51: Проведение выборов и референдумов | B51: 1 | C51: 7 | D51: 200000 | E51: 0 | F51: 2500 | G51: 0
A52: Проведение выборов и референдумов | B52: 1 | C52: 7 | D52: 200000 | E52: 0 | F52: 2500 | G52: 0
A53: Проведение выборов в представительные органы муниципального образования | B53: 1 | C53: 7 | D53: 200002 | E53: 0 | F53: 2500 | G53: 0
A54: Выполнение функций органами местного самоуправления | B54: 1 | C54: 7 | D54: 200002 | E54: 500 | F54: 2500 | G54: 0
A55: Резервные фонды | B55: 1 | C55: 11 | D55: 0 | E55: 0 | F55: 300 | G55: 300
A56: Резервные фонды | B56: 1 | C56: 11 | D56: 700000 | E56: 0 | F56: 300 | G56: 300
A57: Резервные фонды местных администраций | B57: 1 | C57: 11 | D57: 700500 | E57: 0 | F57: 300 | G57: 300
A58: Выполнение функций органами местного самоуправления | B58: 1 | C58: 11 | D58: 700500 | E58: 500 | F58: 300 | G58: 300
A59: Другие общегосударственные вопросы | B59: 1 | C59: 13 | D59: 0 | E59: 0 | F59: 24080 | G59: 24197
A60: Руководство и управление в сфере установленных функций органов государственной власти субъектов Российской Федерации и органов местного самоуправления | B60: 1 | C60: 13 | D60: 20000 | E60: 0 | F60: 16869.2 | G60: 17486.2
A61: Центральный аппарат | B61: 1 | C61: 13 | D61: 20400 | E61: 0 | F61: 2262.4 | G61: 2351.7
A62: Выполнение функций органами местного самоуправления | B62: 1 | C62: 13 | D62: 20400 | E62: 500 | F62: 2262.4 | G62: 2351.7
A63: Осуществление областных государственных полномочий по хранению, комплектованию, учету и использованию архивных документов, относящихся к государственной собственности Иркутской области | B63: 1 | C63: 13 | D63: 24000 | E63: 0 | F63: 1086 | G63: 1086
A64: Выполнение функций органами местного самоуправления | B64: 1 | C64: 13 | D64: 24000 | E64: 500 | F64: 1086 | G64: 1086
A65: Осуществление областных государственных полномочий по определению персонального состава и обеспечению деятельности административных комиссий | B65: 1 | C65: 13 | D65: 24300 | E65: 0 | F65: 563.6 | G65: 563.6
A66: Выполнение функций органами местного самоуправления | B66: 1 | C66: 13 | D66: 24300 | E66: 500 | F66: 563.6 | G66: 563.6
A67: Осуществление отдельных государственных полномочий в области производства и оборота этилового спирта, алкогольной и спиртосодержащей продукции | B67: 1 | C67: 13 | D67: 24400 | E67: 0 | F67: 404.3 | G67: 430.2
A68: Выполнение функций органами местного самоуправления | B68: 1 | C68: 13 | D68: 24400 | E68: 500 | F68: 404.3 | G68: 430.2
A69: Осуществление отдельных областных государственных полномочий в области охраны труда | B69: 1 | C69: 13 | D69: 24500 | E69: 0 | F69: 563.6 | G69: 563.6
A70: Выполнение функций органами местного самоуправления | B70: 1 | C70: 13 | D70: 24500 | E70: 500 | F70: 563.6 | G70: 563.6
A71: Обеспечение деятельности подведомственных учреждений | B71: 1 | C71: 13 | D71: 29900 | E71: 0 | F71: 11989.3 | G71: 12491.1
A72: Выполнение функций казенными учреждениями | B72: 1 | C72: 13 | D72: 29900 | E72: 001 | F72: 11089.3 | G72: 11591.1
A73: Субсидии бюджетным учреждениям на финансовое обеспечение муниципального задания на оказание муниципальных услуг (выполнение работ) | B73: 1 | C73: 13 | D73: 29900 | E73: 611 | F73: 900 | G73: 900
A74: Реализация государственных функций, связанных с общегосударственным управлением | B74: 1 | C74: 13 | D74: 920000 | E74: 0 | F74: 170.8 | G74: 170.8
A75: Выполнение других обязательств государства | B75: 1 | C75: 13 | D75: 920300 | E75: 0 | F75: 170.8 | G75: 170.8
A76: Выполнение функций органами местного самоуправления | B76: 1 | C76: 13 | D76: 920300 | E76: 500 | F76: 170.8 | G76: 170.8
A77: Учреждения по обеспечению хозяйственного обслуживания | B77: 1 | C77: 13 | D77: 930000 | E77: 0 | F77: 6500 | G77: 6500
A78: Субсидии бюджетным учреждениям на финансовое обеспечение муниципального задания на оказание муниципальных услуг (выполнение работ) | B78: 1 | C78: 13 | D78: 930000 | E78: 611 | F78: 6500 | G78: 6500
A79: Целевые программы муниципальных образований | B79: 1 | C79: 13 | D79: 7950000 | E79: 0 | F79: 540 | G79: 40
A80: Долгосрочная целевая программа "Улучшение условий и охраны труда в Черемховском районе на 2011-2013гг." | B80: 1 | C80: 13 | D80: 7951400 | E80: 0 | F80: 0 | G80: 0
A81: Выполнение функций органами местного самоуправления | B81: 1 | C81: 13 | D81: 7951400 | E81: 500 | F81: 0 | G81: 0
A82: Долгосрочная целевая программа "Инвентаризация муниципальных объектов недвижимости Черемховского районного муниципального образования на 2012-2014 годы" | B82: 1 | C82: 13 | D82: 7951900 | E82: 0 | F82: 500 | G82: 0
A83: Выполнение функций органами местного самоуправления | B83: 1 | C83: 13 | D83: 7951900 | E83: 500 | F83: 500 | G83: 0
A84: Комплексная программа "Профилактика правонарушений в Черемховском районном муниципальном образовании на 2013-2016 годы" | B84: 1 | C84: 13 | D84: 7952600 | E84: 0 | F84: 40 | G84: 40
A85: Выполнение функций органами местного самоуправления | B85: 1 | C85: 13 | D85: 7952600 | E85: 500 | F85: 40 | G85: 40
A86: Долгосрочная целевая программа "Поддержка молодых педагогов на территории Черемховского районного муниципального образования" на 2012-2013 годы | B86: 1 | C86: 13 | D86: 7952700 | E86: 0 | F86: 0 | G86: 0
A87: Выполнение функций органами местного самоуправления | B87: 1 | C87: 13 | D87: 7952700 | E87: 500 | F87: 0 | G87: 0
A88: НАЦИОНАЛЬНАЯ ЭКОНОМИКА | B88: 4 | C88: 0 | D88: 0 | E88: 0 | F88: 3698.1 | G88: 2406.5
A89: Дорожное хозяйство(дорожные фонды) | B89: 4 | C89: 9 | D89: 0 | E89: 0 | F89: 3048.1 | G89: 2406.5
A90: Региональные целевые программы | B90: 4 | C90: 9 | D90: 5220000 | E90: 0 | F90: 0 | G90: 0
A91: Долгосрочная целевая программа "Развитие автомобильных дорог общего пользования регионального или межмуниципального значения и местного значения в Иркутской области на 2011 - 2014 годы" | B91: 4 | C91: 9 | D91: 5224700 | E91: 0 | F91: 0 | G91: 0
A92: Выполнение функций органами местного самоуправления | B92: 4 | C92: 9 | D92: 5224700 | E92: 500 | F92: 0 | G92: 0
A93: Целевые программы муниципальных образований | B93: 4 | C93: 9 | D93: 7950000 | E93: 0 | F93: 3048.1 | G93: 2406.5
A94: Долгосрочная целевая программа "Инвентаризация муниципальных объектов недвижимости Черемховского районного муниципального образования на 2012-2014 годы" | B94: 4 | C94: 9 | D94: 7951900 | E94: 0 | F94: 0 | G94: 0
A95: Выполнение функций органами местного самоуправления | B95: 4 | C95: 9 | D95: 7951900 | E95: 500 | F95: 0 | G95: 0
A96: Долгосрочная целевая программа "Развитие автомобильных дорог Черемховского районного муниципального образования на 2013-2015 годы" | B96: 4 | C96: 9 | D96: 7952300 | E96: 0 | F96: 3048.1 | G96: 2406.5
A97: Выполнение функций органами местного самоуправления | B97: 4 | C97: 9 | D97: 7952300 | E97: 500 | F97: 3048.1 | G97: 2406.5
A98: Другие вопросы в области национальной экономики | B98: 4 | C98: 12 | D98: 0 | E98: 0 | F98: 650 | G98: 0
A99: Мероприятия в области строительства, архитектуры и градостроительства | B99: 4 | C99: 12 | D99: 3380000 | E99: 0 | F99: 0 | G99: 0
A100: Подготовка проектов правил землепользования и застройки муниципальных образований Черемховского районного муниципального образования | B100: 4 | C100: 12 | D100: 3380200 | E100: 0 | F100: 0 | G100: 0
A101: Выполнение функций органами местного самоуправления | B101: 4 | C101: 12 | D101: 3380200 | E101: 500 | F101: 0 | G101: 0
A102: Целевые программы муниципальных образований | B102: 4 | C102: 12 | D102: 7950000 | E102: 0 | F102: 650 | G102: 0
A103: Долгосрочная целевая программа "Инвентаризация муниципальных объектов недвижимости Черемховского районного муниципального образования на 2012-2014 годы" | B103: 4 | C103: 12 | D103: 7951900 | E103: 0 | F103: 500 | G103: 0
A104: Выполнение функций органами местного самоуправления | B104: 4 | C104: 12 | D104: 7951900 | E104: 500 | F104: 500 | G104: 0
A105: Долгосрочная целевая программа "Поддержка и развитие малого и среднего предпринимательства в Черемховском районе" на 2013-2014 годы | B105: 4 | C105: 12 | D105: 7952200 | E105: 0 | F105: 150 | G105: 0
A106: Выполнение функций органами местного самоуправления | B106: 4 | C106: 12 | D106: 7952200 | E106: 500 | F106: 150 | G106: 0
A107: ЖИЛИЩНО-КОММУНАЛЬНОЕ ХОЗЯЙСТВО | B107: 5 | C107: 0 | D107: 0 | E107: 0 | F107: 4258 | G107: 4464.7
A108: Жилищное хозяйство | B108: 5 | C108: 1 | D108: 0 | E108: 0 | F108: 0 | G108: 0
A109: Поддержка жилищного хозяйства | B109: 5 | C109: 1 | D109: 3500000 | E109: 0 | F109: 0 | G109: 0
A110: Мероприятия в области жилищного хозяйства | B110: 5 | C110: 1 | D110: 3500300 | E110: 0 | F110: 0 | G110: 0
A111: Выполнение функций органами местного самоуправления | B111: 5 | C111: 1 | D111: 3500300 | E111: 500 | F111: 0 | G111: 0
A112: Коммунальное хозяйство | B112: 5 | C112: 2 | D112: 0 | E112: 0 | F112: 0 | G112: 0
A113: Региональные целевые программы | B113: 5 | C113: 2 | D113: 5220000 | E113: 0 | F113: 0 | G113: 0
A114: Долгосрочная целевая программа «Энергосбережение и повышение энергетической эффективности на территории Иркутской области на 2011-2015 годы и на период до 2020 года» | B114: 5 | C114: 2 | D114: 5225400 | E114: 0 | F114: 0 | G114: 0
A115: Иные межбюджетные трансферты | B115: 5 | C115: 2 | D115: 5225400 | E115: 017 | F115: 0 | G115: 0
A116: Другие вопросы в области жилищно-коммунального хозяйства | B116: 5 | C116: 5 | D116: 0 | E116: 0 | F116: 4258 | G116: 4464.7
A117: Руководство и управление в сфере установленных функций органов государственной власти субъектов Российской Федерации и органов местного самоуправления | B117: 5 | C117: 5 | D117: 20000 | E117: 0 | F117: 4258 | G117: 4464.7
A118: Центральный аппарат | B118: 5 | C118: 5 | D118: 20400 | E118: 0 | F118: 4258 | G118: 4464.7
A119: Выполнение функций органами местного самоуправления | B119: 5 | C119: 5 | D119: 20400 | E119: 500 | F119: 4258 | G119: 4464.7
A120: ОХРАНА ОКРУЖАЮЩЕЙ СРЕДЫ | B120: 6 | C120: 0 | D120: 0 | E120: 0 | F120: 0 | G120: 0
A121: Другие вопросы в области охраны окружающей среды | B121: 6 | C121: 5 | D121: 0 | E121: 0 | F121: 0 | G121: 0
A122: Состояние окружающей среды и природопользования | B122: 6 | C122: 5 | D122: 4100000 | E122: 0 | F122: 0 | G122: 0
A123: Природоохранные мероприятия | B123: 6 | C123: 5 | D123: 4100100 | E123: 0 | F123: 0 | G123: 0
A124: Выполнение функций органами местного самоуправления | B124: 6 | C124: 5 | D124: 4100100 | E124: 500 | F124: 0 | G124: 0
A125: Региональные целевые программы | B125: 6 | C125: 5 | D125: 5220000 | E125: 0 | F125: 0 | G125: 0
A126: Долгосрочная целевая программа Иркутской области «Защита окружающей среды в Иркутской области на 2011-2015 годы» | B126: 6 | C126: 5 | D126: 5222500 | E126: 0 | F126: 0 | G126: 0
A127: Подпрограмма «Отходы производства и потребления в Иркутской области на 2011-2015 годы» | B127: 6 | C127: 5 | D127: 5222502 | E127: 0 | F127: 0 | G127: 0
A128: Выполнение функций органами местного самоуправления | B128: 6 | C128: 5 | D128: 5222502 | E128: 500 | F128: 0 | G128: 0
A129: ОБРАЗОВАНИЕ | B129: 7 | C129: 0 | D129: 0 | E129: 0 | F129: 348970.3 | G129: 346703.1
A130: Дошкольное образование | B130: 7 | C130: 1 | D130: 0 | E130: 0 | F130: 64603.4 | G130: 62906.1
A131: Детские дошкольные учреждения | B131: 7 | C131: 1 | D131: 4200000 | E131: 0 | F131: 61308.4 | G131: 61441.1
A132: Обеспечение деятельности подведомственных учреждений | B132: 7 | C132: 1 | D132: 4209900 | E132: 0 | F132: 61308.4 | G132: 61441.1
A133: Выполнение функций казенными учреждениями | B133: 7 | C133: 1 | D133: 4209900 | E133: 001 | F133: 61308.4 | G133: 61441.1
A134: Региональные целевые программы | B134: 7 | C134: 1 | D134: 5220000 | E134: 0 | F134: 0 | G134: 0
A135: Областная государственная целевая программа поддержки и развития учреждений дошкольного образования в Иркутской области на 2009-2014 годы | B135: 7 | C135: 1 | D135: 5223700 | E135: 0 | F135: 0 | G135: 0
A136: Выполнение функций казенными учреждениями | B136: 7 | C136: 1 | D136: 5223700 | E136: 001 | F136: 0 | G136: 0
A137: Долгосрочная целевая программа «Энергосбережение и повышение энергетической эффективности на территории Иркутской области на 2011-2015 годы и на период до 2020 года» | B137: 7 | C137: 1 | D137: 5225400 | E137: 0 | F137: 0 | G137: 0
A138: Выполнение функций казенными учреждениями | B138: 7 | C138: 1 | D138: 5225400 | E138: 001 | F138: 0 | G138: 0
A139: Выплата заработной платы с начислениями на нее педагогическим работникам муниципальных дошкольных образовательных учреждений и муниципальных учреждений дополнительного образования | B139: 7 | C139: 1 | D139: 5890000 | E139: 0 | F139: 1465 | G139: 1465
A140: Выполнение функций казенными учреждениями | B140: 7 | C140: 1 | D140: 5890000 | E140: 001 | F140: 1465 | G140: 1465
A141: Целевые программы муниципальных образований | B141: 7 | C141: 1 | D141: 7950000 | E141: 0 | F141: 1830 | G141: 0
A142: Долгосрочная целевая программа Черемховского районного муниципального образования "Повышение эффективности бюджетных расходов Черемховского районного муниципального образования на 2012-2013 годы" | B142: 7 | C142: 1 | D142: 7950200 | E142: 0 | F142: 0 | G142: 0
A143: Выполнение функций казенными учреждениями | B143: 7 | C143: 1 | D143: 7950200 | E143: 001 | F143: 0 | G143: 0
A144: Долгосрочная целевая программа "Безопасность образовательных учреждений на 2010-2014 гг." | B144: 7 | C144: 1 | D144: 7951000 | E144: 0 | F144: 830 | G144: 0
A145: Мероприятия по обеспечению пожарной безопасности | B145: 7 | C145: 1 | D145: 7951000 | E145: 450 | F145: 830 | G145: 0
A146: Долгосрочная целевая программа энергосбережения и повышения энергетической эффективности Черемховского районного муниципального образования на 2010-2015 годы | B146: 7 | C146: 1 | D146: 7951100 | E146: 0 | F146: 600 | G146: 0
A147: Мероприятия по повышению энергетической эффективности | B147: 7 | C147: 1 | D147: 7951100 | E147: 451 | F147: 600 | G147: 0
A148: Долгосрочная целевая программа "Развитие дошкольного образования на 2011-2014 гг." | B148: 7 | C148: 1 | D148: 7951700 | E148: 0 | F148: 0 | G148: 0
A149: Мероприятия в сфере образования | B149: 7 | C149: 1 | D149: 7951700 | E149: 022 | F149: 0 | G149: 0
A150: Долгосрочная целевая программа "Совершенствование дошкольного образования Черемховского района на 2011-2014 гг." | B150: 7 | C150: 1 | D150: 7951800 | E150: 0 | F150: 400 | G150: 0
A151: Мероприятия в сфере образования | B151: 7 | C151: 1 | D151: 7951800 | E151: 022 | F151: 400 | G151: 0
A152: Общее образование | B152: 7 | C152: 2 | D152: 0 | E152: 0 | F152: 276921.3 | G152: 276261.6
A153: Руководство и управление в сфере установленных функций органов государственной власти субъектов Российской Федерации и органов местного самоуправления | B153: 7 | C153: 2 | D153: 20000 | E153: 0 | F153: 238581.5 | G153: 238581.5
A154: Обеспечение государственных гарантий прав граждан на получение общедоступного и бесплатного дошкольного, начального общего, основного общего, среднего (полного) общего образования, а также дополнительного образования в общеобразовательных учреждениях | B154: 7 | C154: 2 | D154: 25000 | E154: 0 | F154: 238581.5 | G154: 238581.5
A155: Выполнение функций казенными учреждениями | B155: 7 | C155: 2 | D155: 25000 | E155: 001 | F155: 238581.5 | G155: 238581.5
A156: Школы - детские сады, школы начальные, неполные средние и средние | B156: 7 | C156: 2 | D156: 4210000 | E156: 0 | F156: 15782.6 | G156: 15808.4
A157: Обеспечение деятельности подведомственных учреждений | B157: 7 | C157: 2 | D157: 4219900 | E157: 0 | F157: 15782.6 | G157: 15808.4
A158: Выполнение функций казенными учреждениями | B158: 7 | C158: 2 | D158: 4219900 | E158: 001 | F158: 15782.6 | G158: 15808.4
A159: Учреждения по внешкольной работе с детьми | B159: 7 | C159: 2 | D159: 4230000 | E159: 0 | F159: 20340.1 | G159: 21257.8
A160: Обеспечение деятельности подведомственных учреждений | B160: 7 | C160: 2 | D160: 4239900 | E160: 0 | F160: 20340.1 | G160: 21257.8
A161: Выполнение функций казенными учреждениями | B161: 7 | C161: 2 | D161: 4239900 | E161: 001 | F161: 20340.1 | G161: 21257.8
A162: Мероприятия в области образования | B162: 7 | C162: 2 | D162: 4360000 | E162: 0 | F162: 0 | G162: 0
A163: Модернизация региональных систем образования | B163: 7 | C163: 2 | D163: 4362100 | E163: 0 | F163: 0 | G163: 0
A164: Модернизация региональных систем образования за счет средств федерального бюджета | B164: 7 | C164: 2 | D164: 4362101 | E164: 0 | F164: 0 | G164: 0
A165: Выполнение функций казенными учреждениями | B165: 7 | C165: 2 | D165: 4362101 | E165: 001 | F165: 0 | G165: 0
A166: Иные безвозмездные и безвозвратные перечисления | B166: 7 | C166: 2 | D166: 5200000 | E166: 0 | F166: 0 | G166: 0
A167: Ежемесячное денежное вознаграждение за классное руководство | B167: 7 | C167: 2 | D167: 5200900 | E167: 0 | F167: 0 | G167: 0
A168: Выполнение функций казенными учреждениями | B168: 7 | C168: 2 | D168: 5200900 | E168: 001 | F168: 0 | G168: 0
A169: Региональные целевые программы | B169: 7 | C169: 2 | D169: 5220000 | E169: 0 | F169: 0 | G169: 0
A170: Долгосрочная целевая программа «Модернизация объектов коммунальной инфраструктуры Иркутской области на 2011-2013 годы» | B170: 7 | C170: 2 | D170: 5222000 | E170: 0 | F170: 0 | G170: 0
A171: Подпрограмма «Подготовка объектов коммунальной инфраструктуры Иркутской области к отопительному сезону в 2011-2013 годах» | B171: 7 | C171: 2 | D171: 5222001 | E171: 0 | F171: 0 | G171: 0
A172: Выполнение функций казенными учреждениями | B172: 7 | C172: 2 | D172: 5222001 | E172: 001 | F172: 0 | G172: 0
A173: Долгосрочная целевая программа «Энергосбережение и повышение энергетической эффективности на территории Иркутской области на 2011-2015 годы и на период до 2020 года» | B173: 7 | C173: 2 | D173: 5225400 | E173: 0 | F173: 0 | G173: 0
A174: Выполнение функций казенными учреждениями | B174: 7 | C174: 2 | D174: 5225400 | E174: 001 | F174: 0 | G174: 0
A175: Выплата заработной платы с начислениями на нее педагогическим работникам муниципальных дошкольных образовательных учреждений и муниципальных учреждений дополнительного образования | B175: 7 | C175: 2 | D175: 5890000 | E175: 0 | F175: 540.1 | G175: 540.1
A176: Выполнение функций казенными учреждениями | B176: 7 | C176: 2 | D176: 5890000 | E176: 001 | F176: 540.1 | G176: 540.1
A177: Целевые программы муниципальных образований | B177: 7 | C177: 2 | D177: 7950000 | E177: 0 | F177: 1677 | G177: 73.8
A178: Долгосрочная целевая программа Черемховского районного муниципального образования "Повышение эффективности бюджетных расходов Черемховского районного муниципального образования на 2012-2013 годы" | B178: 7 | C178: 2 | D178: 7950200 | E178: 0 | F178: 0 | G178: 0
A179: Выполнение функций казенными учреждениями | B179: 7 | C179: 2 | D179: 7950200 | E179: 001 | F179: 0 | G179: 0
A180: Долгосрочная целевая программа "Безопасность образовательных учреждений на 2010-2014 гг." | B180: 7 | C180: 2 | D180: 7951000 | E180: 0 | F180: 970 | G180: 0
A181: Мероприятия по обеспечению пожарной безопасности | B181: 7 | C181: 2 | D181: 7951000 | E181: 450 | F181: 970 | G181: 0
A182: Долгосрочная целевая программа энергосбережения и повышения энергетической эффективности Черемховского районного муниципального образования на 2010-2015 годы | B182: 7 | C182: 2 | D182: 7951100 | E182: 0 | F182: 0 | G182: 0
A183: Мероприятия по повышению энергетической эффективности | B183: 7 | C183: 2 | D183: 7951100 | E183: 451 | F183: 0 | G183: 0
A184: Долгосрочная целевая программа "Ветхие школы Черемховского района" на 2011-2013 гг. | B184: 7 | C184: 2 | D184: 7951500 | E184: 0 | F184: 0 | G184: 0
A185: Мероприятия в сфере образования | B185: 7 | C185: 2 | D185: 7951500 | E185: 022 | F185: 0 | G185: 0
A186: Долгосрочная целевая программа "Совершенствование организации питания в образовательных учреждениях Черемховского района на 2011-2013гг." | B186: 7 | C186: 2 | D186: 7951600 | E186: 0 | F186: 600 | G186: 0
A187: Мероприятия в сфере образования | B187: 7 | C187: 2 | D187: 7951600 | E187: 022 | F187: 600 | G187: 0
A188: Долгосрочная целевая программа "Развитие культуры в Черемховском районном муниципальном образовании на период 2012-2016 гг." | B188: 7 | C188: 2 | D188: 7952000 | E188: 0 | F188: 107 | G188: 73.8
A189: Мероприятия по поддержке и развитию культуры, искусства, кинематографии | B189: 7 | C189: 2 | D189: 7952000 | E189: 023 | F189: 107 | G189: 73.8
A190: Профессиональная подготовка, переподготовка и повышение квалификации | B190: 7 | C190: 5 | D190: 0 | E190: 0 | F190: 127 | G190: 127
A191: Мероприятия по переподготовке и повышению квалификации | B191: 7 | C191: 5 | D191: 4340000 | E191: 0 | F191: 127 | G191: 127
A192: Выполнение функций казенными учреждениями | B192: 7 | C192: 5 | D192: 4340000 | E192: 001 | F192: 127 | G192: 127
A193: Выполнение функций органами местного самоуправления | B193: 7 | C193: 5 | D193: 4340000 | E193: 500 | F193: 0 | G193: 0
A194: Молодежная политика и оздоровление детей | B194: 7 | C194: 7 | D194: 0 | E194: 0 | F194: 212 | G194: 212
A195: Организационно-воспитательная работа с молодежью | B195: 7 | C195: 7 | D195: 4310000 | E195: 0 | F195: 46 | G195: 46
A196: Проведение мероприятий для детей и молодежи | B196: 7 | C196: 7 | D196: 4310100 | E196: 0 | F196: 46 | G196: 46
A197: Проведение мероприятия для детей и молодежи | B197: 7 | C197: 7 | D197: 4310100 | E197: 447 | F197: 46 | G197: 46
A198: Мероприятия по проведению оздоровительной кампании детей | B198: 7 | C198: 7 | D198: 4320000 | E198: 0 | F198: 126 | G198: 126
A199: Оплата стоимости набора продуктов питания для детей в организованных органами местного самоуправления оздоровительных лагерях с дневным пребыванием детей за счет средств областного бюджета | B199: 7 | C199: 7 | D199: 4320300 | E199: 0 | F199: 126 | G199: 126
A200: Оплата стоимости набора продуктов питания для детей в организованных органами местного самоуправления оздоровительных лагерях с дневным пребыванием детей за счет средств местного бюджета | B200: 7 | C200: 7 | D200: 4320302 | E200: 0 | F200: 126 | G200: 126
A201: Выполнение функций казенными учреждениями | B201: 7 | C201: 7 | D201: 4320302 | E201: 001 | F201: 126 | G201: 126
A202: Региональные целевые программы | B202: 7 | C202: 7 | D202: 5220000 | E202: 0 | F202: 0 | G202: 0
A203: Долгосрочная целевая программа Иркутской области "Организация и обеспечение отдыха и оздоровления детей в Иркутской области на 2012-2014гг." | B203: 7 | C203: 7 | D203: 5226200 | E203: 0 | F203: 0 | G203: 0
A204: Выполнение функций казенными учреждениями | B204: 7 | C204: 7 | D204: 5226200 | E204: 001 | F204: 0 | G204: 0
A205: Целевые программы муниципальных образований | B205: 7 | C205: 7 | D205: 7950000 | E205: 0 | F205: 40 | G205: 40
A206: Долгосрочная целевая программа "Комплексные меры профилактики злоупотребления наркотическими средствами и психотропными веществами в Черемховском районном муниципальном образовании на 2011-2013 гг." | B206: 7 | C206: 7 | D206: 7951300 | E206: 0 | F206: 0 | G206: 0
A207: Выполнение функций органами местного самоуправления | B207: 7 | C207: 7 | D207: 7951300 | E207: 500 | F207: 0 | G207: 0
A208: Долгосрочная целевая программа "Молодежная политика в Черемховском районном муниципальном образовании" на 2013-2015 гг. | B208: 7 | C208: 7 | D208: 7952500 | E208: 0 | F208: 40 | G208: 40
A209: Проведение мероприятия для детей и молодежи | B209: 7 | C209: 7 | D209: 7952500 | E209: 447 | F209: 40 | G209: 40
A210: Другие вопросы в области образования | B210: 7 | C210: 9 | D210: 0 | E210: 0 | F210: 7106.6 | G210: 7196.4
A211: Руководство и управление в сфере установленных функций органов государственной власти субъектов Российской Федерации и органов местного самоуправления | B211: 7 | C211: 9 | D211: 20000 | E211: 0 | F211: 2106.6 | G211: 2196.4
A212: Центральный аппарат | B212: 7 | C212: 9 | D212: 20400 | E212: 0 | F212: 2106.6 | G212: 2196.4
A213: Выполнение функций органами местного самоуправления | B213: 7 | C213: 9 | D213: 20400 | E213: 500 | F213: 2106.6 | G213: 2196.4
A214: Учебно-методические кабинеты, централизованные бухгалтерии, группы хозяйственного обслуживания, учебные фильмотеки, межшкольные учебно-производственные комбинаты, логопедические пункты | B214: 7 | C214: 9 | D214: 4520000 | E214: 0 | F214: 5000 | G214: 5000
A215: Субсидии бюджетным учреждениям на финансовое обеспечение муниципального задания на оказание муниципальных услуг (выполнение работ) | B215: 7 | C215: 9 | D215: 4520000 | E215: 611 | F215: 5000 | G215: 5000
... 98 more rows

Sheet прил6
A16: Распределение бюджетных ассигнований по разделам и подразделам классификации расходов бюджетов Черемховского районного муниципального образования на 2013 год
A19: Наименование показателя | B19: Код | F19: Сумма , тыс. руб.
B20: раздела | C20: подраздела | D20: целевой статьи | E20: вида расходов
A21: 1 | B21: 2 | C21: 3 | D21: 4 | E21: 5 | F21: 6
A22: ОБЩЕГОСУДАРСТВЕННЫЕ ВОПРОСЫ | B22: 1 | C22: 0 | D22: 0 | E22: 0 | F22: 72193.1
A23: Функционирование высшего должностного лица субъекта Российской Федерации и муниципального образования | B23: 1 | C23: 2 | D23: 0 | E23: 0 | F23: 2412
A24: Руководство и управление в сфере установленных функций органов государственной власти субъектов Российской Федерации и органов местного самоуправления | B24: 1 | C24: 2 | D24: 20000 | E24: 0 | F24: 2412
A25: Глава муниципального образования | B25: 1 | C25: 2 | D25: 20300 | E25: 0 | F25: 2412
A26: Выполнение функций органами местного самоуправления | B26: 1 | C26: 2 | D26: 20300 | E26: 500 | F26: 2412
A27: Функционирование законодательных (представительных) органов государственной власти и представительных органов муниципальных образований | B27: 1 | C27: 3 | D27: 0 | E27: 0 | F27: 1321.1
A28: Руководство и управление в сфере установленных функций органов государственной власти субъектов Российской Федерации и органов местного самоуправления | B28: 1 | C28: 3 | D28: 20000 | E28: 0 | F28: 1321.1
A29: Центральный аппарат | B29: 1 | C29: 3 | D29: 20400 | E29: 0 | F29: 401.1
A30: Выполнение функций органами местного самоуправления | B30: 1 | C30: 3 | D30: 20400 | E30: 500 | F30: 401.1
A31: Председатель представительного органа муниципального образования | B31: 1 | C31: 3 | D31: 21100 | E31: 0 | F31: 920
A32: Выполнение функций органами местного самоуправления | B32: 1 | C32: 3 | D32: 21100 | E32: 500 | F32: 920
A33: Функционирование Правительства Российской Федерации, высших исполнительных органов государственной власти субъектов Российской Федерации, местных администраций | B33: 1 | C33: 4 | D33: 0 | E33: 0 | F33: 26024.3
A34: Руководство и управление в сфере установленных функций органов государственной власти субъектов Российской Федерации и органов местного самоуправления | B34: 1 | C34: 4 | D34: 20000 | E34: 0 | F34: 25963.4
A35: Центральный аппарат | B35: 1 | C35: 4 | D35: 20400 | E35: 0 | F35: 25963.4
A36: Выполнение функций органами местного самоуправления | B36: 1 | C36: 4 | D36: 20400 | E36: 500 | F36: 25963.4
A37: Региональные целевые программы | B37: 1 | C37: 4 | D37: 5220000 | E37: 0 | F37: 42.6
A38: Долгосрочная целевая программа «Энергосбережение и повышение энергетической эффективности на территории Иркутской области на 2011-2015 годы и на период до 2020 года» | B38: 1 | C38: 4 | D38: 5225400 | E38: 0 | F38: 42.6
A39: Выполнение функций органами местного самоуправления | B39: 1 | C39: 4 | D39: 5225400 | E39: 500 | F39: 42.6
A40: Целевые программы муниципальных образований | B40: 1 | C40: 4 | D40: 7950000 | E40: 0 | F40: 18.3
A41: Долгосрочная целевая программа энергосбережения и повышения энергетической эффективности Черемховского районного муниципального образования на 2010-2015 годы | B41: 1 | C41: 4 | D41: 7951100 | E41: 0 | F41: 18.3
A42: Мероприятия по повышению энергетической эффективности | B42: 1 | C42: 4 | D42: 7951100 | E42: 451 | F42: 18.3
A43: Обеспечение деятельности финансовых, налоговых и таможенных органов и органов финансового (финансово-бюджетного) надзора | B43: 1 | C43: 6 | D43: 0 | E43: 0 | F43: 11159.1
A44: Руководство и управление в сфере установленных функций органов государственной власти субъектов Российской Федерации и органов местного самоуправления | B44: 1 | C44: 6 | D44: 20000 | E44: 0 | F44: 10959.1
A45: Центральный аппарат | B45: 1 | C45: 6 | D45: 20400 | E45: 0 | F45: 9843.8
A46: Выполнение функций органами местного самоуправления | B46: 1 | C46: 6 | D46: 20400 | E46: 500 | F46: 9843.8
A47: Руководитель контрольно-счетной палаты муниципального образования и его заместители | B47: 1 | C47: 6 | D47: 22500 | E47: 0 | F47: 1115.3
A48: Выполнение функций органами местного самоуправления | B48: 1 | C48: 6 | D48: 22500 | E48: 500 | F48: 1115.3
A49: Целевые программы муниципальных образований | B49: 1 | C49: 6 | D49: 7950000 | E49: 0 | F49: 200
A50: Долгосрочная целевая программа Черемховского районного муниципального образования "Повышение эффективности бюджетных расходов Черемховского районного муниципального образования на 2012-2013 годы" | B50: 1 | C50: 6 | D50: 7950200 | E50: 0 | F50: 200
A51: Выполнение функций органами местного самоуправления | B51: 1 | C51: 6 | D51: 7950200 | E51: 500 | F51: 200
A52: Обеспечение проведения выборов и референдумов | B52: 1 | C52: 7 | D52: 0 | E52: 0 | F52: 0
A53: Проведение выборов и референдумов | B53: 1 | C53: 7 | D53: 200000 | E53: 0 | F53: 0
A54: Проведение выборов и референдумов | B54: 1 | C54: 7 | D54: 200000 | E54: 0 | F54: 0
A55: Проведение выборов в представительные органы муниципального образования | B55: 1 | C55: 7 | D55: 200002 | E55: 0 | F55: 0
A56: Выполнение функций органами местного самоуправления | B56: 1 | C56: 7 | D56: 200002 | E56: 500 | F56: 0
A57: Резервные фонды | B57: 1 | C57: 11 | D57: 0 | E57: 0 | F57: 300
A58: Резервные фонды | B58: 1 | C58: 11 | D58: 700000 | E58: 0 | F58: 300
A59: Резервные фонды местных администраций | B59: 1 | C59: 11 | D59: 700500 | E59: 0 | F59: 300
A60: Выполнение функций органами местного самоуправления | B60: 1 | C60: 11 | D60: 700500 | E60: 500 | F60: 300
A61: Другие общегосударственные вопросы | B61: 1 | C61: 13 | D61: 0 | E61: 0 | F61: 30976.6
A62: Руководство и управление в сфере установленных функций органов государственной власти субъектов Российской Федерации и органов местного самоуправления | B62: 1 | C62: 13 | D62: 20000 | E62: 0 | F62: 22096.6
A63: Центральный аппарат | B63: 1 | C63: 13 | D63: 20400 | E63: 0 | F63: 3107.1
A64: Выполнение функций органами местного самоуправления | B64: 1 | C64: 13 | D64: 20400 | E64: 500 | F64: 3107.1
A65: Осуществление областных государственных полномочий по хранению, комплектованию, учету и использованию архивных документов, относящихся к государственной собственности Иркутской области | B65: 1 | C65: 13 | D65: 24000 | E65: 0 | F65: 1174
A66: Выполнение функций органами местного самоуправления | B66: 1 | C66: 13 | D66: 24000 | E66: 500 | F66: 1174
A67: Осуществление областных государственных полномочий по определению персонального состава и обеспечению деятельности административных комиссий | B67: 1 | C67: 13 | D67: 24300 | E67: 0 | F67: 604.1
A68: Выполнение функций органами местного самоуправления | B68: 1 | C68: 13 | D68: 24300 | E68: 500 | F68: 604.1
A69: Осуществление отдельных государственных полномочий в области производства и оборота этилового спирта, алкогольной и спиртосодержащей продукции | B69: 1 | C69: 13 | D69: 24400 | E69: 0 | F69: 402.8
A70: Выполнение функций органами местного самоуправления | B70: 1 | C70: 13 | D70: 24400 | E70: 500 | F70: 402.8
A71: Осуществление отдельных областных государственных полномочий в области охраны труда | B71: 1 | C71: 13 | D71: 24500 | E71: 0 | F71: 604.1
A72: Выполнение функций органами местного самоуправления | B72: 1 | C72: 13 | D72: 24500 | E72: 500 | F72: 604.1
A73: Обеспечение деятельности подведомственных учреждений | B73: 1 | C73: 13 | D73: 29900 | E73: 0 | F73: 16204.5
A74: Выполнение функций казенными учреждениями | B74: 1 | C74: 13 | D74: 29900 | E74: 001 | F74: 15304.5
A75: Субсидии бюджетным учреждениям на финансовое обеспечение муниципального задания на оказание муниципальных услуг (выполнение работ) | B75: 1 | C75: 13 | D75: 29900 | E75: 611 | F75: 900
A76: Реализация государственных функций, связанных с общегосударственным управлением | B76: 1 | C76: 13 | D76: 920000 | E76: 0 | F76: 1576.4
A77: Выполнение других обязательств государства | B77: 1 | C77: 13 | D77: 920300 | E77: 0 | F77: 1576.4
A78: Выполнение функций органами местного самоуправления | B78: 1 | C78: 13 | D78: 920300 | E78: 500 | F78: 1576.4
A79: Учреждения по обеспечению хозяйственного обслуживания | B79: 1 | C79: 13 | D79: 930000 | E79: 0 | F79: 6500
A80: Субсидии бюджетным учреждениям на финансовое обеспечение муниципального задания на оказание муниципальных услуг (выполнение работ) | B80: 1 | C80: 13 | D80: 930000 | E80: 611 | F80: 6500
A81: Целевые программы муниципальных образований | B81: 1 | C81: 13 | D81: 7950000 | E81: 0 | F81: 803.6
A82: Долгосрочная целевая программа "Улучшение условий и охраны труда в Черемховском районе на 2011-2013гг." | B82: 1 | C82: 13 | D82: 7951400 | E82: 0 | F82: 15
A83: Выполнение функций органами местного самоуправления | B83: 1 | C83: 13 | D83: 7951400 | E83: 500 | F83: 15
A84: Долгосрочная целевая программа "Инвентаризация муниципальных объектов недвижимости Черемховского районного муниципального образования на 2012-2014 годы" | B84: 1 | C84: 13 | D84: 7951900 | E84: 0 | F84: 648.6
A85: Выполнение функций органами местного самоуправления | B85: 1 | C85: 13 | D85: 7951900 | E85: 500 | F85: 648.6
A86: Комплексная программа "Профилактика правонарушений в Черемховском районном муниципальном образовании на 2013-2016 годы" | B86: 1 | C86: 13 | D86: 7952600 | E86: 0 | F86: 40
A87: Выполнение функций органами местного самоуправления | B87: 1 | C87: 13 | D87: 7952600 | E87: 500 | F87: 40
A88: Долгосрочная целевая программа "Поддержка молодых педагогов на территории Черемховского районного муниципального образования" на 2012-2013 годы | B88: 1 | C88: 13 | D88: 7952700 | E88: 0 | F88: 100
A89: Выполнение функций органами местного самоуправления | B89: 1 | C89: 13 | D89: 7952700 | E89: 500 | F89: 100
A90: НАЦИОНАЛЬНАЯ ЭКОНОМИКА | B90: 4 | C90: 0 | D90: 0 | E90: 0 | F90: 5981.7
A91: Дорожное хозяйство(дорожные фонды) | B91: 4 | C91: 9 | D91: 0 | E91: 0 | F91: 5351.5
A92: Региональные целевые программы | B92: 4 | C92: 9 | D92: 5220000 | E92: 0 | F92: 3829
A93: Долгосрочная целевая программа "Развитие автомобильных дорог общего пользования регионального или межмуниципального значения и местного значения в Иркутской области на 2011 - 2014 годы" | B93: 4 | C93: 9 | D93: 5224700 | E93: 0 | F93: 3829
A94: Выполнение функций органами местного самоуправления | B94: 4 | C94: 9 | D94: 5224700 | E94: 500 | F94: 3829
A95: Целевые программы муниципальных образований | B95: 4 | C95: 9 | D95: 7950000 | E95: 0 | F95: 1522.5
A96: Долгосрочная целевая программа "Инвентаризация муниципальных объектов недвижимости Черемховского районного муниципального образования на 2012-2014 годы" | B96: 4 | C96: 9 | D96: 7951900 | E96: 0 | F96: 1320
A97: Выполнение функций органами местного самоуправления | B97: 4 | C97: 9 | D97: 7951900 | E97: 500 | F97: 1320
A98: Долгосрочная целевая программа "Развитие автомобильных дорог Черемховского районного муниципального образования на 2013-2015 годы" | B98: 4 | C98: 9 | D98: 7952300 | E98: 0 | F98: 202.5
A99: Выполнение функций органами местного самоуправления | B99: 4 | C99: 9 | D99: 7952300 | E99: 500 | F99: 202.5
A100: Другие вопросы в области национальной экономики | B100: 4 | C100: 12 | D100: 0 | E100: 0 | F100: 630.2
A101: Мероприятия в области строительства, архитектуры и градостроительства | B101: 4 | C101: 12 | D101: 3380000 | E101: 0 | F101: 30.2
A102: Подготовка проектов правил землепользования и застройки муниципальных образований Черемховского районного муниципального образования | B102: 4 | C102: 12 | D102: 3380200 | E102: 0 | F102: 30.2
A103: Выполнение функций органами местного самоуправления | B103: 4 | C103: 12 | D103: 3380200 | E103: 500 | F103: 30.2
A104: Целевые программы муниципальных образований | B104: 4 | C104: 12 | D104: 7950000 | E104: 0 | F104: 600
A105: Долгосрочная целевая программа "Инвентаризация муниципальных объектов недвижимости Черемховского районного муниципального образования на 2012-2014 годы" | B105: 4 | C105: 12 | D105: 7951900 | E105: 0 | F105: 500
A106: Выполнение функций органами местного самоуправления | B106: 4 | C106: 12 | D106: 7951900 | E106: 500 | F106: 500
A107: Долгосрочная целевая программа "Поддержка и развитие малого и среднего предпринимательства в Черемховском районе" на 2013-2014 годы | B107: 4 | C107: 12 | D107: 7952200 | E107: 0 | F107: 100
A108: Выполнение функций органами местного самоуправления | B108: 4 | C108: 12 | D108: 7952200 | E108: 500 | F108: 100
A109: ЖИЛИЩНО-КОММУНАЛЬНОЕ ХОЗЯЙСТВО | B109: 5 | C109: 0 | D109: 0 | E109: 0 | F109: 6719.8
A110: Жилищное хозяйство | B110: 5 | C110: 1 | D110: 0 | E110: 0 | F110: 1353.8
A111: Поддержка жилищного хозяйства | B111: 5 | C111: 1 | D111: 3500000 | E111: 0 | F111: 1353.8
A112: Мероприятия в области жилищного хозяйства | B112: 5 | C112: 1 | D112: 3500300 | E112: 0 | F112: 1353.8
A113: Выполнение функций органами местного самоуправления | B113: 5 | C113: 1 | D113: 3500300 | E113: 500 | F113: 1353.8
A114: Коммунальное хозяйство | B114: 5 | C114: 2 | D114: 0 | E114: 0 | F114: 70
A115: Региональные целевые программы | B115: 5 | C115: 2 | D115: 5220000 | E115: 0 | F115: 70
A116: Долгосрочная целевая программа «Энергосбережение и повышение энергетической эффективности на территории Иркутской области на 2011-2015 годы и на период до 2020 года» | B116: 5 | C116: 2 | D116: 5225400 | E116: 0 | F116: 70
A117: Иные межбюджетные трансферты | B117: 5 | C117: 2 | D117: 5225400 | E117: 017 | F117: 70
A118: Другие вопросы в области жилищно-коммунального хозяйства | B118: 5 | C118: 5 | D118: 0 | E118: 0 | F118: 5296
A119: Руководство и управление в сфере установленных функций органов государственной власти субъектов Российской Федерации и органов местного самоуправления | B119: 5 | C119: 5 | D119: 20000 | E119: 0 | F119: 5296
A120: Центральный аппарат | B120: 5 | C120: 5 | D120: 20400 | E120: 0 | F120: 5296
A121: Выполнение функций органами местного самоуправления | B121: 5 | C121: 5 | D121: 20400 | E121: 500 | F121: 5296
A122: ОХРАНА ОКРУЖАЮЩЕЙ СРЕДЫ | B122: 6 | C122: 0 | D122: 0 | E122: 0 | F122: 5150
A123: Другие вопросы в области охраны окружающей среды | B123: 6 | C123: 5 | D123: 0 | E123: 0 | F123: 5150
A124: Состояние окружающей среды и природопользования | B124: 6 | C124: 5 | D124: 4100000 | E124: 0 | F124: 150
A125: Природоохранные мероприятия | B125: 6 | C125: 5 | D125: 4100100 | E125: 0 | F125: 150
A126: Выполнение функций органами местного самоуправления | B126: 6 | C126: 5 | D126: 4100100 | E126: 500 | F126: 150
A127: Региональные целевые программы | B127: 6 | C127: 5 | D127: 5220000 | E127: 0 | F127: 5000
A128: Долгосрочная целевая программа Иркутской области «Защита окружающей среды в Иркутской области на 2011-2015 годы» | B128: 6 | C128: 5 | D128: 5222500 | E128: 0 | F128: 5000
A129: Подпрограмма «Отходы производства и потребления в Иркутской области на 2011-2015 годы» | B129: 6 | C129: 5 | D129: 5222502 | E129: 0 | F129: 5000
A130: Выполнение функций органами местного самоуправления | B130: 6 | C130: 5 | D130: 5222502 | E130: 500 | F130: 5000
A131: ОБРАЗОВАНИЕ | B131: 7 | C131: 0 | D131: 0 | E131: 0 | F131: 471874.6
A132: Дошкольное образование | B132: 7 | C132: 1 | D132: 0 | E132: 0 | F132: 105029.8
A133: Детские дошкольные учреждения | B133: 7 | C133: 1 | D133: 4200000 | E133: 0 | F133: 65397.3
A134: Обеспечение деятельности подведомственных учреждений | B134: 7 | C134: 1 | D134: 4209900 | E134: 0 | F134: 65397.3
A135: Выполнение функций казенными учреждениями | B135: 7 | C135: 1 | D135: 4209900 | E135: 001 | F135: 65397.3
A136: Региональные целевые программы | B136: 7 | C136: 1 | D136: 5220000 | E136: 0 | F136: 3335.8
A137: Областная государственная целевая программа поддержки и развития учреждений дошкольного образования в Иркутской области на 2009-2014 годы | B137: 7 | C137: 1 | D137: 5223700 | E137: 0 | F137: 3027.5
A138: Выполнение функций казенными учреждениями | B138: 7 | C138: 1 | D138: 5223700 | E138: 001 | F138: 3027.5
A139: Долгосрочная целевая программа «Энергосбережение и повышение энергетической эффективности на территории Иркутской области на 2011-2015 годы и на период до 2020 года» | B139: 7 | C139: 1 | D139: 5225400 | E139: 0 | F139: 308.3
A140: Выполнение функций казенными учреждениями | B140: 7 | C140: 1 | D140: 5225400 | E140: 001 | F140: 308.3
A141: Выплата заработной платы с начислениями на нее педагогическим работникам муниципальных дошкольных образовательных учреждений и муниципальных учреждений дополнительного образования | B141: 7 | C141: 1 | D141: 5890000 | E141: 0 | F141: 30529.7
A142: Выполнение функций казенными учреждениями | B142: 7 | C142: 1 | D142: 5890000 | E142: 001 | F142: 30529.7
A143: Целевые программы муниципальных образований | B143: 7 | C143: 1 | D143: 7950000 | E143: 0 | F143: 5767
A144: Долгосрочная целевая программа Черемховского районного муниципального образования "Повышение эффективности бюджетных расходов Черемховского районного муниципального образования на 2012-2013 годы" | B144: 7 | C144: 1 | D144: 7950200 | E144: 0 | F144: 3611
A145: Выполнение функций казенными учреждениями | B145: 7 | C145: 1 | D145: 7950200 | E145: 001 | F145: 3611
A146: Долгосрочная целевая программа "Безопасность образовательных учреждений на 2010-2014 гг." | B146: 7 | C146: 1 | D146: 7951000 | E146: 0 | F146: 572
A147: Мероприятия по обеспечению пожарной безопасности | B147: 7 | C147: 1 | D147: 7951000 | E147: 450 | F147: 572
A148: Долгосрочная целевая программа энергосбережения и повышения энергетической эффективности Черемховского районного муниципального образования на 2010-2015 годы | B148: 7 | C148: 1 | D148: 7951100 | E148: 0 | F148: 132
A149: Мероприятия по повышению энергетической эффективности | B149: 7 | C149: 1 | D149: 7951100 | E149: 451 | F149: 132
A150: Долгосрочная целевая программа "Развитие дошкольного образования на 2011-2014 гг." | B150: 7 | C150: 1 | D150: 7951700 | E150: 0 | F150: 1102
A151: Мероприятия в сфере образования | B151: 7 | C151: 1 | D151: 7951700 | E151: 022 | F151: 1102
A152: Долгосрочная целевая программа "Совершенствование дошкольного образования Черемховского района на 2011-2014 гг." | B152: 7 | C152: 1 | D152: 7951800 | E152: 0 | F152: 350
A153: Мероприятия в сфере образования | B153: 7 | C153: 1 | D153: 7951800 | E153: 022 | F153: 350
A154: Общее образование | B154: 7 | C154: 2 | D154: 0 | E154: 0 | F154: 355560.1
A155: Руководство и управление в сфере установленных функций органов государственной власти субъектов Российской Федерации и органов местного самоуправления | B155: 7 | C155: 2 | D155: 20000 | E155: 0 | F155: 281204.5
A156: Обеспечение государственных гарантий прав граждан на получение общедоступного и бесплатного дошкольного, начального общего, основного общего, среднего (полного) общего образования, а также дополнительного образования в общеобразовательных учреждениях | B156: 7 | C156: 2 | D156: 25000 | E156: 0 | F156: 281204.5
A157: Выполнение функций казенными учреждениями | B157: 7 | C157: 2 | D157: 25000 | E157: 001 | F157: 281204.5
A158: Школы - детские сады, школы начальные, неполные средние и средние | B158: 7 | C158: 2 | D158: 4210000 | E158: 0 | F158: 22043.4
A159: Обеспечение деятельности подведомственных учреждений | B159: 7 | C159: 2 | D159: 4219900 | E159: 0 | F159: 22043.4
A160: Выполнение функций казенными учреждениями | B160: 7 | C160: 2 | D160: 4219900 | E160: 001 | F160: 22043.4
A161: Учреждения по внешкольной работе с детьми | B161: 7 | C161: 2 | D161: 4230000 | E161: 0 | F161: 28842.8
A162: Обеспечение деятельности подведомственных учреждений | B162: 7 | C162: 2 | D162: 4239900 | E162: 0 | F162: 28842.8
A163: Выполнение функций казенными учреждениями | B163: 7 | C163: 2 | D163: 4239900 | E163: 001 | F163: 28842.8
A164: Мероприятия в области образования | B164: 7 | C164: 2 | D164: 4360000 | E164: 0 | F164: 1600
A165: Модернизация региональных систем образования | B165: 7 | C165: 2 | D165: 4362100 | E165: 0 | F165: 1600
A166: Модернизация региональных систем образования за счет средств федерального бюджета | B166: 7 | C166: 2 | D166: 4362101 | E166: 0 | F166: 1600
A167: Выполнение функций казенными учреждениями | B167: 7 | C167: 2 | D167: 4362101 | E167: 001 | F167: 1600
A168: Иные безвозмездные и безвозвратные перечисления | B168: 7 | C168: 2 | D168: 5200000 | E168: 0 | F168: 5000.1
A169: Ежемесячное денежное вознаграждение за классное руководство | B169: 7 | C169: 2 | D169: 5200900 | E169: 0 | F169: 5000.1
A170: Выполнение функций казенными учреждениями | B170: 7 | C170: 2 | D170: 5200900 | E170: 001 | F170: 5000.1
A171: Региональные целевые программы | B171: 7 | C171: 2 | D171: 5220000 | E171: 0 | F171: 2040.1
A172: Долгосрочная целевая программа «Модернизация объектов коммунальной инфраструктуры Иркутской области на 2011-2013 годы» | B172: 7 | C172: 2 | D172: 5222000 | E172: 0 | F172: 1700
A173: Подпрограмма «Подготовка объектов коммунальной инфраструктуры Иркутской области к отопительному сезону в 2011-2013 годах» | B173: 7 | C173: 2 | D173: 5222001 | E173: 0 | F173: 1700
A174: Выполнение функций казенными учреждениями | B174: 7 | C174: 2 | D174: 5222001 | E174: 001 | F174: 1700
A175: Долгосрочная целевая программа «Энергосбережение и повышение энергетической эффективности на территории Иркутской области на 2011-2015 годы и на период до 2020 года» | B175: 7 | C175: 2 | D175: 5225400 | E175: 0 | F175: 340.1
A176: Выполнение функций казенными учреждениями | B176: 7 | C176: 2 | D176: 5225400 | E176: 001 | F176: 340.1
A177: Выплата заработной платы с начислениями на нее педагогическим работникам муниципальных дошкольных образовательных учреждений и муниципальных учреждений дополнительного образования | B177: 7 | C177: 2 | D177: 5890000 | E177: 0 | F177: 1645.5
A178: Выполнение функций казенными учреждениями | B178: 7 | C178: 2 | D178: 5890000 | E178: 001 | F178: 1645.5
A179: Целевые программы муниципальных образований | B179: 7 | C179: 2 | D179: 7950000 | E179: 0 | F179: 13183.7
A180: Долгосрочная целевая программа Черемховского районного муниципального образования "Повышение эффективности бюджетных расходов Черемховского районного муниципального образования на 2012-2013 годы" | B180: 7 | C180: 2 | D180: 7950200 | E180: 0 | F180: 9594.9
A181: Выполнение функций казенными учреждениями | B181: 7 | C181: 2 | D181: 7950200 | E181: 001 | F181: 9594.9
A182: Долгосрочная целевая программа "Безопасность образовательных учреждений на 2010-2014 гг." | B182: 7 | C182: 2 | D182: 7951000 | E182: 0 | F182: 1128
A183: Мероприятия по обеспечению пожарной безопасности | B183: 7 | C183: 2 | D183: 7951000 | E183: 450 | F183: 1128
A184: Долгосрочная целевая программа энергосбережения и повышения энергетической эффективности Черемховского районного муниципального образования на 2010-2015 годы | B184: 7 | C184: 2 | D184: 7951100 | E184: 0 | F184: 468
A185: Мероприятия по повышению энергетической эффективности | B185: 7 | C185: 2 | D185: 7951100 | E185: 451 | F185: 468
A186: Долгосрочная целевая программа "Ветхие школы Черемховского района" на 2011-2013 гг. | B186: 7 | C186: 2 | D186: 7951500 | E186: 0 | F186: 900
A187: Мероприятия в сфере образования | B187: 7 | C187: 2 | D187: 7951500 | E187: 022 | F187: 900
A188: Долгосрочная целевая программа "Совершенствование организации питания в образовательных учреждениях Черемховского района на 2011-2013гг." | B188: 7 | C188: 2 | D188: 7951600 | E188: 0 | F188: 1000
A189: Мероприятия в сфере образования | B189: 7 | C189: 2 | D189: 7951600 | E189: 022 | F189: 1000
A190: Долгосрочная целевая программа "Развитие культуры в Черемховском районном муниципальном образовании на период 2012-2016 гг." | B190: 7 | C190: 2 | D190: 7952000 | E190: 0 | F190: 92.8
A191: Мероприятия по поддержке и развитию культуры, искусства, кинематографии | B191: 7 | C191: 2 | D191: 7952000 | E191: 023 | F191: 92.8
A192: Профессиональная подготовка, переподготовка и повышение квалификации | B192: 7 | C192: 5 | D192: 0 | E192: 0 | F192: 215.5
A193: Мероприятия по переподготовке и повышению квалификации | B193: 7 | C193: 5 | D193: 4340000 | E193: 0 | F193: 215.5
A194: Выполнение функций казенными учреждениями | B194: 7 | C194: 5 | D194: 4340000 | E194: 001 | F194: 108.1
A195: Выполнение функций органами местного самоуправления | B195: 7 | C195: 5 | D195: 4340000 | E195: 500 | F195: 107.4
A196: Молодежная политика и оздоровление детей | B196: 7 | C196: 7 | D196: 0 | E196: 0 | F196: 2571.9
A197: Организационно-воспитательная работа с молодежью | B197: 7 | C197: 7 | D197: 4310000 | E197: 0 | F197: 46
A198: Проведение мероприятий для детей и молодежи | B198: 7 | C198: 7 | D198: 4310100 | E198: 0 | F198: 46
A199: Проведение мероприятия для детей и молодежи | B199: 7 | C199: 7 | D199: 4310100 | E199: 447 | F199: 46
A200: Мероприятия по проведению оздоровительной кампании детей | B200: 7 | C200: 7 | D200: 4320000 | E200: 0 | F200: 123.8
A201: Оплата стоимости набора продуктов питания для детей в организованных органами местного самоуправления оздоровительных лагерях с дневным пребыванием детей за счет средств областного бюджета | B201: 7 | C201: 7 | D201: 4320300 | E201: 0 | F201: 123.8
A202: Оплата стоимости набора продуктов питания для детей в организованных органами местного самоуправления оздоровительных лагерях с дневным пребыванием детей за счет средств местного бюджета | B202: 7 | C202: 7 | D202: 4320302 | E202: 0 | F202: 123.8
A203: Выполнение функций казенными учреждениями | B203: 7 | C203: 7 | D203: 4320302 | E203: 001 | F203: 123.8
A204: Региональные целевые программы | B204: 7 | C204: 7 | D204: 5220000 | E204: 0 | F204: 2352.1
A205: Долгосрочная целевая программа Иркутской области "Организация и обеспечение отдыха и оздоровления детей в Иркутской области на 2012-2014гг." | B205: 7 | C205: 7 | D205: 5226200 | E205: 0 | F205: 2352.1
A206: Выполнение функций казенными учреждениями | B206: 7 | C206: 7 | D206: 5226200 | E206: 001 | F206: 2352.1
A207: Целевые программы муниципальных образований | B207: 7 | C207: 7 | D207: 7950000 | E207: 0 | F207: 50
A208: Долгосрочная целевая программа "Комплексные меры профилактики злоупотребления наркотическими средствами и психотропными веществами в Черемховском районном муниципальном образовании на 2011-2013 гг." | B208: 7 | C208: 7 | D208: 7951300 | E208: 0 | F208: 10
A209: Выполнение функций органами местного самоуправления | B209: 7 | C209: 7 | D209: 7951300 | E209: 500 | F209: 10
A210: Долгосрочная целевая программа "Молодежная политика в Черемховском районном муниципальном образовании" на 2013-2015 гг. | B210: 7 | C210: 7 | D210: 7952500 | E210: 0 | F210: 40
A211: Проведение мероприятия для детей и молодежи | B211: 7 | C211: 7 | D211: 7952500 | E211: 447 | F211: 40
A212: Другие вопросы в области образования | B212: 7 | C212: 9 | D212: 0 | E212: 0 | F212: 8497.3
A213: Руководство и управление в сфере установленных функций органов государственной власти субъектов Российской Федерации и органов местного самоуправления | B213: 7 | C213: 9 | D213: 20000 | E213: 0 | F213: 2997.3
A214: Центральный аппарат | B214: 7 | C214: 9 | D214: 20400 | E214: 0 | F214: 2997.3
A215: Выполнение функций органами местного самоуправления | B215: 7 | C215: 9 | D215: 20400 | E215: 500 | F215: 2997.3
A216: Учебно-методические кабинеты, централизованные бухгалтерии, группы хозяйственного обслуживания, учебные фильмотеки, межшкольные учебно-производственные комбинаты, логопедические пункты | B216: 7 | C216: 9 | D216: 4520000 | E216: 0 | F216: 5500
A217: Субсидии бюджетным учреждениям на финансовое обеспечение муниципального задания на оказание муниципальных услуг (выполнение работ) | B217: 7 | C217: 9 | D217: 4520000 | E217: 611 | F217: 5500
... 98 more rows

Sheet прил7
A14: Распределение бюджетных ассигнований по разделам, подразделам классификации расходов бюджетов на плановый период 2014 и 2015 годов
A17: Наименование показателя | B17: Код | F17: Сумма, тыс.руб.
B18: раздела | C18: подраздела | D18: целевой статьи | E18: вида расходов | F18: 2014 | G18: 2015
A19: 1 | B19: 2 | C19: 3 | D19: 4 | E19: 5 | F19: 6 | G19: 7
A20: ОБЩЕГОСУДАРСТВЕННЫЕ ВОПРОСЫ | B20: 1 | C20: 0 | D20: 0 | E20: 0 | F20: 57173.4 | G20: 56134.3
A21: Функционирование высшего должностного лица субъекта Российской Федерации и муниципального образования | B21: 1 | C21: 2 | D21: 0 | E21: 0 | F21: 1403 | G21: 1472.1
A22: Руководство и управление в сфере установленных функций органов государственной власти субъектов Российской Федерации и органов местного самоуправления | B22: 1 | C22: 2 | D22: 20000 | E22: 0 | F22: 1403 | G22: 1472.1
A23: Глава муниципального образования | B23: 1 | C23: 2 | D23: 20300 | E23: 0 | F23: 1403 | G23: 1472.1
A24: Выполнение функций органами местного самоуправления | B24: 1 | C24: 2 | D24: 20300 | E24: 500 | F24: 1403 | G24: 1472.1
A25: Функционирование законодательных (представительных) органов государственной власти и представительных органов муниципальных образований | B25: 1 | C25: 3 | D25: 0 | E25: 0 | F25: 940.5 | G25: 986.3
A26: Руководство и управление в сфере установленных функций органов государственной власти субъектов Российской Федерации и органов местного самоуправления | B26: 1 | C26: 3 | D26: 20000 | E26: 0 | F26: 940.5 | G26: 986.3
A27: Центральный аппарат | B27: 1 | C27: 3 | D27: 20400 | E27: 0 | F27: 289 | G27: 302
A28: Выполнение функций органами местного самоуправления | B28: 1 | C28: 3 | D28: 20400 | E28: 500 | F28: 289 | G28: 302
A29: Председатель представительного органа муниципального образования | B29: 1 | C29: 3 | D29: 21100 | E29: 0 | F29: 651.5 | G29: 684.3
A30: Выполнение функций органами местного самоуправления | B30: 1 | C30: 3 | D30: 21100 | E30: 500 | F30: 651.5 | G30: 684.3
A31: Функционирование Правительства Российской Федерации, высших исполнительных органов государственной власти субъектов Российской Федерации, местных администраций | B31: 1 | C31: 4 | D31: 0 | E31: 0 | F31: 20490.6 | G31: 21389.4
A32: Руководство и управление в сфере установленных функций органов государственной власти субъектов Российской Федерации и органов местного самоуправления | B32: 1 | C32: 4 | D32: 20000 | E32: 0 | F32: 20490.6 | G32: 21389.4
A33: Центральный аппарат | B33: 1 | C33: 4 | D33: 20400 | E33: 0 | F33: 20490.6 | G33: 21389.4
A34: Выполнение функций органами местного самоуправления | B34: 1 | C34: 4 | D34: 20400 | E34: 500 | F34: 20490.6 | G34: 21389.4
A35: Региональные целевые программы | B35: 1 | C35: 4 | D35: 5220000 | E35: 0 | F35: 0 | G35: 0
A36: Долгосрочная целевая программа «Энергосбережение и повышение энергетической эффективности на территории Иркутской области на 2011-2015 годы и на период до 2020 года» | B36: 1 | C36: 4 | D36: 5225400 | E36: 0 | F36: 0 | G36: 0
A37: Выполнение функций органами местного самоуправления | B37: 1 | C37: 4 | D37: 5225400 | E37: 500 | F37: 0 | G37: 0
A38: Целевые программы муниципальных образований | B38: 1 | C38: 4 | D38: 7950000 | E38: 0 | F38: 0 | G38: 0
A39: Долгосрочная целевая программа энергосбережения и повышения энергетической эффективности Черемховского районного муниципального образования на 2010-2015 годы | B39: 1 | C39: 4 | D39: 7951100 | E39: 0 | F39: 0 | G39: 0
A40: Мероприятия по повышению энергетической эффективности | B40: 1 | C40: 4 | D40: 7951100 | E40: 451 | F40: 0 | G40: 0
A41: Обеспечение деятельности финансовых, налоговых и таможенных органов и органов финансового (финансово-бюджетного) надзора | B41: 1 | C41: 6 | D41: 0 | E41: 0 | F41: 7459.3 | G41: 7789.5
A42: Руководство и управление в сфере установленных функций органов государственной власти субъектов Российской Федерации и органов местного самоуправления | B42: 1 | C42: 6 | D42: 20000 | E42: 0 | F42: 7459.3 | G42: 7789.5
A43: Центральный аппарат | B43: 1 | C43: 6 | D43: 20400 | E43: 0 | F43: 6674.1 | G43: 6964.3
A44: Выполнение функций органами местного самоуправления | B44: 1 | C44: 6 | D44: 20400 | E44: 500 | F44: 6674.1 | G44: 6964.3
A45: Руководитель контрольно-счетной палаты муниципального образования и его заместители | B45: 1 | C45: 6 | D45: 22500 | E45: 0 | F45: 785.2 | G45: 825.2
A46: Выполнение функций органами местного самоуправления | B46: 1 | C46: 6 | D46: 22500 | E46: 500 | F46: 785.2 | G46: 825.2
A47: Целевые программы муниципальных образований | B47: 1 | C47: 6 | D47: 7950000 | E47: 0 | F47: 0 | G47: 0
A48: Долгосрочная целевая программа Черемховского районного муниципального образования "Повышение эффективности бюджетных расходов Черемховского районного муниципального образования на 2012-2013 годы" | B48: 1 | C48: 6 | D48: 7950200 | E48: 0 | F48: 0 | G48: 0
A49: Выполнение функций органами местного самоуправления | B49: 1 | C49: 6 | D49: 7950200 | E49: 500 | F49: 0 | G49: 0
A50: Обеспечение проведения выборов и референдумов | B50: 1 | C50: 7 | D50: 0 | E50: 0 | F50: 2500 | G50: 0
A51: Проведение выборов и референдумов | B51: 1 | C51: 7 | D51: 200000 | E51: 0 | F51: 2500 | G51: 0
A52: Проведение выборов и референдумов | B52: 1 | C52: 7 | D52: 200000 | E52: 0 | F52: 2500 | G52: 0
A53: Проведение выборов в представительные органы муниципального образования | B53: 1 | C53: 7 | D53: 200002 | E53: 0 | F53: 2500 | G53: 0
A54: Выполнение функций органами местного самоуправления | B54: 1 | C54: 7 | D54: 200002 | E54: 500 | F54: 2500 | G54: 0
A55: Резервные фонды | B55: 1 | C55: 11 | D55: 0 | E55: 0 | F55: 300 | G55: 300
A56: Резервные фонды | B56: 1 | C56: 11 | D56: 700000 | E56: 0 | F56: 300 | G56: 300
A57: Резервные фонды местных администраций | B57: 1 | C57: 11 | D57: 700500 | E57: 0 | F57: 300 | G57: 300
A58: Выполнение функций органами местного самоуправления | B58: 1 | C58: 11 | D58: 700500 | E58: 500 | F58: 300 | G58: 300
A59: Другие общегосударственные вопросы | B59: 1 | C59: 13 | D59: 0 | E59: 0 | F59: 24080 | G59: 24197
A60: Руководство и управление в сфере установленных функций органов государственной власти субъектов Российской Федерации и органов местного самоуправления | B60: 1 | C60: 13 | D60: 20000 | E60: 0 | F60: 16869.2 | G60: 17486.2
A61: Центральный аппарат | B61: 1 | C61: 13 | D61: 20400 | E61: 0 | F61: 2262.4 | G61: 2351.7
A62: Выполнение функций органами местного самоуправления | B62: 1 | C62: 13 | D62: 20400 | E62: 500 | F62: 2262.4 | G62: 2351.7
A63: Осуществление областных государственных полномочий по хранению, комплектованию, учету и использованию архивных документов, относящихся к государственной собственности Иркутской области | B63: 1 | C63: 13 | D63: 24000 | E63: 0 | F63: 1086 | G63: 1086
A64: Выполнение функций органами местного самоуправления | B64: 1 | C64: 13 | D64: 24000 | E64: 500 | F64: 1086 | G64: 1086
A65: Осуществление областных государственных полномочий по определению персонального состава и обеспечению деятельности административных комиссий | B65: 1 | C65: 13 | D65: 24300 | E65: 0 | F65: 563.6 | G65: 563.6
A66: Выполнение функций органами местного самоуправления | B66: 1 | C66: 13 | D66: 24300 | E66: 500 | F66: 563.6 | G66: 563.6
A67: Осуществление отдельных государственных полномочий в области производства и оборота этилового спирта, алкогольной и спиртосодержащей продукции | B67: 1 | C67: 13 | D67: 24400 | E67: 0 | F67: 404.3 | G67: 430.2
A68: Выполнение функций органами местного самоуправления | B68: 1 | C68: 13 | D68: 24400 | E68: 500 | F68: 404.3 | G68: 430.2
A69: Осуществление отдельных областных государственных полномочий в области охраны труда | B69: 1 | C69: 13 | D69: 24500 | E69: 0 | F69: 563.6 | G69: 563.6
A70: Выполнение функций органами местного самоуправления | B70: 1 | C70: 13 | D70: 24500 | E70: 500 | F70: 563.6 | G70: 563.6
A71: Обеспечение деятельности подведомственных учреждений | B71: 1 | C71: 13 | D71: 29900 | E71: 0 | F71: 11989.3 | G71: 12491.1
A72: Выполнение функций казенными учреждениями | B72: 1 | C72: 13 | D72: 29900 | E72: 001 | F72: 11089.3 | G72: 11591.1
A73: Субсидии бюджетным учреждениям на финансовое обеспечение муниципального задания на оказание муниципальных услуг (выполнение работ) | B73: 1 | C73: 13 | D73: 29900 | E73: 611 | F73: 900 | G73: 900
A74: Реализация государственных функций, связанных с общегосударственным управлением | B74: 1 | C74: 13 | D74: 920000 | E74: 0 | F74: 170.8 | G74: 170.8
A75: Выполнение других обязательств государства | B75: 1 | C75: 13 | D75: 920300 | E75: 0 | F75: 170.8 | G75: 170.8
A76: Выполнение функций органами местного самоуправления | B76: 1 | C76: 13 | D76: 920300 | E76: 500 | F76: 170.8 | G76: 170.8
A77: Учреждения по обеспечению хозяйственного обслуживания | B77: 1 | C77: 13 | D77: 930000 | E77: 0 | F77: 6500 | G77: 6500
A78: Субсидии бюджетным учреждениям на финансовое обеспечение муниципального задания на оказание муниципальных услуг (выполнение работ) | B78: 1 | C78: 13 | D78: 930000 | E78: 611 | F78: 6500 | G78: 6500
A79: Целевые программы муниципальных образований | B79: 1 | C79: 13 | D79: 7950000 | E79: 0 | F79: 540 | G79: 40
A80: Долгосрочная целевая программа "Улучшение условий и охраны труда в Черемховском районе на 2011-2013гг." | B80: 1 | C80: 13 | D80: 7951400 | E80: 0 | F80: 0 | G80: 0
A81: Выполнение функций органами местного самоуправления | B81: 1 | C81: 13 | D81: 7951400 | E81: 500 | F81: 0 | G81: 0
A82: Долгосрочная целевая программа "Инвентаризация муниципальных объектов недвижимости Черемховского районного муниципального образования на 2012-2014 годы" | B82: 1 | C82: 13 | D82: 7951900 | E82: 0 | F82: 500 | G82: 0
A83: Выполнение функций органами местного самоуправления | B83: 1 | C83: 13 | D83: 7951900 | E83: 500 | F83: 500 | G83: 0
A84: Комплексная программа "Профилактика правонарушений в Черемховском районном муниципальном образовании на 2013-2016 годы" | B84: 1 | C84: 13 | D84: 7952600 | E84: 0 | F84: 40 | G84: 40
A85: Выполнение функций органами местного самоуправления | B85: 1 | C85: 13 | D85: 7952600 | E85: 500 | F85: 40 | G85: 40
A86: Долгосрочная целевая программа "Поддержка молодых педагогов на территории Черемховского районного муниципального образования" на 2012-2013 годы | B86: 1 | C86: 13 | D86: 7952700 | E86: 0 | F86: 0 | G86: 0
A87: Выполнение функций органами местного самоуправления | B87: 1 | C87: 13 | D87: 7952700 | E87: 500 | F87: 0 | G87: 0
A88: НАЦИОНАЛЬНАЯ ЭКОНОМИКА | B88: 4 | C88: 0 | D88: 0 | E88: 0 | F88: 3698.1 | G88: 2406.5
A89: Дорожное хозяйство(дорожные фонды) | B89: 4 | C89: 9 | D89: 0 | E89: 0 | F89: 3048.1 | G89: 2406.5
A90: Региональные целевые программы | B90: 4 | C90: 9 | D90: 5220000 | E90: 0 | F90: 0 | G90: 0
A91: Долгосрочная целевая программа "Развитие автомобильных дорог общего пользования регионального или межмуниципального значения и местного значения в Иркутской области на 2011 - 2014 годы" | B91: 4 | C91: 9 | D91: 5224700 | E91: 0 | F91: 0 | G91: 0
A92: Выполнение функций органами местного самоуправления | B92: 4 | C92: 9 | D92: 5224700 | E92: 500 | F92: 0 | G92: 0
A93: Целевые программы муниципальных образований | B93: 4 | C93: 9 | D93: 7950000 | E93: 0 | F93: 3048.1 | G93: 2406.5
A94: Долгосрочная целевая программа "Инвентаризация муниципальных объектов недвижимости Черемховского районного муниципального образования на 2012-2014 годы" | B94: 4 | C94: 9 | D94: 7951900 | E94: 0 | F94: 0 | G94: 0
A95: Выполнение функций органами местного самоуправления | B95: 4 | C95: 9 | D95: 7951900 | E95: 500 | F95: 0 | G95: 0
A96: Долгосрочная целевая программа "Развитие автомобильных дорог Черемховского районного муниципального образования на 2013-2015 годы" | B96: 4 | C96: 9 | D96: 7952300 | E96: 0 | F96: 3048.1 | G96: 2406.5
A97: Выполнение функций органами местного самоуправления | B97: 4 | C97: 9 | D97: 7952300 | E97: 500 | F97: 3048.1 | G97: 2406.5
A98: Другие вопросы в области национальной экономики | B98: 4 | C98: 12 | D98: 0 | E98: 0 | F98: 650 | G98: 0
A99: Мероприятия в области строительства, архитектуры и градостроительства | B99: 4 | C99: 12 | D99: 3380000 | E99: 0 | F99: 0 | G99: 0
A100: Подготовка проектов правил землепользования и застройки муниципальных образований Черемховского районного муниципального образования | B100: 4 | C100: 12 | D100: 3380200 | E100: 0 | F100: 0 | G100: 0
A101: Выполнение функций органами местного самоуправления | B101: 4 | C101: 12 | D101: 3380200 | E101: 500 | F101: 0 | G101: 0
A102: Целевые программы муниципальных образований | B102: 4 | C102: 12 | D102: 7950000 | E102: 0 | F102: 650 | G102: 0
A103: Долгосрочная целевая программа "Инвентаризация муниципальных объектов недвижимости Черемховского районного муниципального образования на 2012-2014 годы" | B103: 4 | C103: 12 | D103: 7951900 | E103: 0 | F103: 500 | G103: 0
A104: Выполнение функций органами местного самоуправления | B104: 4 | C104: 12 | D104: 7951900 | E104: 500 | F104: 500 | G104: 0
A105: Долгосрочная целевая программа "Поддержка и развитие малого и среднего предпринимательства в Черемховском районе" на 2013-2014 годы | B105: 4 | C105: 12 | D105: 7952200 | E105: 0 | F105: 150 | G105: 0
A106: Выполнение функций органами местного самоуправления | B106: 4 | C106: 12 | D106: 7952200 | E106: 500 | F106: 150 | G106: 0
A107: ЖИЛИЩНО-КОММУНАЛЬНОЕ ХОЗЯЙСТВО | B107: 5 | C107: 0 | D107: 0 | E107: 0 | F107: 4258 | G107: 4464.7
A108: Жилищное хозяйство | B108: 5 | C108: 1 | D108: 0 | E108: 0 | F108: 0 | G108: 0
A109: Поддержка жилищного хозяйства | B109: 5 | C109: 1 | D109: 3500000 | E109: 0 | F109: 0 | G109: 0
A110: Мероприятия в области жилищного хозяйства | B110: 5 | C110: 1 | D110: 3500300 | E110: 0 | F110: 0 | G110: 0
A111: Выполнение функций органами местного самоуправления | B111: 5 | C111: 1 | D111: 3500300 | E111: 500 | F111: 0 | G111: 0
A112: Коммунальное хозяйство | B112: 5 | C112: 2 | D112: 0 | E112: 0 | F112: 0 | G112: 0
A113: Региональные целевые программы | B113: 5 | C113: 2 | D113: 5220000 | E113: 0 | F113: 0 | G113: 0
A114: Долгосрочная целевая программа «Энергосбережение и повышение энергетической эффективности на территории Иркутской области на 2011-2015 годы и на период до 2020 года» | B114: 5 | C114: 2 | D114: 5225400 | E114: 0 | F114: 0 | G114: 0
A115: Иные межбюджетные трансферты | B115: 5 | C115: 2 | D115: 5225400 | E115: 017 | F115: 0 | G115: 0
A116: Другие вопросы в области жилищно-коммунального хозяйства | B116: 5 | C116: 5 | D116: 0 | E116: 0 | F116: 4258 | G116: 4464.7
A117: Руководство и управление в сфере установленных функций органов государственной власти субъектов Российской Федерации и органов местного самоуправления | B117: 5 | C117: 5 | D117: 20000 | E117: 0 | F117: 4258 | G117: 4464.7
A118: Центральный аппарат | B118: 5 | C118: 5 | D118: 20400 | E118: 0 | F118: 4258 | G118: 4464.7
A119: Выполнение функций органами местного самоуправления | B119: 5 | C119: 5 | D119: 20400 | E119: 500 | F119: 4258 | G119: 4464.7
A120: ОХРАНА ОКРУЖАЮЩЕЙ СРЕДЫ | B120: 6 | C120: 0 | D120: 0 | E120: 0 | F120: 0 | G120: 0
A121: Другие вопросы в области охраны окружающей среды | B121: 6 | C121: 5 | D121: 0 | E121: 0 | F121: 0 | G121: 0
A122: Состояние окружающей среды и природопользования | B122: 6 | C122: 5 | D122: 4100000 | E122: 0 | F122: 0 | G122: 0
A123: Природоохранные мероприятия | B123: 6 | C123: 5 | D123: 4100100 | E123: 0 | F123: 0 | G123: 0
A124: Выполнение функций органами местного самоуправления | B124: 6 | C124: 5 | D124: 4100100 | E124: 500 | F124: 0 | G124: 0
A125: Региональные целевые программы | B125: 6 | C125: 5 | D125: 5220000 | E125: 0 | F125: 0 | G125: 0
A126: Долгосрочная целевая программа Иркутской области «Защита окружающей среды в Иркутской области на 2011-2015 годы» | B126: 6 | C126: 5 | D126: 5222500 | E126: 0 | F126: 0 | G126: 0
A127: Подпрограмма «Отходы производства и потребления в Иркутской области на 2011-2015 годы» | B127: 6 | C127: 5 | D127: 5222502 | E127: 0 | F127: 0 | G127: 0
A128: Выполнение функций органами местного самоуправления | B128: 6 | C128: 5 | D128: 5222502 | E128: 500 | F128: 0 | G128: 0
A129: ОБРАЗОВАНИЕ | B129: 7 | C129: 0 | D129: 0 | E129: 0 | F129: 348970.3 | G129: 346703.1
A130: Дошкольное образование | B130: 7 | C130: 1 | D130: 0 | E130: 0 | F130: 64603.4 | G130: 62906.1
A131: Детские дошкольные учреждения | B131: 7 | C131: 1 | D131: 4200000 | E131: 0 | F131: 61308.4 | G131: 61441.1
A132: Обеспечение деятельности подведомственных учреждений | B132: 7 | C132: 1 | D132: 4209900 | E132: 0 | F132: 61308.4 | G132: 61441.1
A133: Выполнение функций казенными учреждениями | B133: 7 | C133: 1 | D133: 4209900 | E133: 001 | F133: 61308.4 | G133: 61441.1
A134: Региональные целевые программы | B134: 7 | C134: 1 | D134: 5220000 | E134: 0 | F134: 0 | G134: 0
A135: Областная государственная целевая программа поддержки и развития учреждений дошкольного образования в Иркутской области на 2009-2014 годы | B135: 7 | C135: 1 | D135: 5223700 | E135: 0 | F135: 0 | G135: 0
A136: Выполнение функций казенными учреждениями | B136: 7 | C136: 1 | D136: 5223700 | E136: 001 | F136: 0 | G136: 0
A137: Долгосрочная целевая программа «Энергосбережение и повышение энергетической эффективности на территории Иркутской области на 2011-2015 годы и на период до 2020 года» | B137: 7 | C137: 1 | D137: 5225400 | E137: 0 | F137: 0 | G137: 0
A138: Выполнение функций казенными учреждениями | B138: 7 | C138: 1 | D138: 5225400 | E138: 001 | F138: 0 | G138: 0
A139: Выплата заработной платы с начислениями на нее педагогическим работникам муниципальных дошкольных образовательных учреждений и муниципальных учреждений дополнительного образования | B139: 7 | C139: 1 | D139: 5890000 | E139: 0 | F139: 1465 | G139: 1465
A140: Выполнение функций казенными учреждениями | B140: 7 | C140: 1 | D140: 5890000 | E140: 001 | F140: 1465 | G140: 1465
A141: Целевые программы муниципальных образований | B141: 7 | C141: 1 | D141: 7950000 | E141: 0 | F141: 1830 | G141: 0
A142: Долгосрочная целевая программа Черемховского районного муниципального образования "Повышение эффективности бюджетных расходов Черемховского районного муниципального образования на 2012-2013 годы" | B142: 7 | C142: 1 | D142: 7950200 | E142: 0 | F142: 0 | G142: 0
A143: Выполнение функций казенными учреждениями | B143: 7 | C143: 1 | D143: 7950200 | E143: 001 | F143: 0 | G143: 0
A144: Долгосрочная целевая программа "Безопасность образовательных учреждений на 2010-2014 гг." | B144: 7 | C144: 1 | D144: 7951000 | E144: 0 | F144: 830 | G144: 0
A145: Мероприятия по обеспечению пожарной безопасности | B145: 7 | C145: 1 | D145: 7951000 | E145: 450 | F145: 830 | G145: 0
A146: Долгосрочная целевая программа энергосбережения и повышения энергетической эффективности Черемховского районного муниципального образования на 2010-2015 годы | B146: 7 | C146: 1 | D146: 7951100 | E146: 0 | F146: 600 | G146: 0
A147: Мероприятия по повышению энергетической эффективности | B147: 7 | C147: 1 | D147: 7951100 | E147: 451 | F147: 600 | G147: 0
A148: Долгосрочная целевая программа "Развитие дошкольного образования на 2011-2014 гг." | B148: 7 | C148: 1 | D148: 7951700 | E148: 0 | F148: 0 | G148: 0
A149: Мероприятия в сфере образования | B149: 7 | C149: 1 | D149: 7951700 | E149: 022 | F149: 0 | G149: 0
A150: Долгосрочная целевая программа "Совершенствование дошкольного образования Черемховского района на 2011-2014 гг." | B150: 7 | C150: 1 | D150: 7951800 | E150: 0 | F150: 400 | G150: 0
A151: Мероприятия в сфере образования | B151: 7 | C151: 1 | D151: 7951800 | E151: 022 | F151: 400 | G151: 0
A152: Общее образование | B152: 7 | C152: 2 | D152: 0 | E152: 0 | F152: 276921.3 | G152: 276261.6
A153: Руководство и управление в сфере установленных функций органов государственной власти субъектов Российской Федерации и органов местного самоуправления | B153: 7 | C153: 2 | D153: 20000 | E153: 0 | F153: 238581.5 | G153: 238581.5
A154: Обеспечение государственных гарантий прав граждан на получение общедоступного и бесплатного дошкольного, начального общего, основного общего, среднего (полного) общего образования, а также дополнительного образования в общеобразовательных учреждениях | B154: 7 | C154: 2 | D154: 25000 | E154: 0 | F154: 238581.5 | G154: 238581.5
A155: Выполнение функций казенными учреждениями | B155: 7 | C155: 2 | D155: 25000 | E155: 001 | F155: 238581.5 | G155: 238581.5
A156: Школы - детские сады, школы начальные, неполные средние и средние | B156: 7 | C156: 2 | D156: 4210000 | E156: 0 | F156: 15782.6 | G156: 15808.4
A157: Обеспечение деятельности подведомственных учреждений | B157: 7 | C157: 2 | D157: 4219900 | E157: 0 | F157: 15782.6 | G157: 15808.4
A158: Выполнение функций казенными учреждениями | B158: 7 | C158: 2 | D158: 4219900 | E158: 001 | F158: 15782.6 | G158: 15808.4
A159: Учреждения по внешкольной работе с детьми | B159: 7 | C159: 2 | D159: 4230000 | E159: 0 | F159: 20340.1 | G159: 21257.8
A160: Обеспечение деятельности подведомственных учреждений | B160: 7 | C160: 2 | D160: 4239900 | E160: 0 | F160: 20340.1 | G160: 21257.8
A161: Выполнение функций казенными учреждениями | B161: 7 | C161: 2 | D161: 4239900 | E161: 001 | F161: 20340.1 | G161: 21257.8
A162: Мероприятия в области образования | B162: 7 | C162: 2 | D162: 4360000 | E162: 0 | F162: 0 | G162: 0
A163: Модернизация региональных систем образования | B163: 7 | C163: 2 | D163: 4362100 | E163: 0 | F163: 0 | G163: 0
A164: Модернизация региональных систем образования за счет средств федерального бюджета | B164: 7 | C164: 2 | D164: 4362101 | E164: 0 | F164: 0 | G164: 0
A165: Выполнение функций казенными учреждениями | B165: 7 | C165: 2 | D165: 4362101 | E165: 001 | F165: 0 | G165: 0
A166: Иные безвозмездные и безвозвратные перечисления | B166: 7 | C166: 2 | D166: 5200000 | E166: 0 | F166: 0 | G166: 0
A167: Ежемесячное денежное вознаграждение за классное руководство | B167: 7 | C167: 2 | D167: 5200900 | E167: 0 | F167: 0 | G167: 0
A168: Выполнение функций казенными учреждениями | B168: 7 | C168: 2 | D168: 5200900 | E168: 001 | F168: 0 | G168: 0
A169: Региональные целевые программы | B169: 7 | C169: 2 | D169: 5220000 | E169: 0 | F169: 0 | G169: 0
A170: Долгосрочная целевая программа «Модернизация объектов коммунальной инфраструктуры Иркутской области на 2011-2013 годы» | B170: 7 | C170: 2 | D170: 5222000 | E170: 0 | F170: 0 | G170: 0
A171: Подпрограмма «Подготовка объектов коммунальной инфраструктуры Иркутской области к отопительному сезону в 2011-2013 годах» | B171: 7 | C171: 2 | D171: 5222001 | E171: 0 | F171: 0 | G171: 0
A172: Выполнение функций казенными учреждениями | B172: 7 | C172: 2 | D172: 5222001 | E172: 001 | F172: 0 | G172: 0
A173: Долгосрочная целевая программа «Энергосбережение и повышение энергетической эффективности на территории Иркутской области на 2011-2015 годы и на период до 2020 года» | B173: 7 | C173: 2 | D173: 5225400 | E173: 0 | F173: 0 | G173: 0
A174: Выполнение функций казенными учреждениями | B174: 7 | C174: 2 | D174: 5225400 | E174: 001 | F174: 0 | G174: 0
A175: Выплата заработной платы с начислениями на нее педагогическим работникам муниципальных дошкольных образовательных учреждений и муниципальных учреждений дополнительного образования | B175: 7 | C175: 2 | D175: 5890000 | E175: 0 | F175: 540.1 | G175: 540.1
A176: Выполнение функций казенными учреждениями | B176: 7 | C176: 2 | D176: 5890000 | E176: 001 | F176: 540.1 | G176: 540.1
A177: Целевые программы муниципальных образований | B177: 7 | C177: 2 | D177: 7950000 | E177: 0 | F177: 1677 | G177: 73.8
A178: Долгосрочная целевая программа Черемховского районного муниципального образования "Повышение эффективности бюджетных расходов Черемховского районного муниципального образования на 2012-2013 годы" | B178: 7 | C178: 2 | D178: 7950200 | E178: 0 | F178: 0 | G178: 0
A179: Выполнение функций казенными учреждениями | B179: 7 | C179: 2 | D179: 7950200 | E179: 001 | F179: 0 | G179: 0
A180: Долгосрочная целевая программа "Безопасность образовательных учреждений на 2010-2014 гг." | B180: 7 | C180: 2 | D180: 7951000 | E180: 0 | F180: 970 | G180: 0
A181: Мероприятия по обеспечению пожарной безопасности | B181: 7 | C181: 2 | D181: 7951000 | E181: 450 | F181: 970 | G181: 0
A182: Долгосрочная целевая программа энергосбережения и повышения энергетической эффективности Черемховского районного муниципального образования на 2010-2015 годы | B182: 7 | C182: 2 | D182: 7951100 | E182: 0 | F182: 0 | G182: 0
A183: Мероприятия по повышению энергетической эффективности | B183: 7 | C183: 2 | D183: 7951100 | E183: 451 | F183: 0 | G183: 0
A184: Долгосрочная целевая программа "Ветхие школы Черемховского района" на 2011-2013 гг. | B184: 7 | C184: 2 | D184: 7951500 | E184: 0 | F184: 0 | G184: 0
A185: Мероприятия в сфере образования | B185: 7 | C185: 2 | D185: 7951500 | E185: 022 | F185: 0 | G185: 0
A186: Долгосрочная целевая программа "Совершенствование организации питания в образовательных учреждениях Черемховского района на 2011-2013гг." | B186: 7 | C186: 2 | D186: 7951600 | E186: 0 | F186: 600 | G186: 0
A187: Мероприятия в сфере образования | B187: 7 | C187: 2 | D187: 7951600 | E187: 022 | F187: 600 | G187: 0
A188: Долгосрочная целевая программа "Развитие культуры в Черемховском районном муниципальном образовании на период 2012-2016 гг." | B188: 7 | C188: 2 | D188: 7952000 | E188: 0 | F188: 107 | G188: 73.8
A189: Мероприятия по поддержке и развитию культуры, искусства, кинематографии | B189: 7 | C189: 2 | D189: 7952000 | E189: 023 | F189: 107 | G189: 73.8
A190: Профессиональная подготовка, переподготовка и повышение квалификации | B190: 7 | C190: 5 | D190: 0 | E190: 0 | F190: 127 | G190: 127
A191: Мероприятия по переподготовке и повышению квалификации | B191: 7 | C191: 5 | D191: 4340000 | E191: 0 | F191: 127 | G191: 127
A192: Выполнение функций казенными учреждениями | B192: 7 | C192: 5 | D192: 4340000 | E192: 001 | F192: 127 | G192: 127
A193: Выполнение функций органами местного самоуправления | B193: 7 | C193: 5 | D193: 4340000 | E193: 500 | F193: 0 | G193: 0
A194: Молодежная политика и оздоровление детей | B194: 7 | C194: 7 | D194: 0 | E194: 0 | F194: 212 | G194: 212
A195: Организационно-воспитательная работа с молодежью | B195: 7 | C195: 7 | D195: 4310000 | E195: 0 | F195: 46 | G195: 46
A196: Проведение мероприятий для детей и молодежи | B196: 7 | C196: 7 | D196: 4310100 | E196: 0 | F196: 46 | G196: 46
A197: Проведение мероприятия для детей и молодежи | B197: 7 | C197: 7 | D197: 4310100 | E197: 447 | F197: 46 | G197: 46
A198: Мероприятия по проведению оздоровительной кампании детей | B198: 7 | C198: 7 | D198: 4320000 | E198: 0 | F198: 126 | G198: 126
A199: Оплата стоимости набора продуктов питания для детей в организованных органами местного самоуправления оздоровительных лагерях с дневным пребыванием детей за счет средств областного бюджета | B199: 7 | C199: 7 | D199: 4320300 | E199: 0 | F199: 126 | G199: 126
A200: Оплата стоимости набора продуктов питания для детей в организованных органами местного самоуправления оздоровительных лагерях с дневным пребыванием детей за счет средств местного бюджета | B200: 7 | C200: 7 | D200: 4320302 | E200: 0 | F200: 126 | G200: 126
A201: Выполнение функций казенными учреждениями | B201: 7 | C201: 7 | D201: 4320302 | E201: 001 | F201: 126 | G201: 126
A202: Региональные целевые программы | B202: 7 | C202: 7 | D202: 5220000 | E202: 0 | F202: 0 | G202: 0
A203: Долгосрочная целевая программа Иркутской области "Организация и обеспечение отдыха и оздоровления детей в Иркутской области на 2012-2014гг." | B203: 7 | C203: 7 | D203: 5226200 | E203: 0 | F203: 0 | G203: 0
A204: Выполнение функций казенными учреждениями | B204: 7 | C204: 7 | D204: 5226200 | E204: 001 | F204: 0 | G204: 0
A205: Целевые программы муниципальных образований | B205: 7 | C205: 7 | D205: 7950000 | E205: 0 | F205: 40 | G205: 40
A206: Долгосрочная целевая программа "Комплексные меры профилактики злоупотребления наркотическими средствами и психотропными веществами в Черемховском районном муниципальном образовании на 2011-2013 гг." | B206: 7 | C206: 7 | D206: 7951300 | E206: 0 | F206: 0 | G206: 0
A207: Выполнение функций органами местного самоуправления | B207: 7 | C207: 7 | D207: 7951300 | E207: 500 | F207: 0 | G207: 0
A208: Долгосрочная целевая программа "Молодежная политика в Черемховском районном муниципальном образовании" на 2013-2015 гг. | B208: 7 | C208: 7 | D208: 7952500 | E208: 0 | F208: 40 | G208: 40
A209: Проведение мероприятия для детей и молодежи | B209: 7 | C209: 7 | D209: 7952500 | E209: 447 | F209: 40 | G209: 40
A210: Другие вопросы в области образования | B210: 7 | C210: 9 | D210: 0 | E210: 0 | F210: 7106.6 | G210: 7196.4
A211: Руководство и управление в сфере установленных функций органов государственной власти субъектов Российской Федерации и органов местного самоуправления | B211: 7 | C211: 9 | D211: 20000 | E211: 0 | F211: 2106.6 | G211: 2196.4
A212: Центральный аппарат | B212: 7 | C212: 9 | D212: 20400 | E212: 0 | F212: 2106.6 | G212: 2196.4
A213: Выполнение функций органами местного самоуправления | B213: 7 | C213: 9 | D213: 20400 | E213: 500 | F213: 2106.6 | G213: 2196.4
A214: Учебно-методические кабинеты, централизованные бухгалтерии, группы хозяйственного обслуживания, учебные фильмотеки, межшкольные учебно-производственные комбинаты, логопедические пункты | B214: 7 | C214: 9 | D214: 4520000 | E214: 0 | F214: 5000 | G214: 5000
A215: Субсидии бюджетным учреждениям на финансовое обеспечение муниципального задания на оказание муниципальных услуг (выполнение работ) | B215: 7 | C215: 9 | D215: 4520000 | E215: 611 | F215: 5000 | G215: 5000
... 98 more rows

Sheet прил8
A18: Распределение бюджетных ассигнований по разделам, подразделам, целевым статьям и видам расходов классификации расходов бюджетов в ведомственной структуре расходов бюджета Черемховского районного муниципального образования на 2013 год
A21: Наименование показателя | B21: Код | G21: Сумма , тыс. руб.
B22: ГРБС | C22: раздела | D22: подраздела | E22: целевой статьи | F22: вида расходов
A23: 1 | B23: 2 | C23: 3 | D23: 4 | E23: 5 | F23: 6 | G23: 7
A24: Отдел по культуре и библиотечному обслуживанию АЧРМО | B24: 904 | C24: 0 | D24: 0 | E24: 0 | F24: 0 | G24: 26152.4
A25: ОБРАЗОВАНИЕ | B25: 904 | C25: 7 | D25: 0 | E25: 0 | F25: 0 | G25: 5243.4
A26: Общее образование | B26: 904 | C26: 7 | D26: 2 | E26: 0 | F26: 0 | G26: 5235.3
A27: Учреждения по внешкольной работе с детьми | B27: 904 | C27: 7 | D27: 2 | E27: 4230000 | F27: 0 | G27: 4831.5
A28: Обеспечение деятельности подведомственных учреждений | B28: 904 | C28: 7 | D28: 2 | E28: 4239900 | F28: 0 | G28: 4831.5
A29: Выполнение функций казенными учреждениями | B29: 904 | C29: 7 | D29: 2 | E29: 4239900 | F29: 001 | G29: 4831.5
A30: Целевые программы муниципальных образований | B30: 904 | C30: 7 | D30: 2 | E30: 7950000 | F30: 0 | G30: 403.8
A31: Долгосрочная целевая программа Черемховского районного муниципального образования "Повышение эффективности бюджетных расходов Черемховского районного муниципального образования на 2012-2013 годы" | B31: 904 | C31: 7 | D31: 2 | E31: 7950200 | F31: 0 | G31: 311
A32: Выполнение функций казенными учреждениями | B32: 904 | C32: 7 | D32: 2 | E32: 7950200 | F32: 001 | G32: 311
A33: Долгосрочная целевая программа "Развитие культуры в Черемховском районном муниципальном образовании на период 2012-2016 гг." | B33: 904 | C33: 7 | D33: 2 | E33: 7952000 | F33: 0 | G33: 92.8
A34: Мероприятия по поддержке и развитию культуры, искусства, кинематографии | B34: 904 | C34: 7 | D34: 2 | E34: 7952000 | F34: 023 | G34: 92.8
A35: Профессиональная подготовка, переподготовка и повышение квалификации | B35: 904 | C35: 7 | D35: 5 | E35: 0 | F35: 0 | G35: 8.1
A36: Мероприятия по переподготовке и повышению квалификации | B36: 904 | C36: 7 | D36: 5 | E36: 4340000 | F36: 0 | G36: 8.1
A37: Выполнение функций казенными учреждениями | B37: 904 | C37: 7 | D37: 5 | E37: 4340000 | F37: 001 | G37: 8.1
A38: КУЛЬТУРА И КИНЕМАТОГРАФИЯ | B38: 904 | C38: 8 | D38: 0 | E38: 0 | F38: 0 | G38: 20909
A39: Культура | B39: 904 | C39: 8 | D39: 1 | E39: 0 | F39: 0 | G39: 19587.3
A40: Учреждения культуры и мероприятия в сфере культуры и кинематографии | B40: 904 | C40: 8 | D40: 1 | E40: 4400000 | F40: 0 | G40: 6931.2
A41: Комплектование книжных фондов библиотек муниципальных образований и государственных библиотек городов Москвы и Санкт-Петербурга | B41: 904 | C41: 8 | D41: 1 | E41: 4400200 | F41: 0 | G41: 466.3
A42: Комплектование книжных фондов библиотек муниципальных образований и государственных библиотек городов Москвы и Санкт-Петербурга за счет средств федерального бюджета | B42: 904 | C42: 8 | D42: 1 | E42: 4400201 | F42: 0 | G42: 303.6
A43: Выполнение функций казенными учреждениями | B43: 904 | C43: 8 | D43: 1 | E43: 4400201 | F43: 001 | G43: 303.6
A44: Комплектование книжных фондов библиотек муниципальных образований и государственных библиотек городов Москвы и Санкт-Петербурга за счет областного бюджета | B44: 904 | C44: 8 | D44: 1 | E44: 4400202 | F44: 0 | G44: 162.7
A45: Выполнение функций казенными учреждениями | B45: 904 | C45: 8 | D45: 1 | E45: 4400202 | F45: 001 | G45: 162.7
A46: Обеспечение деятельности подведомственных учреждений | B46: 904 | C46: 8 | D46: 1 | E46: 4409900 | F46: 0 | G46: 6464.9
A47: Выполнение функций казенными учреждениями | B47: 904 | C47: 8 | D47: 1 | E47: 4409900 | F47: 001 | G47: 6464.9
A48: Музеи и постоянные выставки | B48: 904 | C48: 8 | D48: 1 | E48: 4410000 | F48: 0 | G48: 1259.9
A49: Обеспечение деятельности подведомственных учреждений | B49: 904 | C49: 8 | D49: 1 | E49: 4419900 | F49: 0 | G49: 1259.9
A50: Выполнение функций казенными учреждениями | B50: 904 | C50: 8 | D50: 1 | E50: 4419900 | F50: 001 | G50: 1259.9
A51: Библиотеки | B51: 904 | C51: 8 | D51: 1 | E51: 4420000 | F51: 0 | G51: 8636.2
A52: Обеспечение деятельности подведомственных учреждений | B52: 904 | C52: 8 | D52: 1 | E52: 4429900 | F52: 0 | G52: 8636.2
A53: Выполнение функций казенными учреждениями | B53: 904 | C53: 8 | D53: 1 | E53: 4429900 | F53: 001 | G53: 8636.2
A54: Региональные целевые программы | B54: 904 | C54: 8 | D54: 1 | E54: 5220000 | F54: 0 | G54: 1000
A55: Долгосрочная целевая программа Иркутской области «100 модельных домов культуры Приангарью» на 2011-2013 годы | B55: 904 | C55: 8 | D55: 1 | E55: 5225500 | F55: 0 | G55: 1000
A56: Выполнение функций казенными учреждениями | B56: 904 | C56: 8 | D56: 1 | E56: 5225500 | F56: 001 | G56: 1000
A57: Целевые программы муниципальных образований | B57: 904 | C57: 8 | D57: 1 | E57: 7950000 | F57: 0 | G57: 1760
A58: Долгосрочная целевая программа Черемховского районного муниципального образования "Повышение эффективности бюджетных расходов Черемховского районного муниципального образования на 2012-2013 годы" | B58: 904 | C58: 8 | D58: 1 | E58: 7950200 | F58: 0 | G58: 547
A59: Выполнение функций казенными учреждениями | B59: 904 | C59: 8 | D59: 1 | E59: 7950200 | F59: 001 | G59: 547
A60: Долгосрочная целевая программа энергосбережения и повышения энергетической эффективности Черемховского районного муниципального образования на 2010-2015 годы | B60: 904 | C60: 8 | D60: 1 | E60: 7951100 | F60: 0 | G60: 282
A61: Мероприятия по повышению энергетической эффективности | B61: 904 | C61: 8 | D61: 1 | E61: 7951100 | F61: 451 | G61: 282
A62: Долгосрочная целевая программа "Развитие культуры в Черемховском районном муниципальном образовании на период 2012-2016 гг." | B62: 904 | C62: 8 | D62: 1 | E62: 7952000 | F62: 0 | G62: 931
A63: Мероприятия по поддержке и развитию культуры, искусства, кинематографии | B63: 904 | C63: 8 | D63: 1 | E63: 7952000 | F63: 023 | G63: 931
A64: Другие вопросы в области культуры, кинематографии | B64: 904 | C64: 8 | D64: 4 | E64: 0 | F64: 0 | G64: 1321.7
A65: Руководство и управление в сфере установленных функций органов государственной власти субъектов Российской Федерации и органов местного самоуправления | B65: 904 | C65: 8 | D65: 4 | E65: 20000 | F65: 0 | G65: 1321.7
A66: Центральный аппарат | B66: 904 | C66: 8 | D66: 4 | E66: 20400 | F66: 0 | G66: 1321.7
A67: Выполнение функций органами местного самоуправления | B67: 904 | C67: 8 | D67: 4 | E67: 20400 | F67: 500 | G67: 1321.7
A68: Отдел образования АЧРМО | B68: 907 | C68: 0 | D68: 0 | E68: 0 | F68: 0 | G68: 472789.6
A69: ОБРАЗОВАНИЕ | B69: 907 | C69: 7 | D69: 0 | E69: 0 | F69: 0 | G69: 466427.8
A70: Дошкольное образование | B70: 907 | C70: 7 | D70: 1 | E70: 0 | F70: 0 | G70: 105029.9
A71: Детские дошкольные учреждения | B71: 907 | C71: 7 | D71: 1 | E71: 4200000 | F71: 0 | G71: 65397.3
A72: Обеспечение деятельности подведомственных учреждений | B72: 907 | C72: 7 | D72: 1 | E72: 4209900 | F72: 0 | G72: 65397.3
A73: Выполнение функций казенными учреждениями | B73: 907 | C73: 7 | D73: 1 | E73: 4209900 | F73: 001 | G73: 65397.3
A74: Региональные целевые программы | B74: 907 | C74: 7 | D74: 1 | E74: 5220000 | F74: 0 | G74: 3335.8
A75: Областная государственная целевая программа поддержки и развития учреждений дошкольного образования в Иркутской области на 2009-2014 годы | B75: 907 | C75: 7 | D75: 1 | E75: 5223700 | F75: 0 | G75: 3027.5
A76: Выполнение функций казенными учреждениями | B76: 907 | C76: 7 | D76: 1 | E76: 5223700 | F76: 001 | G76: 3027.5
A77: Долгосрочная целевая программа «Энергосбережение и повышение энергетической эффективности на территории Иркутской области на 2011-2015 годы и на период до 2020 года» | B77: 907 | C77: 7 | D77: 1 | E77: 5225400 | F77: 0 | G77: 308.3
A78: Выполнение функций казенными учреждениями | B78: 907 | C78: 7 | D78: 1 | E78: 5225400 | F78: 001 | G78: 308.3
A79: Выплата заработной платы с начислениями на нее педагогическим работникам муниципальных дошкольных образовательных учреждений и муниципальных учреждений дополнительного образования | B79: 907 | C79: 7 | D79: 1 | E79: 5890000 | F79: 0 | G79: 30529.8
A80: Выполнение функций казенными учреждениями | B80: 907 | C80: 7 | D80: 1 | E80: 5890000 | F80: 001 | G80: 30529.8
A81: Целевые программы муниципальных образований | B81: 907 | C81: 7 | D81: 1 | E81: 7950000 | F81: 0 | G81: 5767
A82: Долгосрочная целевая программа Черемховского районного муниципального образования "Повышение эффективности бюджетных расходов Черемховского районного муниципального образования на 2012-2013 годы" | B82: 907 | C82: 7 | D82: 1 | E82: 7950200 | F82: 0 | G82: 3611
A83: Выполнение функций казенными учреждениями | B83: 907 | C83: 7 | D83: 1 | E83: 7950200 | F83: 001 | G83: 3611
A84: Долгосрочная целевая программа "Безопасность образовательных учреждений на 2010-2014 гг." | B84: 907 | C84: 7 | D84: 1 | E84: 7951000 | F84: 0 | G84: 572
A85: Мероприятия по обеспечению пожарной безопасности | B85: 907 | C85: 7 | D85: 1 | E85: 7951000 | F85: 450 | G85: 572
A86: Долгосрочная целевая программа энергосбережения и повышения энергетической эффективности Черемховского районного муниципального образования на 2010-2015 годы | B86: 907 | C86: 7 | D86: 1 | E86: 7951100 | F86: 0 | G86: 132
A87: Мероприятия по повышению энергетической эффективности | B87: 907 | C87: 7 | D87: 1 | E87: 7951100 | F87: 451 | G87: 132
A88: Долгосрочная целевая программа "Развитие дошкольного образования на 2011-2014 гг." | B88: 907 | C88: 7 | D88: 1 | E88: 7951700 | F88: 0 | G88: 1102
A89: Мероприятия в сфере образования | B89: 907 | C89: 7 | D89: 1 | E89: 7951700 | F89: 022 | G89: 1102
A90: Долгосрочная целевая программа "Совершенствование дошкольного образования Черемховского района на 2011-2014 гг." | B90: 907 | C90: 7 | D90: 1 | E90: 7951800 | F90: 0 | G90: 350
A91: Мероприятия в сфере образования | B91: 907 | C91: 7 | D91: 1 | E91: 7951800 | F91: 022 | G91: 350
A92: Общее образование | B92: 907 | C92: 7 | D92: 2 | E92: 0 | F92: 0 | G92: 350324.7
A93: Руководство и управление в сфере установленных функций органов государственной власти субъектов Российской Федерации и органов местного самоуправления | B93: 907 | C93: 7 | D93: 2 | E93: 20000 | F93: 0 | G93: 281204.4
A94: Обеспечение государственных гарантий прав граждан на получение общедоступного и бесплатного дошкольного, начального общего, основного общего, среднего (полного) общего образования, а также дополнительного образования в общеобразовательных учреждениях | B94: 907 | C94: 7 | D94: 2 | E94: 25000 | F94: 0 | G94: 281204.4
A95: Выполнение функций казенными учреждениями | B95: 907 | C95: 7 | D95: 2 | E95: 25000 | F95: 001 | G95: 281204.4
A96: Школы - детские сады, школы начальные, неполные средние и средние | B96: 907 | C96: 7 | D96: 2 | E96: 4210000 | F96: 0 | G96: 22043.4
A97: Обеспечение деятельности подведомственных учреждений | B97: 907 | C97: 7 | D97: 2 | E97: 4219900 | F97: 0 | G97: 22043.4
A98: Выполнение функций казенными учреждениями | B98: 907 | C98: 7 | D98: 2 | E98: 4219900 | F98: 001 | G98: 22043.4
A99: Учреждения по внешкольной работе с детьми | B99: 907 | C99: 7 | D99: 2 | E99: 4230000 | F99: 0 | G99: 24011.3
A100: Обеспечение деятельности подведомственных учреждений | B100: 907 | C100: 7 | D100: 2 | E100: 4239900 | F100: 0 | G100: 24011.3
A101: Выполнение функций казенными учреждениями | B101: 907 | C101: 7 | D101: 2 | E101: 4239900 | F101: 001 | G101: 24011.3
A102: Мероприятия в области образования | B102: 907 | C102: 7 | D102: 2 | E102: 4360000 | F102: 0 | G102: 1600
A103: Модернизация региональных систем образования | B103: 907 | C103: 7 | D103: 2 | E103: 4362100 | F103: 0 | G103: 1600
A104: Модернизация региональных систем образования за счет средств федерального бюджета | B104: 907 | C104: 7 | D104: 2 | E104: 4362101 | F104: 0 | G104: 1600
A105: Выполнение функций казенными учреждениями | B105: 907 | C105: 7 | D105: 2 | E105: 4362101 | F105: 001 | G105: 1600
A106: Иные безвозмездные и безвозвратные перечисления | B106: 907 | C106: 7 | D106: 2 | E106: 5200000 | F106: 0 | G106: 5000.1
A107: Ежемесячное денежное вознаграждение за классное руководство | B107: 907 | C107: 7 | D107: 2 | E107: 5200900 | F107: 0 | G107: 5000.1
A108: Выполнение функций казенными учреждениями | B108: 907 | C108: 7 | D108: 2 | E108: 5200900 | F108: 001 | G108: 5000.1
A109: Региональные целевые программы | B109: 907 | C109: 7 | D109: 2 | E109: 5220000 | F109: 0 | G109: 2040.1
A110: Долгосрочная целевая программа «Модернизация объектов коммунальной инфраструктуры Иркутской области на 2011-2013 годы» | B110: 907 | C110: 7 | D110: 2 | E110: 5222000 | F110: 0 | G110: 1700
A111: Подпрограмма «Подготовка объектов коммунальной инфраструктуры Иркутской области к отопительному сезону в 2011-2013 годах» | B111: 907 | C111: 7 | D111: 2 | E111: 5222001 | F111: 0 | G111: 1700
A112: Выполнение функций казенными учреждениями | B112: 907 | C112: 7 | D112: 2 | E112: 5222001 | F112: 001 | G112: 1700
A113: Долгосрочная целевая программа «Энергосбережение и повышение энергетической эффективности на территории Иркутской области на 2011-2015 годы и на период до 2020 года» | B113: 907 | C113: 7 | D113: 2 | E113: 5225400 | F113: 0 | G113: 340.1
A114: Выполнение функций казенными учреждениями | B114: 907 | C114: 7 | D114: 2 | E114: 5225400 | F114: 001 | G114: 340.1
A115: Выплата заработной платы с начислениями на нее педагогическим работникам муниципальных дошкольных образовательных учреждений и муниципальных учреждений дополнительного образования | B115: 907 | C115: 7 | D115: 2 | E115: 5890000 | F115: 0 | G115: 1645.5
A116: Выполнение функций казенными учреждениями | B116: 907 | C116: 7 | D116: 2 | E116: 5890000 | F116: 001 | G116: 1645.5
A117: Целевые программы муниципальных образований | B117: 907 | C117: 7 | D117: 2 | E117: 7950000 | F117: 0 | G117: 12779.9
A118: Долгосрочная целевая программа Черемховского районного муниципального образования "Повышение эффективности бюджетных расходов Черемховского районного муниципального образования на 2012-2013 годы" | B118: 907 | C118: 7 | D118: 2 | E118: 7950200 | F118: 0 | G118: 9283.9
A119: Выполнение функций казенными учреждениями | B119: 907 | C119: 7 | D119: 2 | E119: 7950200 | F119: 001 | G119: 9283.9
A120: Долгосрочная целевая программа "Безопасность образовательных учреждений на 2010-2014 гг." | B120: 907 | C120: 7 | D120: 2 | E120: 7951000 | F120: 0 | G120: 1128
A121: Мероприятия по обеспечению пожарной безопасности | B121: 907 | C121: 7 | D121: 2 | E121: 7951000 | F121: 450 | G121: 1128
A122: Долгосрочная целевая программа энергосбережения и повышения энергетической эффективности Черемховского районного муниципального образования на 2010-2015 годы | B122: 907 | C122: 7 | D122: 2 | E122: 7951100 | F122: 0 | G122: 468
A123: Мероприятия по повышению энергетической эффективности | B123: 907 | C123: 7 | D123: 2 | E123: 7951100 | F123: 451 | G123: 468
A124: Долгосрочная целевая программа "Ветхие школы Черемховского района" на 2011-2013 гг. | B124: 907 | C124: 7 | D124: 2 | E124: 7951500 | F124: 0 | G124: 900
A125: Мероприятия в сфере образования | B125: 907 | C125: 7 | D125: 2 | E125: 7951500 | F125: 022 | G125: 900
A126: Долгосрочная целевая программа "Совершенствование организации питания в образовательных учреждениях Черемховского района на 2011-2013гг." | B126: 907 | C126: 7 | D126: 2 | E126: 7951600 | F126: 0 | G126: 1000
A127: Мероприятия в сфере образования | B127: 907 | C127: 7 | D127: 2 | E127: 7951600 | F127: 022 | G127: 1000
A128: Профессиональная подготовка, переподготовка и повышение квалификации | B128: 907 | C128: 7 | D128: 5 | E128: 0 | F128: 0 | G128: 100
A129: Мероприятия по переподготовке и повышению квалификации | B129: 907 | C129: 7 | D129: 5 | E129: 4340000 | F129: 0 | G129: 100
A130: Выполнение функций казенными учреждениями | B130: 907 | C130: 7 | D130: 5 | E130: 4340000 | F130: 001 | G130: 100
A131: Молодежная политика и оздоровление детей | B131: 907 | C131: 7 | D131: 7 | E131: 0 | F131: 0 | G131: 2475.9
A132: Мероприятия по проведению оздоровительной кампании детей | B132: 907 | C132: 7 | D132: 7 | E132: 4320000 | F132: 0 | G132: 123.8
A133: Оплата стоимости набора продуктов питания для детей в организованных органами местного самоуправления оздоровительных лагерях с дневным пребыванием детей за счет средств областного бюджета | B133: 907 | C133: 7 | D133: 7 | E133: 4320300 | F133: 0 | G133: 123.8
A134: Оплата стоимости набора продуктов питания для детей в организованных органами местного самоуправления оздоровительных лагерях с дневным пребыванием детей за счет средств местного бюджета | B134: 907 | C134: 7 | D134: 7 | E134: 4320302 | F134: 0 | G134: 123.8
A135: Выполнение функций казенными учреждениями | B135: 907 | C135: 7 | D135: 7 | E135: 4320302 | F135: 001 | G135: 123.8
A136: Региональные целевые программы | B136: 907 | C136: 7 | D136: 7 | E136: 5220000 | F136: 0 | G136: 2352.1
A137: Долгосрочная целевая программа Иркутской области "Организация и обеспечение отдыха и оздоровления детей в Иркутской области на 2012-2014гг." | B137: 907 | C137: 7 | D137: 7 | E137: 5226200 | F137: 0 | G137: 2352.1
A138: Выполнение функций казенными учреждениями | B138: 907 | C138: 7 | D138: 7 | E138: 5226200 | F138: 001 | G138: 2352.1
A139: Другие вопросы в области образования | B139: 907 | C139: 7 | D139: 9 | E139: 0 | F139: 0 | G139: 8497.3
A140: Руководство и управление в сфере установленных функций органов государственной власти субъектов Российской Федерации и органов местного самоуправления | B140: 907 | C140: 7 | D140: 9 | E140: 20000 | F140: 0 | G140: 2997.3
A141: Центральный аппарат | B141: 907 | C141: 7 | D141: 9 | E141: 20400 | F141: 0 | G141: 2997.3
A142: Выполнение функций органами местного самоуправления | B142: 907 | C142: 7 | D142: 9 | E142: 20400 | F142: 500 | G142: 2997.3
A143: Учебно-методические кабинеты, централизованные бухгалтерии, группы хозяйственного обслуживания, учебные фильмотеки, межшкольные учебно-производственные комбинаты, логопедические пункты | B143: 907 | C143: 7 | D143: 9 | E143: 4520000 | F143: 0 | G143: 5500
A144: Субсидии бюджетным учреждениям на финансовое обеспечение муниципального задания на оказание муниципальных услуг (выполнение работ) | B144: 907 | C144: 7 | D144: 9 | E144: 4520000 | F144: 611 | G144: 5500
A145: Социальная политика | B145: 907 | C145: 10 | D145: 0 | E145: 0 | F145: 0 | G145: 6361.8
A146: Социальное обеспечение населения | B146: 907 | C146: 10 | D146: 3 | E146: 0 | F146: 0 | G146: 6361.8
A147: Руководство и управление в сфере установленных функций органов государственной власти субъектов Российской Федерации и органов местного самоуправления | B147: 907 | C147: 10 | D147: 3 | E147: 20000 | F147: 0 | G147: 6361.8
A148: Осуществление отдельных областных государственных полномочий по предоставлению мер социальной поддержки многодетным и малоимущим семьям | B148: 907 | C148: 10 | D148: 3 | E148: 24600 | F148: 0 | G148: 6361.8
A149: Социальные выплаты | B149: 907 | C149: 10 | D149: 3 | E149: 24600 | F149: 005 | G149: 6361.8
A150: Финансовое управление администрации ЧРМО | B150: 910 | C150: 0 | D150: 0 | E150: 0 | F150: 0 | G150: 30842.7
A151: ОБЩЕГОСУДАРСТВЕННЫЕ ВОПРОСЫ | B151: 910 | C151: 1 | D151: 0 | E151: 0 | F151: 0 | G151: 23786.7
A152: Обеспечение деятельности финансовых, налоговых и таможенных органов и органов финансового (финансово-бюджетного) надзора | B152: 910 | C152: 1 | D152: 6 | E152: 0 | F152: 0 | G152: 8482.2
A153: Руководство и управление в сфере установленных функций органов государственной власти субъектов Российской Федерации и органов местного самоуправления | B153: 910 | C153: 1 | D153: 6 | E153: 20000 | F153: 0 | G153: 8282.2
A154: Центральный аппарат | B154: 910 | C154: 1 | D154: 6 | E154: 20400 | F154: 0 | G154: 8282.2
A155: Выполнение функций органами местного самоуправления | B155: 910 | C155: 1 | D155: 6 | E155: 20400 | F155: 500 | G155: 8282.2
A156: Целевые программы муниципальных образований | B156: 910 | C156: 1 | D156: 6 | E156: 7950000 | F156: 0 | G156: 200
A157: Долгосрочная целевая программа Черемховского районного муниципального образования "Повышение эффективности бюджетных расходов Черемховского районного муниципального образования на 2012-2013 годы" | B157: 910 | C157: 1 | D157: 6 | E157: 7950200 | F157: 0 | G157: 200
A158: Выполнение функций органами местного самоуправления | B158: 910 | C158: 1 | D158: 6 | E158: 7950200 | F158: 500 | G158: 200
A159: Другие общегосударственные вопросы | B159: 910 | C159: 1 | D159: 13 | E159: 0 | F159: 0 | G159: 15304.5
A160: Руководство и управление в сфере установленных функций органов государственной власти субъектов Российской Федерации и органов местного самоуправления | B160: 910 | C160: 1 | D160: 13 | E160: 20000 | F160: 0 | G160: 15304.5
A161: Обеспечение деятельности подведомственных учреждений | B161: 910 | C161: 1 | D161: 13 | E161: 29900 | F161: 0 | G161: 15304.5
A162: Выполнение функций казенными учреждениями | B162: 910 | C162: 1 | D162: 13 | E162: 29900 | F162: 001 | G162: 15304.5
A163: ЖИЛИЩНО-КОММУНАЛЬНОЕ ХОЗЯЙСТВО | B163: 910 | C163: 5 | D163: 0 | E163: 0 | F163: 0 | G163: 70
A164: Коммунальное хозяйство | B164: 910 | C164: 5 | D164: 2 | E164: 0 | F164: 0 | G164: 70
A165: Региональные целевые программы | B165: 910 | C165: 5 | D165: 2 | E165: 5220000 | F165: 0 | G165: 70
A166: Долгосрочная целевая программа «Энергосбережение и повышение энергетической эффективности на территории Иркутской области на 2011-2015 годы и на период до 2020 года» | B166: 910 | C166: 5 | D166: 2 | E166: 5225400 | F166: 0 | G166: 70
A167: Иные межбюджетные трансферты | B167: 910 | C167: 5 | D167: 2 | E167: 5225400 | F167: 017 | G167: 70
A168: ОБРАЗОВАНИЕ | B168: 910 | C168: 7 | D168: 0 | E168: 0 | F168: 0 | G168: 60
A169: Профессиональная подготовка, переподготовка и повышение квалификации | B169: 910 | C169: 7 | D169: 5 | E169: 0 | F169: 0 | G169: 60
A170: Мероприятия по переподготовке и повышению квалификации | B170: 910 | C170: 7 | D170: 5 | E170: 4340000 | F170: 0 | G170: 60
A171: Выполнение функций органами местного самоуправления | B171: 910 | C171: 7 | D171: 5 | E171: 4340000 | F171: 500 | G171: 60
A172: ОБСЛУЖИВАНИЕ ГОСУДАРСТВЕННОГО И МУНИЦИПАЛЬНОГО ДОЛГА | B172: 910 | C172: 13 | D172: 0 | E172: 0 | F172: 0 | G172: 60
A173: Обслуживание внутреннего государственного и муниципального долга | B173: 910 | C173: 13 | D173: 1 | E173: 0 | F173: 0 | G173: 60
A174: Процентные платежи по долговым обязательствам | B174: 910 | C174: 13 | D174: 1 | E174: 650000 | F174: 0 | G174: 60
A175: Процентные платежи по муниципальному долгу | B175: 910 | C175: 13 | D175: 1 | E175: 650300 | F175: 0 | G175: 60
A176: Прочие расходы | B176: 910 | C176: 13 | D176: 1 | E176: 650300 | F176: 013 | G176: 60
A177: МЕЖБЮДЖЕТНЫЕ ТРАНСФЕРТЫ ОБЩЕГО ХАРАКТЕРА БЮДЖЕТАМ СУБЪЕКТОВ РОССИЙСКОЙ ФЕДЕРАЦИИ И МУНИЦИПАЛЬНЫХ ОБРАЗОВАНИЙ | B177: 910 | C177: 14 | D177: 0 | E177: 0 | F177: 0 | G177: 6866
A178: Дотации на выравнивание бюджетной обеспеченности субъектов Российской Федерации и муниципальных образований | B178: 910 | C178: 14 | D178: 1 | E178: 0 | F178: 0 | G178: 3500
A179: Выравнивание бюджетной обеспечености | B179: 910 | C179: 14 | D179: 1 | E179: 5160000 | F179: 0 | G179: 3500
A180: Выравнивание бюджетной обеспеченности | B180: 910 | C180: 14 | D180: 1 | E180: 5160100 | F180: 0 | G180: 3500
A181: Выравнивание бюджетной обеспеченности поселений из районного фонда финансовой поддержки | B181: 910 | C181: 14 | D181: 1 | E181: 5160130 | F181: 0 | G181: 3500
A182: Фонд финансовой поддержки | B182: 910 | C182: 14 | D182: 1 | E182: 5160130 | F182: 008 | G182: 3500
A183: Прочие межбюджетные трансферты общего характера бюджетам субъектов Российской Федерации и муниципальных образований | B183: 910 | C183: 14 | D183: 3 | E183: 0 | F183: 0 | G183: 3366
A184: Целевые программы муниципальных образований | B184: 910 | C184: 14 | D184: 3 | E184: 7950000 | F184: 0 | G184: 3366
A185: Долгосрочная целевая программа Черемховского районного муниципального образования "Повышение эффективности бюджетных расходов Черемховского районного муниципального образования на 2012-2013 годы" | B185: 910 | C185: 14 | D185: 3 | E185: 7950200 | F185: 0 | G185: 3366
A186: Иные межбюджетные трансферты | B186: 910 | C186: 14 | D186: 3 | E186: 7950200 | F186: 017 | G186: 3366
A187: Комитет по управлению муниципальным имуществом ЧРМО | B187: 913 | C187: 0 | D187: 0 | E187: 0 | F187: 0 | G187: 20439.9
A188: ОБЩЕГОСУДАРСТВЕННЫЕ ВОПРОСЫ | B188: 913 | C188: 1 | D188: 0 | E188: 0 | F188: 0 | G188: 11802.5
A189: Другие общегосударственные вопросы | B189: 913 | C189: 1 | D189: 13 | E189: 0 | F189: 0 | G189: 11802.5
A190: Руководство и управление в сфере установленных функций органов государственной власти субъектов Российской Федерации и органов местного самоуправления | B190: 913 | C190: 1 | D190: 13 | E190: 20000 | F190: 0 | G190: 4007.1
A191: Центральный аппарат | B191: 913 | C191: 1 | D191: 13 | E191: 20400 | F191: 0 | G191: 3107.1
A192: Выполнение функций органами местного самоуправления | B192: 913 | C192: 1 | D192: 13 | E192: 20400 | F192: 500 | G192: 3107.1
A193: Обеспечение деятельности подведомственных учреждений | B193: 913 | C193: 1 | D193: 13 | E193: 29900 | F193: 0 | G193: 900
A194: Субсидии бюджетным учреждениям на финансовое обеспечение муниципального задания на оказание муниципальных услуг (выполнение работ) | B194: 913 | C194: 1 | D194: 13 | E194: 29900 | F194: 611 | G194: 900
A195: Реализация государственных функций, связанных с общегосударственным управлением | B195: 913 | C195: 1 | D195: 13 | E195: 920000 | F195: 0 | G195: 646.8
A196: Выполнение других обязательств государства | B196: 913 | C196: 1 | D196: 13 | E196: 920300 | F196: 0 | G196: 646.8
A197: Выполнение функций органами местного самоуправления | B197: 913 | C197: 1 | D197: 13 | E197: 920300 | F197: 500 | G197: 646.8
A198: Учреждения по обеспечению хозяйственного обслуживания | B198: 913 | C198: 1 | D198: 13 | E198: 930000 | F198: 0 | G198: 6500
A199: Субсидии бюджетным учреждениям на финансовое обеспечение муниципального задания на оказание муниципальных услуг (выполнение работ) | B199: 913 | C199: 1 | D199: 13 | E199: 930000 | F199: 611 | G199: 6500
A200: Целевые программы муниципальных образований | B200: 913 | C200: 1 | D200: 13 | E200: 7950000 | F200: 0 | G200: 648.6
A201: Долгосрочная целевая программа "Инвентаризация муниципальных объектов недвижимости Черемховского районного муниципального образования на 2012-2014 годы" | B201: 913 | C201: 1 | D201: 13 | E201: 7951900 | F201: 0 | G201: 648.6
A202: Выполнение функций органами местного самоуправления | B202: 913 | C202: 1 | D202: 13 | E202: 7951900 | F202: 500 | G202: 648.6
A203: НАЦИОНАЛЬНАЯ ЭКОНОМИКА | B203: 913 | C203: 4 | D203: 0 | E203: 0 | F203: 0 | G203: 1820
A204: Дорожное хозяйство(дорожные фонды) | B204: 913 | C204: 4 | D204: 9 | E204: 0 | F204: 0 | G204: 1320
A205: Целевые программы муниципальных образований | B205: 913 | C205: 4 | D205: 9 | E205: 7950000 | F205: 0 | G205: 1320
A206: Долгосрочная целевая программа "Инвентаризация муниципальных объектов недвижимости Черемховского районного муниципального образования на 2012-2014 годы" | B206: 913 | C206: 4 | D206: 9 | E206: 7951900 | F206: 0 | G206: 1320
A207: Выполнение функций органами местного самоуправления | B207: 913 | C207: 4 | D207: 9 | E207: 7951900 | F207: 500 | G207: 1320
A208: Другие вопросы в области национальной экономики | B208: 913 | C208: 4 | D208: 12 | E208: 0 | F208: 0 | G208: 500
A209: Целевые программы муниципальных образований | B209: 913 | C209: 4 | D209: 12 | E209: 7950000 | F209: 0 | G209: 500
A210: Долгосрочная целевая программа "Инвентаризация муниципальных объектов недвижимости Черемховского районного муниципального образования на 2012-2014 годы" | B210: 913 | C210: 4 | D210: 12 | E210: 7951900 | F210: 0 | G210: 500
A211: Выполнение функций органами местного самоуправления | B211: 913 | C211: 4 | D211: 12 | E211: 7951900 | F211: 500 | G211: 500
A212: ЖИЛИЩНО-КОММУНАЛЬНОЕ ХОЗЯЙСТВО | B212: 913 | C212: 5 | D212: 0 | E212: 0 | F212: 0 | G212: 54
A213: Жилищное хозяйство | B213: 913 | C213: 5 | D213: 1 | E213: 0 | F213: 0 | G213: 54
A214: Поддержка жилищного хозяйства | B214: 913 | C214: 5 | D214: 1 | E214: 3500000 | F214: 0 | G214: 54
A215: Мероприятия в области жилищного хозяйства | B215: 913 | C215: 5 | D215: 1 | E215: 3500300 | F215: 0 | G215: 54
A216: Выполнение функций органами местного самоуправления | B216: 913 | C216: 5 | D216: 1 | E216: 3500300 | F216: 500 | G216: 54
A217: ОБРАЗОВАНИЕ | B217: 913 | C217: 7 | D217: 0 | E217: 0 | F217: 0 | G217: 11.4
A218: Профессиональная подготовка, переподготовка и повышение квалификации | B218: 913 | C218: 7 | D218: 5 | E218: 0 | F218: 0 | G218: 11.4
A219: Мероприятия по переподготовке и повышению квалификации | B219: 913 | C219: 7 | D219: 5 | E219: 4340000 | F219: 0 | G219: 11.4
... 179 more rows

Sheet прил9
A15: Распределение бюджетных ассигнований по разделам, подразделам, целевым статьям и видам расходов классификации расходов бюджетов в ведомственной структуре расходов бюджета Черемховского районного муниципального образования на плановый период 2014 и 2015 годов
A18: Наименование показателя | B18: Код | G18: Сумма, тыс. руб.
B19: ГРБС | C19: раздела | D19: подраздела | E19: целевой статьи | F19: вида расходов | G19: 2014 | H19: 2015
A20: 1 | B20: 2 | C20: 3 | D20: 4 | E20: 5 | F20: 6 | G20: 7 | H20: 8
A21: Отдел по культуре и библиотечному обслуживанию АЧРМО | B21: 904 | C21: 0 | D21: 0 | E21: 0 | F21: 0 | G21: 17104.7 | H21: 16855.8
A22: ОБРАЗОВАНИЕ | B22: 904 | C22: 7 | D22: 0 | E22: 0 | F22: 0 | G22: 3985.3 | H22: 4112.7
A23: Общее образование | B23: 904 | C23: 7 | D23: 2 | E23: 0 | F23: 0 | G23: 3958.3 | H23: 4085.7
A24: Учреждения по внешкольной работе с детьми | B24: 904 | C24: 7 | D24: 2 | E24: 4230000 | F24: 0 | G24: 3851.3 | H24: 4011.9
A25: Обеспечение деятельности подведомственных учреждений | B25: 904 | C25: 7 | D25: 2 | E25: 4239900 | F25: 0 | G25: 3851.3 | H25: 4011.9
A26: Выполнение функций казенными учреждениями | B26: 904 | C26: 7 | D26: 2 | E26: 4239900 | F26: 001 | G26: 3851.3 | H26: 4011.9
A27: Целевые программы муниципальных образований | B27: 904 | C27: 7 | D27: 2 | E27: 7950000 | F27: 0 | G27: 107 | H27: 73.8
A28: Долгосрочная целевая программа Черемховского районного муниципального образования "Повышение эффективности бюджетных расходов Черемховского районного муниципального образования на 2012-2013 годы" | B28: 904 | C28: 7 | D28: 2 | E28: 7950200 | F28: 0 | G28: 0 | H28: 0
A29: Выполнение функций казенными учреждениями | B29: 904 | C29: 7 | D29: 2 | E29: 7950200 | F29: 001 | G29: 0 | H29: 0
A30: Долгосрочная целевая программа "Развитие культуры в Черемховском районном муниципальном образовании на период 2012-2016 гг." | B30: 904 | C30: 7 | D30: 2 | E30: 7952000 | F30: 0 | G30: 107 | H30: 73.8
A31: Мероприятия по поддержке и развитию культуры, искусства, кинематографии | B31: 904 | C31: 7 | D31: 2 | E31: 7952000 | F31: 023 | G31: 107 | H31: 73.8
A32: Профессиональная подготовка, переподготовка и повышение квалификации | B32: 904 | C32: 7 | D32: 5 | E32: 0 | F32: 0 | G32: 27 | H32: 27
A33: Мероприятия по переподготовке и повышению квалификации | B33: 904 | C33: 7 | D33: 5 | E33: 4340000 | F33: 0 | G33: 27 | H33: 27
A34: Выполнение функций казенными учреждениями | B34: 904 | C34: 7 | D34: 5 | E34: 4340000 | F34: 001 | G34: 27 | H34: 27
A35: КУЛЬТУРА И КИНЕМАТОГРАФИЯ | B35: 904 | C35: 8 | D35: 0 | E35: 0 | F35: 0 | G35: 13119.4 | H35: 12743.1
A36: Культура | B36: 904 | C36: 8 | D36: 1 | E36: 0 | F36: 0 | G36: 12183.5 | H36: 11762
A37: Учреждения культуры и мероприятия в сфере культуры и кинематографии | B37: 904 | C37: 8 | D37: 1 | E37: 4400000 | F37: 0 | G37: 3856.1 | H37: 4010.2
A38: Комплектование книжных фондов библиотек муниципальных образований и государственных библиотек городов Москвы и Санкт-Петербурга | B38: 904 | C38: 8 | D38: 1 | E38: 4400200 | F38: 0 | G38: 466.3 | H38: 466.3
A39: Комплектование книжных фондов библиотек муниципальных образований и государственных библиотек городов Москвы и Санкт-Петербурга за счет средств федерального бюджета | B39: 904 | C39: 8 | D39: 1 | E39: 4400201 | F39: 0 | G39: 303.6 | H39: 303.6
A40: Выполнение функций казенными учреждениями | B40: 904 | C40: 8 | D40: 1 | E40: 4400201 | F40: 001 | G40: 303.6 | H40: 303.6
A41: Комплектование книжных фондов библиотек муниципальных образований и государственных библиотек городов Москвы и Санкт-Петербурга за счет областного бюджета | B41: 904 | C41: 8 | D41: 1 | E41: 4400202 | F41: 0 | G41: 162.7 | H41: 162.7
A42: Выполнение функций казенными учреждениями | B42: 904 | C42: 8 | D42: 1 | E42: 4400202 | F42: 001 | G42: 162.7 | H42: 162.7
A43: Обеспечение деятельности подведомственных учреждений | B43: 904 | C43: 8 | D43: 1 | E43: 4409900 | F43: 0 | G43: 3389.8 | H43: 3543.9
A44: Выполнение функций казенными учреждениями | B44: 904 | C44: 8 | D44: 1 | E44: 4409900 | F44: 001 | G44: 3389.8 | H44: 3543.9
A45: Музеи и постоянные выставки | B45: 904 | C45: 8 | D45: 1 | E45: 4410000 | F45: 0 | G45: 899.1 | H45: 935.8
A46: Обеспечение деятельности подведомственных учреждений | B46: 904 | C46: 8 | D46: 1 | E46: 4419900 | F46: 0 | G46: 899.1 | H46: 935.8
A47: Выполнение функций казенными учреждениями | B47: 904 | C47: 8 | D47: 1 | E47: 4419900 | F47: 001 | G47: 899.1 | H47: 935.8
A48: Библиотеки | B48: 904 | C48: 8 | D48: 1 | E48: 4420000 | F48: 0 | G48: 5424.3 | H48: 5676.8
A49: Обеспечение деятельности подведомственных учреждений | B49: 904 | C49: 8 | D49: 1 | E49: 4429900 | F49: 0 | G49: 5424.3 | H49: 5676.8
A50: Выполнение функций казенными учреждениями | B50: 904 | C50: 8 | D50: 1 | E50: 4429900 | F50: 001 | G50: 5424.3 | H50: 5676.8
A51: Региональные целевые программы | B51: 904 | C51: 8 | D51: 1 | E51: 5220000 | F51: 0 | G51: 1000 | H51: 0
A52: Долгосрочная целевая программа Иркутской области «100 модельных домов культуры Приангарью» на 2011-2013 годы | B52: 904 | C52: 8 | D52: 1 | E52: 5225500 | F52: 0 | G52: 1000 | H52: 0
A53: Выполнение функций казенными учреждениями | B53: 904 | C53: 8 | D53: 1 | E53: 5225500 | F53: 001 | G53: 1000 | H53: 0
A54: Целевые программы муниципальных образований | B54: 904 | C54: 8 | D54: 1 | E54: 7950000 | F54: 0 | G54: 1004 | H54: 1139.2
A55: Долгосрочная целевая программа Черемховского районного муниципального образования "Повышение эффективности бюджетных расходов Черемховского районного муниципального образования на 2012-2013 годы" | B55: 904 | C55: 8 | D55: 1 | E55: 7950200 | F55: 0 | G55: 0 | H55: 0
A56: Выполнение функций казенными учреждениями | B56: 904 | C56: 8 | D56: 1 | E56: 7950200 | F56: 001 | G56: 0 | H56: 0
A57: Долгосрочная целевая программа энергосбережения и повышения энергетической эффективности Черемховского районного муниципального образования на 2010-2015 годы | B57: 904 | C57: 8 | D57: 1 | E57: 7951100 | F57: 0 | G57: 100 | H57: 200
A58: Мероприятия по повышению энергетической эффективности | B58: 904 | C58: 8 | D58: 1 | E58: 7951100 | F58: 451 | G58: 100 | H58: 200
A59: Долгосрочная целевая программа "Развитие культуры в Черемховском районном муниципальном образовании на период 2012-2016 гг." | B59: 904 | C59: 8 | D59: 1 | E59: 7952000 | F59: 0 | G59: 904 | H59: 939.2
A60: Мероприятия по поддержке и развитию культуры, искусства, кинематографии | B60: 904 | C60: 8 | D60: 1 | E60: 7952000 | F60: 023 | G60: 904 | H60: 939.2
A61: Другие вопросы в области культуры, кинематографии | B61: 904 | C61: 8 | D61: 4 | E61: 0 | F61: 0 | G61: 935.9 | H61: 981.1
A62: Руководство и управление в сфере установленных функций органов государственной власти субъектов Российской Федерации и органов местного самоуправления | B62: 904 | C62: 8 | D62: 4 | E62: 20000 | F62: 0 | G62: 935.9 | H62: 981.1
A63: Центральный аппарат | B63: 904 | C63: 8 | D63: 4 | E63: 20400 | F63: 0 | G63: 935.9 | H63: 981.1
A64: Выполнение функций органами местного самоуправления | B64: 904 | C64: 8 | D64: 4 | E64: 20400 | F64: 500 | G64: 935.9 | H64: 981.1
A65: Отдел образования АЧРМО | B65: 907 | C65: 0 | D65: 0 | E65: 0 | F65: 0 | G65: 351260.8 | H65: 348866.2
A66: ОБРАЗОВАНИЕ | B66: 907 | C66: 7 | D66: 0 | E66: 0 | F66: 0 | G66: 344899 | H66: 342504.4
A67: Дошкольное образование | B67: 907 | C67: 7 | D67: 1 | E67: 0 | F67: 0 | G67: 64603.4 | H67: 62906.1
A68: Детские дошкольные учреждения | B68: 907 | C68: 7 | D68: 1 | E68: 4200000 | F68: 0 | G68: 61308.4 | H68: 61441.1
A69: Обеспечение деятельности подведомственных учреждений | B69: 907 | C69: 7 | D69: 1 | E69: 4209900 | F69: 0 | G69: 61308.4 | H69: 61441.1
A70: Выполнение функций казенными учреждениями | B70: 907 | C70: 7 | D70: 1 | E70: 4209900 | F70: 001 | G70: 61308.4 | H70: 61441.1
A71: Региональные целевые программы | B71: 907 | C71: 7 | D71: 1 | E71: 5220000 | F71: 0 | G71: 0 | H71: 0
A72: Областная государственная целевая программа поддержки и развития учреждений дошкольного образования в Иркутской области на 2009-2014 годы | B72: 907 | C72: 7 | D72: 1 | E72: 5223700 | F72: 0 | G72: 0 | H72: 0
A73: Выполнение функций казенными учреждениями | B73: 907 | C73: 7 | D73: 1 | E73: 5223700 | F73: 001 | G73: 0 | H73: 0
A74: Долгосрочная целевая программа «Энергосбережение и повышение энергетической эффективности на территории Иркутской области на 2011-2015 годы и на период до 2020 года» | B74: 907 | C74: 7 | D74: 1 | E74: 5225400 | F74: 0 | G74: 0 | H74: 0
A75: Выполнение функций казенными учреждениями | B75: 907 | C75: 7 | D75: 1 | E75: 5225400 | F75: 001 | G75: 0 | H75: 0
A76: Выплата заработной платы с начислениями на нее педагогическим работникам муниципальных дошкольных образовательных учреждений и муниципальных учреждений дополнительного образования | B76: 907 | C76: 7 | D76: 1 | E76: 5890000 | F76: 0 | G76: 1465 | H76: 1465
A77: Выполнение функций казенными учреждениями | B77: 907 | C77: 7 | D77: 1 | E77: 5890000 | F77: 001 | G77: 1465 | H77: 1465
A78: Целевые программы муниципальных образований | B78: 907 | C78: 7 | D78: 1 | E78: 7950000 | F78: 0 | G78: 1830 | H78: 0
A79: Долгосрочная целевая программа Черемховского районного муниципального образования "Повышение эффективности бюджетных расходов Черемховского районного муниципального образования на 2012-2013 годы" | B79: 907 | C79: 7 | D79: 1 | E79: 7950200 | F79: 0 | G79: 0 | H79: 0
A80: Выполнение функций казенными учреждениями | B80: 907 | C80: 7 | D80: 1 | E80: 7950200 | F80: 001 | G80: 0 | H80: 0
A81: Долгосрочная целевая программа "Безопасность образовательных учреждений на 2010-2014 гг." | B81: 907 | C81: 7 | D81: 1 | E81: 7951000 | F81: 0 | G81: 830 | H81: 0
A82: Мероприятия по обеспечению пожарной безопасности | B82: 907 | C82: 7 | D82: 1 | E82: 7951000 | F82: 450 | G82: 830 | H82: 0
A83: Долгосрочная целевая программа энергосбережения и повышения энергетической эффективности Черемховского районного муниципального образования на 2010-2015 годы | B83: 907 | C83: 7 | D83: 1 | E83: 7951100 | F83: 0 | G83: 600 | H83: 0
A84: Мероприятия по повышению энергетической эффективности | B84: 907 | C84: 7 | D84: 1 | E84: 7951100 | F84: 451 | G84: 600 | H84: 0
A85: Долгосрочная целевая программа "Развитие дошкольного образования на 2011-2014 гг." | B85: 907 | C85: 7 | D85: 1 | E85: 7951700 | F85: 0 | G85: 0 | H85: 0
A86: Мероприятия в сфере образования | B86: 907 | C86: 7 | D86: 1 | E86: 7951700 | F86: 022 | G86: 0 | H86: 0
A87: Долгосрочная целевая программа "Совершенствование дошкольного образования Черемховского района на 2011-2014 гг." | B87: 907 | C87: 7 | D87: 1 | E87: 7951800 | F87: 0 | G87: 400 | H87: 0
A88: Мероприятия в сфере образования | B88: 907 | C88: 7 | D88: 1 | E88: 7951800 | F88: 022 | G88: 400 | H88: 0
A89: Общее образование | B89: 907 | C89: 7 | D89: 2 | E89: 0 | F89: 0 | G89: 272963 | H89: 272175.9
A90: Руководство и управление в сфере установленных функций органов государственной власти субъектов Российской Федерации и органов местного самоуправления | B90: 907 | C90: 7 | D90: 2 | E90: 20000 | F90: 0 | G90: 238581.5 | H90: 238581.5
A91: Обеспечение государственных гарантий прав граждан на получение общедоступного и бесплатного дошкольного, начального общего, основного общего, среднего (полного) общего образования, а также дополнительного образования в общеобразовательных учреждениях | B91: 907 | C91: 7 | D91: 2 | E91: 25000 | F91: 0 | G91: 238581.5 | H91: 238581.5
A92: Выполнение функций казенными учреждениями | B92: 907 | C92: 7 | D92: 2 | E92: 25000 | F92: 001 | G92: 238581.5 | H92: 238581.5
A93: Школы - детские сады, школы начальные, неполные средние и средние | B93: 907 | C93: 7 | D93: 2 | E93: 4210000 | F93: 0 | G93: 15782.6 | H93: 15808.4
A94: Обеспечение деятельности подведомственных учреждений | B94: 907 | C94: 7 | D94: 2 | E94: 4219900 | F94: 0 | G94: 15782.6 | H94: 15808.4
A95: Выполнение функций казенными учреждениями | B95: 907 | C95: 7 | D95: 2 | E95: 4219900 | F95: 001 | G95: 15782.6 | H95: 15808.4
A96: Учреждения по внешкольной работе с детьми | B96: 907 | C96: 7 | D96: 2 | E96: 4230000 | F96: 0 | G96: 16488.8 | H96: 17245.9
A97: Обеспечение деятельности подведомственных учреждений | B97: 907 | C97: 7 | D97: 2 | E97: 4239900 | F97: 0 | G97: 16488.8 | H97: 17245.9
A98: Выполнение функций казенными учреждениями | B98: 907 | C98: 7 | D98: 2 | E98: 4239900 | F98: 001 | G98: 16488.8 | H98: 17245.9
A99: Мероприятия в области образования | B99: 907 | C99: 7 | D99: 2 | E99: 4360000 | F99: 0 | G99: 0 | H99: 0
A100: Модернизация региональных систем образования | B100: 907 | C100: 7 | D100: 2 | E100: 4362100 | F100: 0 | G100: 0 | H100: 0
A101: Модернизация региональных систем образования за счет средств федерального бюджета | B101: 907 | C101: 7 | D101: 2 | E101: 4362101 | F101: 0 | G101: 0 | H101: 0
A102: Выполнение функций казенными учреждениями | B102: 907 | C102: 7 | D102: 2 | E102: 4362101 | F102: 001 | G102: 0 | H102: 0
A103: Иные безвозмездные и безвозвратные перечисления | B103: 907 | C103: 7 | D103: 2 | E103: 5200000 | F103: 0 | G103: 0 | H103: 0
A104: Ежемесячное денежное вознаграждение за классное руководство | B104: 907 | C104: 7 | D104: 2 | E104: 5200900 | F104: 0 | G104: 0 | H104: 0
A105: Выполнение функций казенными учреждениями | B105: 907 | C105: 7 | D105: 2 | E105: 5200900 | F105: 001 | G105: 0 | H105: 0
A106: Региональные целевые программы | B106: 907 | C106: 7 | D106: 2 | E106: 5220000 | F106: 0 | G106: 0 | H106: 0
A107: Долгосрочная целевая программа «Модернизация объектов коммунальной инфраструктуры Иркутской области на 2011-2013 годы» | B107: 907 | C107: 7 | D107: 2 | E107: 5222000 | F107: 0 | G107: 0 | H107: 0
A108: Подпрограмма «Подготовка объектов коммунальной инфраструктуры Иркутской области к отопительному сезону в 2011-2013 годах» | B108: 907 | C108: 7 | D108: 2 | E108: 5222001 | F108: 0 | G108: 0 | H108: 0
A109: Выполнение функций казенными учреждениями | B109: 907 | C109: 7 | D109: 2 | E109: 5222001 | F109: 001 | G109: 0 | H109: 0
A110: Долгосрочная целевая программа «Энергосбережение и повышение энергетической эффективности на территории Иркутской области на 2011-2015 годы и на период до 2020 года» | B110: 907 | C110: 7 | D110: 2 | E110: 5225400 | F110: 0 | G110: 0 | H110: 0
A111: Выполнение функций казенными учреждениями | B111: 907 | C111: 7 | D111: 2 | E111: 5225400 | F111: 001 | G111: 0 | H111: 0
A112: Выплата заработной платы с начислениями на нее педагогическим работникам муниципальных дошкольных образовательных учреждений и муниципальных учреждений дополнительного образования | B112: 907 | C112: 7 | D112: 2 | E112: 5890000 | F112: 0 | G112: 540.1 | H112: 540.1
A113: Выполнение функций казенными учреждениями | B113: 907 | C113: 7 | D113: 2 | E113: 5890000 | F113: 001 | G113: 540.1 | H113: 540.1
A114: Целевые программы муниципальных образований | B114: 907 | C114: 7 | D114: 2 | E114: 7950000 | F114: 0 | G114: 1570 | H114: 0
A115: Долгосрочная целевая программа Черемховского районного муниципального образования "Повышение эффективности бюджетных расходов Черемховского районного муниципального образования на 2012-2013 годы" | B115: 907 | C115: 7 | D115: 2 | E115: 7950200 | F115: 0 | G115: 0 | H115: 0
A116: Выполнение функций казенными учреждениями | B116: 907 | C116: 7 | D116: 2 | E116: 7950200 | F116: 001 | G116: 0 | H116: 0
A117: Долгосрочная целевая программа "Безопасность образовательных учреждений на 2010-2014 гг." | B117: 907 | C117: 7 | D117: 2 | E117: 7951000 | F117: 0 | G117: 970 | H117: 0
A118: Мероприятия по обеспечению пожарной безопасности | B118: 907 | C118: 7 | D118: 2 | E118: 7951000 | F118: 450 | G118: 970 | H118: 0
A119: Долгосрочная целевая программа энергосбережения и повышения энергетической эффективности Черемховского районного муниципального образования на 2010-2015 годы | B119: 907 | C119: 7 | D119: 2 | E119: 7951100 | F119: 0 | G119: 0 | H119: 0
A120: Мероприятия по повышению энергетической эффективности | B120: 907 | C120: 7 | D120: 2 | E120: 7951100 | F120: 451 | G120: 0 | H120: 0
A121: Долгосрочная целевая программа "Ветхие школы Черемховского района" на 2011-2013 гг. | B121: 907 | C121: 7 | D121: 2 | E121: 7951500 | F121: 0 | G121: 0 | H121: 0
A122: Мероприятия в сфере образования | B122: 907 | C122: 7 | D122: 2 | E122: 7951500 | F122: 022 | G122: 0 | H122: 0
A123: Долгосрочная целевая программа "Совершенствование организации питания в образовательных учреждениях Черемховского района на 2011-2013гг." | B123: 907 | C123: 7 | D123: 2 | E123: 7951600 | F123: 0 | G123: 600 | H123: 0
A124: Мероприятия в сфере образования | B124: 907 | C124: 7 | D124: 2 | E124: 7951600 | F124: 022 | G124: 600 | H124: 0
A125: Профессиональная подготовка, переподготовка и повышение квалификации | B125: 907 | C125: 7 | D125: 5 | E125: 0 | F125: 0 | G125: 100 | H125: 100
A126: Мероприятия по переподготовке и повышению квалификации | B126: 907 | C126: 7 | D126: 5 | E126: 4340000 | F126: 0 | G126: 100 | H126: 100
A127: Выполнение функций казенными учреждениями | B127: 907 | C127: 7 | D127: 5 | E127: 4340000 | F127: 001 | G127: 100 | H127: 100
A128: Молодежная политика и оздоровление детей | B128: 907 | C128: 7 | D128: 7 | E128: 0 | F128: 0 | G128: 126 | H128: 126
A129: Мероприятия по проведению оздоровительной кампании детей | B129: 907 | C129: 7 | D129: 7 | E129: 4320000 | F129: 0 | G129: 126 | H129: 126
A130: Оплата стоимости набора продуктов питания для детей в организованных органами местного самоуправления оздоровительных лагерях с дневным пребыванием детей за счет средств областного бюджета | B130: 907 | C130: 7 | D130: 7 | E130: 4320300 | F130: 0 | G130: 126 | H130: 126
A131: Оплата стоимости набора продуктов питания для детей в организованных органами местного самоуправления оздоровительных лагерях с дневным пребыванием детей за счет средств местного бюджета | B131: 907 | C131: 7 | D131: 7 | E131: 4320302 | F131: 0 | G131: 126 | H131: 126
A132: Выполнение функций казенными учреждениями | B132: 907 | C132: 7 | D132: 7 | E132: 4320302 | F132: 001 | G132: 126 | H132: 126
A133: Региональные целевые программы | B133: 907 | C133: 7 | D133: 7 | E133: 5220000 | F133: 0 | G133: 0 | H133: 0
A134: Долгосрочная целевая программа Иркутской области "Организация и обеспечение отдыха и оздоровления детей в Иркутской области на 2012-2014гг." | B134: 907 | C134: 7 | D134: 7 | E134: 5226200 | F134: 0 | G134: 0 | H134: 0
A135: Выполнение функций казенными учреждениями | B135: 907 | C135: 7 | D135: 7 | E135: 5226200 | F135: 001 | G135: 0 | H135: 0
A136: Другие вопросы в области образования | B136: 907 | C136: 7 | D136: 9 | E136: 0 | F136: 0 | G136: 7106.6 | H136: 7196.4
A137: Руководство и управление в сфере установленных функций органов государственной власти субъектов Российской Федерации и органов местного самоуправления | B137: 907 | C137: 7 | D137: 9 | E137: 20000 | F137: 0 | G137: 2106.6 | H137: 2196.4
A138: Центральный аппарат | B138: 907 | C138: 7 | D138: 9 | E138: 20400 | F138: 0 | G138: 2106.6 | H138: 2196.4
A139: Выполнение функций органами местного самоуправления | B139: 907 | C139: 7 | D139: 9 | E139: 20400 | F139: 500 | G139: 2106.6 | H139: 2196.4
A140: Учебно-методические кабинеты, централизованные бухгалтерии, группы хозяйственного обслуживания, учебные фильмотеки, межшкольные учебно-производственные комбинаты, логопедические пункты | B140: 907 | C140: 7 | D140: 9 | E140: 4520000 | F140: 0 | G140: 5000 | H140: 5000
A141: Субсидии бюджетным учреждениям на финансовое обеспечение муниципального задания на оказание муниципальных услуг (выполнение работ) | B141: 907 | C141: 7 | D141: 9 | E141: 4520000 | F141: 611 | G141: 5000 | H141: 5000
A142: Социальная политика | B142: 907 | C142: 10 | D142: 0 | E142: 0 | F142: 0 | G142: 6361.8 | H142: 6361.8
A143: Социальное обеспечение населения | B143: 907 | C143: 10 | D143: 3 | E143: 0 | F143: 0 | G143: 6361.8 | H143: 6361.8
A144: Руководство и управление в сфере установленных функций органов государственной власти субъектов Российской Федерации и органов местного самоуправления | B144: 907 | C144: 10 | D144: 3 | E144: 20000 | F144: 0 | G144: 6361.8 | H144: 6361.8
A145: Осуществление отдельных областных государственных полномочий по предоставлению мер социальной поддержки многодетным и малоимущим семьям | B145: 907 | C145: 10 | D145: 3 | E145: 24600 | F145: 0 | G145: 6361.8 | H145: 6361.8
A146: Социальные выплаты | B146: 907 | C146: 10 | D146: 3 | E146: 24600 | F146: 005 | G146: 6361.8 | H146: 6361.8
A147: Финансовое управление администрации ЧРМО | B147: 910 | C147: 0 | D147: 0 | E147: 0 | F147: 0 | G147: 20193.3 | H147: 21036.8
A148: ОБЩЕГОСУДАРСТВЕННЫЕ ВОПРОСЫ | B148: 910 | C148: 1 | D148: 0 | E148: 0 | F148: 0 | G148: 16732.1 | H148: 17473.3
A149: Обеспечение деятельности финансовых, налоговых и таможенных органов и органов финансового (финансово-бюджетного) надзора | B149: 910 | C149: 1 | D149: 6 | E149: 0 | F149: 0 | G149: 5642.7 | H149: 5882.2
A150: Руководство и управление в сфере установленных функций органов государственной власти субъектов Российской Федерации и органов местного самоуправления | B150: 910 | C150: 1 | D150: 6 | E150: 20000 | F150: 0 | G150: 5642.7 | H150: 5882.2
A151: Центральный аппарат | B151: 910 | C151: 1 | D151: 6 | E151: 20400 | F151: 0 | G151: 5642.7 | H151: 5882.2
A152: Выполнение функций органами местного самоуправления | B152: 910 | C152: 1 | D152: 6 | E152: 20400 | F152: 500 | G152: 5642.7 | H152: 5882.2
A153: Целевые программы муниципальных образований | B153: 910 | C153: 1 | D153: 6 | E153: 7950000 | F153: 0 | G153: 0 | H153: 0
A154: Долгосрочная целевая программа Черемховского районного муниципального образования "Повышение эффективности бюджетных расходов Черемховского районного муниципального образования на 2012-2013 годы" | B154: 910 | C154: 1 | D154: 6 | E154: 7950200 | F154: 0 | G154: 0 | H154: 0
A155: Выполнение функций органами местного самоуправления | B155: 910 | C155: 1 | D155: 6 | E155: 7950200 | F155: 500 | G155: 0 | H155: 0
A156: Другие общегосударственные вопросы | B156: 910 | C156: 1 | D156: 13 | E156: 0 | F156: 0 | G156: 11089.4 | H156: 11591.1
A157: Руководство и управление в сфере установленных функций органов государственной власти субъектов Российской Федерации и органов местного самоуправления | B157: 910 | C157: 1 | D157: 13 | E157: 20000 | F157: 0 | G157: 11089.4 | H157: 11591.1
A158: Обеспечение деятельности подведомственных учреждений | B158: 910 | C158: 1 | D158: 13 | E158: 29900 | F158: 0 | G158: 11089.4 | H158: 11591.1
A159: Выполнение функций казенными учреждениями | B159: 910 | C159: 1 | D159: 13 | E159: 29900 | F159: 001 | G159: 11089.4 | H159: 11591.1
A160: ЖИЛИЩНО-КОММУНАЛЬНОЕ ХОЗЯЙСТВО | B160: 910 | C160: 5 | D160: 0 | E160: 0 | F160: 0 | G160: 0 | H160: 0
A161: Коммунальное хозяйство | B161: 910 | C161: 5 | D161: 2 | E161: 0 | F161: 0 | G161: 0 | H161: 0
A162: Региональные целевые программы | B162: 910 | C162: 5 | D162: 2 | E162: 5220000 | F162: 0 | G162: 0 | H162: 0
A163: Долгосрочная целевая программа «Энергосбережение и повышение энергетической эффективности на территории Иркутской области на 2011-2015 годы и на период до 2020 года» | B163: 910 | C163: 5 | D163: 2 | E163: 5225400 | F163: 0 | G163: 0 | H163: 0
A164: Иные межбюджетные трансферты | B164: 910 | C164: 5 | D164: 2 | E164: 5225400 | F164: 017 | G164: 0 | H164: 0
A165: ОБРАЗОВАНИЕ | B165: 910 | C165: 7 | D165: 0 | E165: 0 | F165: 0 | G165: 0 | H165: 0
A166: Профессиональная подготовка, переподготовка и повышение квалификации | B166: 910 | C166: 7 | D166: 5 | E166: 0 | F166: 0 | G166: 0 | H166: 0
A167: Мероприятия по переподготовке и повышению квалификации | B167: 910 | C167: 7 | D167: 5 | E167: 4340000 | F167: 0 | G167: 0 | H167: 0
A168: Выполнение функций органами местного самоуправления | B168: 910 | C168: 7 | D168: 5 | E168: 4340000 | F168: 500 | G168: 0 | H168: 0
A169: ОБСЛУЖИВАНИЕ ГОСУДАРСТВЕННОГО И МУНИЦИПАЛЬНОГО ДОЛГА | B169: 910 | C169: 13 | D169: 0 | E169: 0 | F169: 0 | G169: 61.2 | H169: 63.5
A170: Обслуживание внутреннего государственного и муниципального долга | B170: 910 | C170: 13 | D170: 1 | E170: 0 | F170: 0 | G170: 61.2 | H170: 63.5
A171: Процентные платежи по долговым обязательствам | B171: 910 | C171: 13 | D171: 1 | E171: 650000 | F171: 0 | G171: 61.2 | H171: 63.5
A172: Процентные платежи по муниципальному долгу | B172: 910 | C172: 13 | D172: 1 | E172: 650300 | F172: 0 | G172: 61.2 | H172: 63.5
A173: Прочие расходы | B173: 910 | C173: 13 | D173: 1 | E173: 650300 | F173: 013 | G173: 61.2 | H173: 63.5
A174: МЕЖБЮДЖЕТНЫЕ ТРАНСФЕРТЫ ОБЩЕГО ХАРАКТЕРА БЮДЖЕТАМ СУБЪЕКТОВ РОССИЙСКОЙ ФЕДЕРАЦИИ И МУНИЦИПАЛЬНЫХ ОБРАЗОВАНИЙ | B174: 910 | C174: 14 | D174: 0 | E174: 0 | F174: 0 | G174: 3400 | H174: 3500
A175: Дотации на выравнивание бюджетной обеспеченности субъектов Российской Федерации и муниципальных образований | B175: 910 | C175: 14 | D175: 1 | E175: 0 | F175: 0 | G175: 3400 | H175: 3500
A176: Выравнивание бюджетной обеспечености | B176: 910 | C176: 14 | D176: 1 | E176: 5160000 | F176: 0 | G176: 3400 | H176: 3500
A177: Выравнивание бюджетной обеспеченности | B177: 910 | C177: 14 | D177: 1 | E177: 5160100 | F177: 0 | G177: 3400 | H177: 3500
A178: Выравнивание бюджетной обеспеченности поселений из районного фонда финансовой поддержки | B178: 910 | C178: 14 | D178: 1 | E178: 5160130 | F178: 0 | G178: 3400 | H178: 3500
A179: Фонд финансовой поддержки | B179: 910 | C179: 14 | D179: 1 | E179: 5160130 | F179: 008 | G179: 3400 | H179: 3500
A180: Прочие межбюджетные трансферты общего характера бюджетам субъектов Российской Федерации и муниципальных образований | B180: 910 | C180: 14 | D180: 3 | E180: 0 | F180: 0 | G180: 0 | H180: 0
A181: Целевые программы муниципальных образований | B181: 910 | C181: 14 | D181: 3 | E181: 7950000 | F181: 0 | G181: 0 | H181: 0
A182: Долгосрочная целевая программа Черемховского районного муниципального образования "Повышение эффективности бюджетных расходов Черемховского районного муниципального образования на 2012-2013 годы" | B182: 910 | C182: 14 | D182: 3 | E182: 7950200 | F182: 0 | G182: 0 | H182: 0
A183: Иные межбюджетные трансферты | B183: 910 | C183: 14 | D183: 3 | E183: 7950200 | F183: 017 | G183: 0 | H183: 0
A184: Комитет по управлению муниципальным имуществом ЧРМО | B184: 913 | C184: 0 | D184: 0 | E184: 0 | F184: 0 | G184: 12669.7 | H184: 11759
A185: ОБЩЕГОСУДАРСТВЕННЫЕ ВОПРОСЫ | B185: 913 | C185: 1 | D185: 0 | E185: 0 | F185: 0 | G185: 10169.7 | H185: 9759
A186: Другие общегосударственные вопросы | B186: 913 | C186: 1 | D186: 13 | E186: 0 | F186: 0 | G186: 10169.7 | H186: 9759
A187: Руководство и управление в сфере установленных функций органов государственной власти субъектов Российской Федерации и органов местного самоуправления | B187: 913 | C187: 1 | D187: 13 | E187: 20000 | F187: 0 | G187: 3162.4 | H187: 3251.7
A188: Центральный аппарат | B188: 913 | C188: 1 | D188: 13 | E188: 20400 | F188: 0 | G188: 2262.4 | H188: 2351.7
A189: Выполнение функций органами местного самоуправления | B189: 913 | C189: 1 | D189: 13 | E189: 20400 | F189: 500 | G189: 2262.4 | H189: 2351.7
A190: Обеспечение деятельности подведомственных учреждений | B190: 913 | C190: 1 | D190: 13 | E190: 29900 | F190: 0 | G190: 900 | H190: 900
A191: Субсидии бюджетным учреждениям на финансовое обеспечение муниципального задания на оказание муниципальных услуг (выполнение работ) | B191: 913 | C191: 1 | D191: 13 | E191: 29900 | F191: 611 | G191: 900 | H191: 900
A192: Реализация государственных функций, связанных с общегосударственным управлением | B192: 913 | C192: 1 | D192: 13 | E192: 920000 | F192: 0 | G192: 7.3 | H192: 7.3
A193: Выполнение других обязательств государства | B193: 913 | C193: 1 | D193: 13 | E193: 920300 | F193: 0 | G193: 7.3 | H193: 7.3
A194: Выполнение функций органами местного самоуправления | B194: 913 | C194: 1 | D194: 13 | E194: 920300 | F194: 500 | G194: 7.3 | H194: 7.3
A195: Учреждения по обеспечению хозяйственного обслуживания | B195: 913 | C195: 1 | D195: 13 | E195: 930000 | F195: 0 | G195: 6500 | H195: 6500
A196: Субсидии бюджетным учреждениям на финансовое обеспечение муниципального задания на оказание муниципальных услуг (выполнение работ) | B196: 913 | C196: 1 | D196: 13 | E196: 930000 | F196: 611 | G196: 6500 | H196: 6500
A197: Целевые программы муниципальных образований | B197: 913 | C197: 1 | D197: 13 | E197: 7950000 | F197: 0 | G197: 500 | H197: 0
A198: Долгосрочная целевая программа "Инвентаризация муниципальных объектов недвижимости Черемховского районного муниципального образования на 2012-2014 годы" | B198: 913 | C198: 1 | D198: 13 | E198: 7951900 | F198: 0 | G198: 500 | H198: 0
A199: Выполнение функций органами местного самоуправления | B199: 913 | C199: 1 | D199: 13 | E199: 7951900 | F199: 500 | G199: 500 | H199: 0
A200: НАЦИОНАЛЬНАЯ ЭКОНОМИКА | B200: 913 | C200: 4 | D200: 0 | E200: 0 | F200: 0 | G200: 500 | H200: 0
A201: Дорожное хозяйство(дорожные фонды) | B201: 913 | C201: 4 | D201: 9 | E201: 0 | F201: 0 | G201: 0 | H201: 0
A202: Целевые программы муниципальных образований | B202: 913 | C202: 4 | D202: 9 | E202: 7950000 | F202: 0 | G202: 0 | H202: 0
A203: Долгосрочная целевая программа "Инвентаризация муниципальных объектов недвижимости Черемховского районного муниципального образования на 2012-2014 годы" | B203: 913 | C203: 4 | D203: 9 | E203: 7951900 | F203: 0 | G203: 0 | H203: 0
A204: Выполнение функций органами местного самоуправления | B204: 913 | C204: 4 | D204: 9 | E204: 7951900 | F204: 500 | G204: 0 | H204: 0
A205: Другие вопросы в области национальной экономики | B205: 913 | C205: 4 | D205: 12 | E205: 0 | F205: 0 | G205: 500 | H205: 0
A206: Целевые программы муниципальных образований | B206: 913 | C206: 4 | D206: 12 | E206: 7950000 | F206: 0 | G206: 500 | H206: 0
A207: Долгосрочная целевая программа "Инвентаризация муниципальных объектов недвижимости Черемховского районного муниципального образования на 2012-2014 годы" | B207: 913 | C207: 4 | D207: 12 | E207: 7951900 | F207: 0 | G207: 500 | H207: 0
A208: Выполнение функций органами местного самоуправления | B208: 913 | C208: 4 | D208: 12 | E208: 7951900 | F208: 500 | G208: 500 | H208: 0
A209: ЖИЛИЩНО-КОММУНАЛЬНОЕ ХОЗЯЙСТВО | B209: 913 | C209: 5 | D209: 0 | E209: 0 | F209: 0 | G209: 0 | H209: 0
A210: Жилищное хозяйство | B210: 913 | C210: 5 | D210: 1 | E210: 0 | F210: 0 | G210: 0 | H210: 0
A211: Поддержка жилищного хозяйства | B211: 913 | C211: 5 | D211: 1 | E211: 3500000 | F211: 0 | G211: 0 | H211: 0
A212: Мероприятия в области жилищного хозяйства | B212: 913 | C212: 5 | D212: 1 | E212: 3500300 | F212: 0 | G212: 0 | H212: 0
A213: Выполнение функций органами местного самоуправления | B213: 913 | C213: 5 | D213: 1 | E213: 3500300 | F213: 500 | G213: 0 | H213: 0
A214: ОБРАЗОВАНИЕ | B214: 913 | C214: 7 | D214: 0 | E214: 0 | F214: 0 | G214: 0 | H214: 0
A215: Профессиональная подготовка, переподготовка и повышение квалификации | B215: 913 | C215: 7 | D215: 5 | E215: 0 | F215: 0 | G215: 0 | H215: 0
A216: Мероприятия по переподготовке и повышению квалификации | B216: 913 | C216: 7 | D216: 5 | E216: 4340000 | F216: 0 | G216: 0 | H216: 0
... 179 more rows

Sheet прил10
A15: Распределение бюджетных ассигнований на реализацию долгосрочных районных целевых программ Черемховского районного муниципального образования на 2013 год
G16: (тыс. рублей)
A17: № п/п | B17: Наименование программы | C17: Исполнители | D17: Бюджетная классификация | H17: сумма
D18: ГРБС | E18: РзПр | F18: ЦСР | G18: ВР
A19: 1 | B19: 2 | C19: 3 | D19: 4 | E19: 5 | F19: 6 | G19: 7 | H19: 8
A20: 1 | B20: Развитие культуры в Черемховском районном муниципальном образовании на период 2012-2016 гг. | C20: Отдел по культуре и библиотечному обслуживанию АЧРМО | D20: 904 | E20: 0801, 0702 | F20: 7952000 | G20: 023 | H20: 1023.8
A21: 2 | B21: Ветхие школы Черемховского района на 2011-2013 гг. | C21: Отдел образования АЧРМО | D21: 907 | E21: 0702 | F21: 7951500 | G21: 022 | H21: 900
A22: 3 | B22: Совершенствование дошкольного образования Черемховского района на 2011-2014 гг. | D22: 907 | E22: 0701 | F22: 7951800 | G22: 022 | H22: 350
A23: 4 | B23: Совершенствование организации питания в образовательных учреждениях Черемховского района на 2011-2013 гг. | D23: 907 | E23: 0702 | F23: 7951600 | G23: 022 | H23: 1000
A24: 5 | B24: Развитие дошкольного образования на 2011-2014 гг. | D24: 907 | E24: 0701 | F24: 7951700 | G24: 022 | H24: 1102
A25: 6 | B25: "Безопасность образовательных учреждений" 2010-2014гг. | D25: 907 | E25: 0701, 0702 | F25: 7951000 | G25: 450 | H25: 1700
A26: 7 | B26: Инвентаризация муниципальных объектов недвижимости Черемховского районного муниципального образования на 2012-2014 годы | C26: КУМИ | D26: 913 | E26: 0113, 0412, 0409 | F26: 7951900 | G26: 500 | H26: 2468.6
A27: 8 | B27: Молодым семьям доступное жилье на 2012-2019гг. | C27: Администрация ЧРМО | D27: 917 | E27: 1003 | F27: 7952100 | G27: 005 | H27: 360
A28: 9 | B28: Комплексные меры профилактики злоупотребления наркотическими средствами, психотропними веществами в Черемховском районном муниципальном образовании на 2011-2013 гг. | D28: 917 | E28: 0707 | F28: 7951300 | G28: 500 | H28: 10
A29: 10 | B29: Молодежная политика в Черемховском районном муниципальном образовании на 2013-2015 | D29: 917 | E29: 0707 | F29: 7952500 | G29: 447 | H29: 40
A30: 11 | B30: Развитие физической культуры, спорта и туризма в Черемховском районном муниципальном образовании на 2011-2013гг. | D30: 917 | E30: 1101 | F30: 7951200 | G30: 500 | H30: 100
A31: 12 | B31: Поддержка и развитие малого и среднего предпринимательства в Черемховском районе на 2013-2014 гг. | D31: 917 | E31: 0412 | F31: 7952200 | G31: 500 | H31: 100
A32: 13 | B32: Поддержка, проводимых мероприятий, посвященных Дням воинской славы, памятным датам России и работе с ветеранами и инвалидами в Черемховском районе на 2013-2015 гг. | D32: 917 | E32: 1006 | F32: 7952400 | G32: 500 | H32: 100
A33: 14 | B33: Улучшение условий и охраны труда в Черемховском районе на 2011-2013 гг | D33: 917 | E33: 0113 | F33: 7951400 | G33: 500 | H33: 15
A34: 15 | B34: Развитие автомобильных дорог Черемховского районного муниципального образования на 2013-2015 гг. | D34: 917 | E34: 0409 | F34: 7952300 | G34: 500 | H34: 202.5
A35: 16 | B35: Поддержка молодых педагогов на территории Черемховского районного муниципального образования на 2012-2013 гг. | D35: 917 | E35: 0113 | F35: 7952700 | G35: 500 | H35: 100
A36: 17 | B36: Обеспечение учреждений здравоохранения Черемховского районного муниципального образования квалифицированными медицинскими кадрами на 2013 год | D36: 917 | E36: 0909 | F36: 7952800 | G36: 500 | H36: 200
A37: 18 | B37: Профилактика правонарушений в Черемховском районном муниципальном образовании на 2013-2016 гг. | D37: 917 | E37: 0113 | F37: 7952600 | G37: 500 | H37: 40
A38: 19 | B38: Программа повышения энергетической эффективности Черемховского районного муниципального образования на 2010-2015 гг | C38: Отдел образования АЧРМО | D38: 907 | E38: 0701, 0702 | F38: 7951100 | G38: 451 | H38: 600
C39: Отдел по культуре и библиотечному обслуживанию АЧРМО | D39: 903 | E39: 0800 | F39: 7951099 | G39: 451 | H39: 282
C40: Администрация ЧРМО | D40: 917 | E40: 0104 | F40: 7951100 | G40: 451 | H40: 18.3
A41: 20 | B41: Повышение эффективности бюджетных расходов Черемховского районного муниципального образования на 2012-2013 годы | C41: Финансовое управление АЧРМО | D41: 910 | E41: 0106 | F41: 7950200 | G41: 500 | H41: 200
C42: Отдел образования АЧРМО | D42: 907 | E42: 0701, 0702 | F42: 7950200 | G42: 001 | H42: 12894.9
C43: Отдел по культуре и библиотечному обслуживанию АЧРМО | D43: 904 | E43: 0702, 0801 | F43: 7950200 | G43: 001 | H43: 858
C44: Муниципальные образования района, Всего, в том числе | H44: =SUM(H45:H62) -> 3366
C45: Алехинское сельское поселение | D45: 910 | E45: 1403 | F45: 7950200 | G45: 017 | H45: 326
C46: Бельское сельское поселение | D46: 910 | E46: 1403 | F46: 7950200 | G46: 017 | H46: 192
C47: Булайское сельское поселение | D47: 910 | E47: 1403 | F47: 7950200 | G47: 017 | H47: 255
C48: Голуметское сельское поселение | D48: 910 | E48: 1403 | F48: 7950200 | G48: 017 | H48: 187
C49: Зерновское сельское поселение | D49: 910 | E49: 1403 | F49: 7950200 | G49: 017 | H49: 174
C50: Каменно-Ангарское сельское поселение | D50: 910 | E50: 1403 | F50: 7950200 | G50: 017 | H50: 180
C51: Лоховское сельское поселение | D51: 910 | E51: 1403 | F51: 7950200 | G51: 017 | H51: 105
C52: Михайловское городское поселение | D52: 910 | E52: 1403 | F52: 7950200 | G52: 017 | H52: 257
C53: Нижнеиретское сельское поселение | D53: 910 | E53: 1403 | F53: 7950200 | G53: 017 | H53: 134
C54: Новогромовское сельское поселение | D54: 910 | E54: 1403 | F54: 7950200 | G54: 017 | H54: 143
C55: Новостроевское сельское поселение | D55: 910 | E55: 1403 | F55: 7950200 | G55: 017 | H55: 143
C56: Онотское сельское поселение | D56: 910 | E56: 1403 | F56: 7950200 | G56: 017 | H56: 211
C57: Парфеновское сельское поселение | D57: 910 | E57: 1403 | F57: 7950200 | G57: 017 | H57: 194
C58: Саянское сельское поселение | D58: 910 | E58: 1403 | F58: 7950200 | G58: 017 | H58: 165
C59: Тальниковское сельское поселение | D59: 910 | E59: 1403 | F59: 7950200 | G59: 017 | H59: 145
C60: Тунгусское сельское поселение | D60: 910 | E60: 1403 | F60: 7950200 | G60: 017 | H60: 163
C61: Узколугское сельское поселение | D61: 910 | E61: 1403 | F61: 7950200 | G61: 017 | H61: 197
C62: Черемховское сельское поселение | D62: 910 | E62: 1403 | F62: 7950200 | G62: 017 | H62: 195
A63: Всего | H63: =SUM(H20:H44) -> 28031.1
A66: Начальник финансового управления | H66: Ю.Н. Гайдук

Sheet прил18источн2013
A14: Источники внутреннего финансирования дефицита бюджета Черемховского районного муниципального образования на 2013 год
C16: (тыс.рублей)
A17: Наименование | B17: Код | C17: Сумма
A18: Источники внутреннего финансирования дефицита бюджета | B18: 000 01 00 00 00 00 0000 000 | C18: =C19+C25 -> 19503.16885
A19: Кредиты кредитных организаций в валюте Российской Федерации | B19: 910 01 02 00 00 00 0000 000 | C19: =C20+C22 -> 4061.44795
A20: Получение кредитов от кредитных организаций в валюте Российской Федерации | B20: 910 01 02 00 00 00 0000 700 | C20: =C21 -> 4061.44795
A21: Кредиты, полученные в валюте Российской Федерации от кредитных организаций бюджетами муниципальных районнов | B21: 910 01 02 00 00 05 0000 710 | C21: 4061.44795
A22: Бюджетные кредиты от других бюджетов бюджетной системы Российской Федерации | B22: 910 01 03 00 00 00 0000 000 | C22: 0
A23: Погашение бюджетных кредитов, полученных от других бюджетов бюджетной системы Российской Федерации в валюте Российской Федерации | B23: 910 01 03 00 00 00 0000 800 | C23: 0
A24: Погашение бюджетами муниципальных районнов кредитов от других бюджетов бюджетной системы Российской Федерации в валюте Российской Федерации | B24: 910 01 03 00 00 05 0000 810 | C24: 0
A25: Изменение остатков средств на счетах по учету средств бюджетов | B25: 000 01 05 00 00 00 0000 000 | C25: =C26+C28 -> 15441.7209
A26: Увеличение остатков средств бюджетов | B26: 000 01 05 00 00 00 0000 500 | C26: =C27 -> -601083.0791
A27: Увеличение прочих остатков средств бюджетов | B27: 000 01 05 02 00 00 0000 500 | C27: -601083.0791
A28: Уменьшение остатков средств бюджетов | B28: 000 01 05 00 00 00 0000 600 | C28: =C29 -> 616524.8
A29: Уменьшение прочих остатков средств бюджетов | B29: 000 01 05 02 00 00 0000 600 | C29: 616524.8
A31: Начальник финансового управления | C31: Ю.Н. Гайдук

Sheet прил19источ 2014-2015)
A13: Источники внутреннего финансирования дефицита бюджета Черемховского районного муниципального образования на плановый период 2014 и 2015 годов
D15: (тыс.рублей)
A16: Наименование | B16: Код | C16: 2014 год | D16: 2015 год
A17: Источники внутреннего финансирования дефицита бюджета | B17: 000 01 00 00 00 00 0000 000 | C17: =C18+C26 -> 4153.915 | D17: =D18+D26 -> 4315.2
A18: Кредиты кредитных организаций в валюте Российской Федерации | B18: 810 01 02 00 00 00 0000 000 | C18: =C19+C21 -> 4153.915 | D18: =D19+D21 -> 4315.2
A19: Получение кредитов от кредитных организаций в валюте Российской Федерации | B19: 810 01 02 00 00 00 0000 700 | C19: =C20 -> 4153.915 | D19: =D20 -> 4315.2
A20: Кредиты, полученные в валюте Российской Федерации от кредитных организаций бюджетами муниципальных районов | B20: 810 01 02 00 00 050000 710 | C20: 4153.915 | D20: 4315.2
A21: Погашение кредитов, предоставленных кредитными организациями в валюте Российской Федерации | B21: 810 01 02 00 00 00 0000 800 | C21: =C22 -> 0 | D21: =D22 -> 0
A22: Погашение бюджетами муниципальных районов кредитов от кредитных организаций в валюте Российской Федерации | B22: 810 01 02 00 00 05 0000 810 | C22: 0 | D22: 0
A23: Бюджетные кредиты от других бюджетов бюджетной системы Российской Федерации | B23: 810 01 03 00 00 00 0000 000 | C23: 0 | D23: 0
A24: Погашение бюджетных кредитов, полученных от других бюджетов бюджетной системы Российской Федерации в валюте Российской Федерации | B24: 810 01 03 00 00 00 0000 800 | C24: 0 | D24: 0
A25: Погашение бюджетами муниципальных районов кредитов от других бюджетов бюджетной системы Российской Федерации в валюте Российской Федерации | B25: 810 01 03 00 00 05 0000 810 | C25: 0 | D25: 0
A26: Изменение остатков средств на счетах по учету средств бюджетов | B26: 000 01 05 00 00 00 0000 000 | C26: =C27+C29 -> 0 | D26: =D27+D29 -> 0
A27: Увеличение остатков средств бюджетов | B27: 000 01 05 00 00 00 0000 500 | C27: =C28 -> -463925 | D27: =D28 -> -471640
A28: Увеличение прочих остатков средств бюджетов | B28: 000 01 05 02 00 00 0000 500 | C28: -463925 | D28: -471640
A29: Уменьшение остатков средств бюджетов | B29: 000 01 05 00 00 00 0000 600 | C29: =C30 -> 463925 | D29: =D30 -> 471640
A30: Уменьшение прочих остатков средств бюджетов | B30: 000 01 05 02 00 00 0000 600 | C30: 463925 | D30: 471640
A33: Начальник финансового управления | D33: Ю.Н. Гайдук

Sheet Лист1
